Workbook

Sheet Main
B10: 2023-11-29
B12: Sheet No. | C12: Template Name | D12: Summary
B13: 1 | C13: Future Intra | D13: For Intraday trading in F&O segment
B14: 2 | C14: Cash Intra | D14: For Intraday trading in cash market segment
B15: 3 | C15: Mid-cap Intra | D15: For Intraday trading in Mid-cap stocks
B16: 4 | C16: Bulk Deals | D16: Reveals Bulk Deals carried on NSE & BSE
B17: 5 | C17: Call Tracker
K27: `

Sheet Future Intra
M5: Back to Main Page
A6: FOR INTRA DAY TRADING | L6: =Main!B10 -> 2023-11-29
A9: Sr.no | B9: Sector | C9: Scrip | D9: Expiry Date | E9: CLOSE RATE | F9: Pivot Point | G9: Supports | J9: Resistances
E10: Point | F10: Point | G10: S1 | H10: S2 | I10: S3 | J10: R1 | K10: R2 | L10: R3 | M10: HIGH | N10: LOW | O10: OI | P10: % Change in OI
A11: 1 | B11: Index | C11: NIFTY | D11: 2023-11-30 | E11: 19936.70 | F11: 19906.53 | G11: 19858.07 | H11: 19779.43 | I11: 19730.97 | J11: 19985.17 | K11: 20033.63 | L11: 20112.27 | M11: 19955 | N11: 19827.9 | O11: 13231600 | P11: 3.07%
A12: 2 | B12: Index | C12: BANKNIFTY | D12: 2023-11-30 | E12: 43984.30 | F12: 43941.27 | G12: 43834.13 | H12: 43683.97 | I12: 43576.83 | J12: 44091.43 | K12: 44198.57 | L12: 44348.73 | M12: 44048.4 | N12: 43791.1 | O12: 2997225 | P12: 5.94%
A13: 3 | B13: Index | C13: FINNIFTY | D13: 2023-11-28 | E13: 19698.00 | F13: 19688.27 | G13: 19657.43 | H13: 19616.87 | I13: 19586.03 | J13: 19728.83 | K13: 19759.67 | L13: 19800.23 | M13: 19719.1 | N13: 19647.7 | O13: 156960 | P13: 73.47%
A14: 4 | B14: Index | C14: MIDCPNIFTY | D14: 2023-12-22 | E14: 9550.65 | F14: 9533.38 | G14: 9500.47 | H14: 9450.28 | I14: 9417.37 | J14: 9583.57 | K14: 9616.48 | L14: 9666.67 | M14: 9566.3 | N14: 9483.2 | O14: 588525 | P14: -43.59%
A15: 5 | B15: Chemical | C15: AARTIIND | D15: 2023-11-30 | E15: 530.40 | F15: 530.90 | G15: 527.30 | H15: 524.20 | I15: 520.60 | J15: 534.00 | K15: 537.60 | L15: 540.70 | M15: 534.5 | N15: 527.8 | O15: 15027000 | P15: -2.56%
A16: 6 | B16: Capital_Goods | C16: ABB | D16: 2023-11-30 | E16: 4254.30 | F16: 4240.35 | G16: 4205.95 | H16: 4157.60 | I16: 4123.20 | J16: 4288.70 | K16: 4323.10 | L16: 4371.45 | M16: 4274.75 | N16: 4192 | O16: 1303125 | P16: -0.67%
A17: 7 | B17: Pharma | C17: ABBOTINDIA | D17: 2023-11-30 | E17: 23721.10 | F17: 23824.13 | G17: 23585.67 | H17: 23450.23 | I17: 23211.77 | J17: 23959.57 | K17: 24198.03 | L17: 24333.47 | M17: 24062.6 | N17: 23688.7 | O17: 74200 | P17: -1.90%
A18: 8 | B18: Others | C18: ABCAPITAL | D18: 2023-11-30 | E18: 170.50 | F18: 169.67 | G18: 168.43 | H18: 166.37 | I18: 165.13 | J18: 171.73 | K18: 172.97 | L18: 175.03 | M18: 170.9 | N18: 167.6 | O18: 57137400 | P18: -2.90%
A19: 9 | B19: Textile | C19: ABFRL | D19: 2023-11-30 | E19: 229.20 | F19: 229.88 | G19: 227.12 | H19: 225.03 | I19: 222.27 | J19: 231.97 | K19: 234.73 | L19: 236.82 | M19: 232.65 | N19: 227.8 | O19: 31551000 | P19: -5.24%
A20: 10 | B20: Cement | C20: ACC | D20: 2023-11-30 | E20: 1872.65 | F20: 1862.75 | G20: 1831.00 | H20: 1789.35 | I20: 1757.60 | J20: 1904.40 | K20: 1936.15 | L20: 1977.80 | M20: 1894.5 | N20: 1821.1 | O20: 5233500 | P20: 3.34%
A21: 11 | B21: Others | C21: ADANIENT | D21: 2023-11-30 | E21: 2429.60 | F21: 2399.80 | G21: 2305.60 | H21: 2181.60 | I21: 2087.40 | J21: 2523.80 | K21: 2618.00 | L21: 2742.00 | M21: 2494 | N21: 2275.8 | O21: 11946900 | P21: 11.18%
A22: 12 | B22: Others | C22: ADANIPORTS | D22: 2023-11-30 | E22: 837.40 | F22: 832.37 | G22: 810.03 | H22: 782.67 | I22: 760.33 | J22: 859.73 | K22: 882.07 | L22: 909.43 | M22: 854.7 | N22: 805 | O22: 55649600 | P22: -0.71%
A23: 13 | B23: Pharma | C23: ALKEM | D23: 2023-11-30 | E23: 4561.35 | F23: 4561.52 | G23: 4518.23 | H23: 4475.12 | I23: 4431.83 | J23: 4604.63 | K23: 4647.92 | L23: 4691.03 | M23: 4604.8 | N23: 4518.4 | O23: 932800 | P23: 8.36%
A24: 14 | B24: Cement | C24: AMBUJACEM | D24: 2023-11-30 | E24: 431.00 | F24: 427.85 | G24: 420.80 | H24: 410.60 | I24: 403.55 | J24: 438.05 | K24: 445.10 | L24: 455.30 | M24: 434.9 | N24: 417.65 | O24: 60800400 | P24: -2.93%
A25: 15 | B25: Others | C25: APOLLOHOSP | D25: 2023-11-30 | E25: 5379.45 | F25: 5385.18 | G25: 5344.32 | H25: 5309.18 | I25: 5268.32 | J25: 5420.32 | K25: 5461.18 | L25: 5496.32 | M25: 5426.05 | N25: 5350.05 | O25: 2239625 | P25: 1.42%
A26: 16 | B26: Automobile | C26: APOLLOTYRE | D26: 2023-11-30 | E26: 422.90 | F26: 420.30 | G26: 417.10 | H26: 411.30 | I26: 408.10 | J26: 426.10 | K26: 429.30 | L26: 435.10 | M26: 423.5 | N26: 414.5 | O26: 13919600 | P26: -6.01%
A27: 17 | B27: Automobile | C27: ASHOKLEY | D27: 2023-11-30 | E27: 179.60 | F27: 179.58 | G27: 178.22 | H27: 176.83 | I27: 175.47 | J27: 180.97 | K27: 182.33 | L27: 183.72 | M27: 180.95 | N27: 178.2 | O27: 79295000 | P27: 3.32%
A28: 18 | B28: FMCG | C28: ASIANPAINT | D28: 2023-11-30 | E28: 3152.45 | F28: 3151.15 | G28: 3137.45 | H28: 3122.45 | I28: 3108.75 | J28: 3166.15 | K28: 3179.85 | L28: 3194.85 | M28: 3164.85 | N28: 3136.15 | O28: 5252000 | P28: -3.88%
A29: 19 | B29: Others | C29: ASTRAL | D29: 2023-11-30 | E29: 1933.10 | F29: 1932.83 | G29: 1915.02 | H29: 1896.93 | I29: 1879.12 | J29: 1950.92 | K29: 1968.73 | L29: 1986.82 | M29: 1950.65 | N29: 1914.75 | O29: 3579718 | P29: 2.81%
A30: 20 | B30: Others | C30: ATUL | D30: 2023-11-30 | E30: 6549.20 | F30: 6563.43 | G30: 6525.82 | H30: 6502.43 | I30: 6464.82 | J30: 6586.82 | K30: 6624.43 | L30: 6647.82 | M30: 6601.05 | N30: 6540.05 | O30: 354900 | P30: -4.07%
A31: 21 | B31: Banking | C31: AUBANK | D31: 2023-11-30 | E31: 737.60 | F31: 733.38 | G31: 722.77 | H31: 707.93 | I31: 697.32 | J31: 748.22 | K31: 758.83 | L31: 773.67 | M31: 744 | N31: 718.55 | O31: 15006000 | P31: 2.24%
A32: 22 | B32: Pharma | C32: AUROPHARMA | D32: 2023-11-30 | E32: 1017.55 | F32: 1021.65 | G32: 1008.00 | H32: 998.45 | I32: 984.80 | J32: 1031.20 | K32: 1044.85 | L32: 1054.40 | M32: 1035.3 | N32: 1012.1 | O32: 20056300 | P32: 3.16%
A33: 23 | B33: Banking | C33: AXISBANK | D33: 2023-11-30 | E33: 1021.90 | F33: 1018.12 | G33: 1013.78 | H33: 1005.67 | I33: 1001.33 | J33: 1026.23 | K33: 1030.57 | L33: 1038.68 | M33: 1022.45 | N33: 1010 | O33: 53702500 | P33: 3.59%
A34: 24 | B34: Automobile | C34: BAJAJ-AUTO | D34: 2023-11-30 | E34: 6003.35 | F34: 5988.73 | G34: 5932.97 | H34: 5862.58 | I34: 5806.82 | J34: 6059.12 | K34: 6114.88 | L34: 6185.27 | M34: 6044.5 | N34: 5918.35 | O34: 3104625 | P34: 4.08%
A35: 25 | B35: Finance | C35: BAJAJFINSV | D35: 2023-11-30 | E35: 1654.60 | F35: 1643.92 | G35: 1629.83 | H35: 1605.07 | I35: 1590.98 | J35: 1668.68 | K35: 1682.77 | L35: 1707.53 | M35: 1658 | N35: 1619.15 | O35: 8910000 | P35: 2.37%
A36: 26 | B36: Finance | C36: BAJFINANCE | D36: 2023-11-30 | E36: 7134.45 | F36: 7101.73 | G36: 7062.62 | H36: 6990.78 | I36: 6951.67 | J36: 7173.57 | K36: 7212.68 | L36: 7284.52 | M36: 7140.85 | N36: 7029.9 | O36: 7415125 | P36: -0.10%
A37: 27 | B37: Automobile | C37: BALKRISIND | D37: 2023-11-30 | E37: 2627.15 | F37: 2616.28 | G37: 2594.97 | H37: 2562.78 | I37: 2541.47 | J37: 2648.47 | K37: 2669.78 | L37: 2701.97 | M37: 2637.6 | N37: 2584.1 | O37: 1811100 | P37: -6.00%
A38: 28 | B38: Others | C38: BALRAMCHIN | D38: 2023-11-30 | E38: 467.75 | F38: 463.47 | G38: 454.48 | H38: 441.22 | I38: 432.23 | J38: 476.73 | K38: 485.72 | L38: 498.98 | M38: 472.45 | N38: 450.2 | O38: 11086400 | P38: -7.87%
A39: 29 | B39: Banking | C39: BANDHANBNK | D39: 2023-11-30 | E39: 217.55 | F39: 216.48 | G39: 214.02 | H39: 210.48 | I39: 208.02 | J39: 220.02 | K39: 222.48 | L39: 226.02 | M39: 218.95 | N39: 212.95 | O39: 75677500 | P39: -3.09%
A40: 30 | B40: Banking | C40: BANKBARODA | D40: 2023-11-30 | E40: 197.15 | F40: 196.28 | G40: 193.32 | H40: 189.48 | I40: 186.52 | J40: 200.12 | K40: 203.08 | L40: 206.92 | M40: 199.25 | N40: 192.45 | O40: 132973425 | P40: -6.37%
A41: 31 | B41: FMCG | C41: BATAINDIA | D41: 2023-11-30 | E41: 1619.60 | F41: 1612.58 | G41: 1599.52 | H41: 1579.43 | I41: 1566.37 | J41: 1632.67 | K41: 1645.73 | L41: 1665.82 | M41: 1625.65 | N41: 1592.5 | O41: 2259375 | P41: -8.50%
A42: 32 | B42: Capital_Goods | C42: BEL | D42: 2023-11-30 | E42: 141.65 | F42: 141.40 | G42: 140.70 | H42: 139.75 | I42: 139.05 | J42: 142.35 | K42: 143.05 | L42: 144.00 | M42: 142.1 | N42: 140.45 | O42: 82159800 | P42: 4.39%
A43: 33 | B43: FMCG | C43: BERGEPAINT | D43: 2023-11-30 | E43: 575.20 | F43: 575.57 | G43: 570.68 | H43: 566.17 | I43: 561.28 | J43: 580.08 | K43: 584.97 | L43: 589.48 | M43: 580.45 | N43: 571.05 | O43: 9665040 | P43: -9.82%
A44: 34 | B44: Automobile | C44: BHARATFORG | D44: 2023-11-30 | E44: 1099.45 | F44: 1104.57 | G44: 1086.68 | H44: 1073.92 | I44: 1056.03 | J44: 1117.33 | K44: 1135.22 | L44: 1147.98 | M44: 1122.45 | N44: 1091.8 | O44: 7532500 | P44: 7.22%
A45: 35 | B45: Telecom | C45: BHARTIARTL | D45: 2023-11-30 | E45: 985.40 | F45: 981.98 | G45: 977.07 | H45: 968.73 | I45: 963.82 | J45: 990.32 | K45: 995.23 | L45: 1003.57 | M45: 986.9 | N45: 973.65 | O45: 39521900 | P45: 3.23%
A46: 36 | B46: Capital_Goods | C46: BHEL | D46: 2023-11-30 | E46: 155.80 | F46: 154.67 | G46: 152.18 | H46: 148.57 | I46: 146.08 | J46: 158.28 | K46: 160.77 | L46: 164.38 | M46: 157.15 | N46: 151.05 | O46: 105425250 | P46: -11.71%
A47: 37 | B47: Pharma | C47: BIOCON | D47: 2023-11-30 | E47: 233.40 | F47: 234.48 | G47: 230.22 | H47: 227.03 | I47: 222.77 | J47: 237.67 | K47: 241.93 | L47: 245.12 | M47: 238.75 | N47: 231.3 | O47: 39442500 | P47: 0.28%
A48: 38 | B48: Automobile | C48: BOSCHLTD | D48: 2023-11-30 | E48: 21279.10 | F48: 21207.75 | G48: 21071.60 | H48: 20864.10 | I48: 20727.95 | J48: 21415.25 | K48: 21551.40 | L48: 21758.90 | M48: 21343.9 | N48: 21000.25 | O48: 163550 | P48: 1.14%
A49: 39 | B49: Oil_Gas | C49: BPCL | D49: 2023-11-30 | E49: 424.70 | F49: 421.37 | G49: 416.23 | H49: 407.77 | I49: 402.63 | J49: 429.83 | K49: 434.97 | L49: 443.43 | M49: 426.5 | N49: 412.9 | O49: 38865600 | P49: 9.88%
A50: 40 | B50: FMCG | C50: BRITANNIA | D50: 2023-11-30 | E50: 4707.00 | F50: 4689.58 | G50: 4664.32 | H50: 4621.63 | I50: 4596.37 | J50: 4732.27 | K50: 4757.53 | L50: 4800.22 | M50: 4714.85 | N50: 4646.9 | O50: 2211200 | P50: 2.81%
A51: 41 | B51: Technology | C51: BSOFT | D51: 2023-11-30 | E51: 613.60 | F51: 611.08 | G51: 603.92 | H51: 594.23 | I51: 587.07 | J51: 620.77 | K51: 627.93 | L51: 637.62 | M51: 618.25 | N51: 601.4 | O51: 6615000 | P51: 2.75%
A52: 42 | B52: Banking | C52: CANBK | D52: 2023-11-30 | E52: 397.10 | F52: 395.67 | G52: 391.73 | H52: 386.37 | I52: 382.43 | J52: 401.03 | K52: 404.97 | L52: 410.33 | M52: 399.6 | N52: 390.3 | O52: 47844000 | P52: 1.12%
A53: 43 | B53: Finance | C53: CANFINHOME | D53: 2023-11-30 | E53: 757.45 | F53: 757.12 | G53: 753.08 | H53: 748.72 | I53: 744.68 | J53: 761.48 | K53: 765.52 | L53: 769.88 | M53: 761.15 | N53: 752.75 | O53: 3958500 | P53: -1.26%
A54: 44 | B54: Others | C54: CHAMBLFERT | D54: 2023-11-30 | E54: 315.10 | F54: 313.35 | G54: 309.75 | H54: 304.40 | I54: 300.80 | J54: 318.70 | K54: 322.30 | L54: 327.65 | M54: 316.95 | N54: 308 | O54: 14436200 | P54: 0.53%
A55: 45 | B55: Finance | C55: CHOLAFIN | D55: 2023-11-30 | E55: 1109.40 | F55: 1103.18 | G55: 1094.37 | H55: 1079.33 | I55: 1070.52 | J55: 1118.22 | K55: 1127.03 | L55: 1142.07 | M55: 1112 | N55: 1088.15 | O55: 14084375 | P55: -1.38%
A56: 46 | B56: Pharma | C56: CIPLA | D56: 2023-11-30 | E56: 1194.10 | F56: 1195.10 | G56: 1187.20 | H56: 1180.30 | I56: 1172.40 | J56: 1202.00 | K56: 1209.90 | L56: 1216.80 | M56: 1203 | N56: 1188.2 | O56: 13252850 | P56: 1.83%
A57: 47 | B57: Others | C57: COALINDIA | D57: 2023-11-30 | E57: 342.00 | F57: 339.47 | G57: 336.13 | H57: 330.27 | I57: 326.93 | J57: 345.33 | K57: 348.67 | L57: 354.53 | M57: 342.8 | N57: 333.6 | O57: 68512500 | P57: 5.24%
A58: 48 | B58: Technology | C58: COFORGE | D58: 2023-11-30 | E58: 5577.30 | F58: 5577.63 | G58: 5506.22 | H58: 5435.13 | I58: 5363.72 | J58: 5648.72 | K58: 5720.13 | L58: 5791.22 | M58: 5649.05 | N58: 5506.55 | O58: 1241400 | P58: 5.63%
A59: 49 | B59: FMCG | C59: COLPAL | D59: 2023-11-30 | E59: 2181.95 | F59: 2183.93 | G59: 2168.02 | H59: 2154.08 | I59: 2138.17 | J59: 2197.87 | K59: 2213.78 | L59: 2227.72 | M59: 2199.85 | N59: 2170 | O59: 3700900 | P59: 0.66%
A60: 50 | B60: Others | C60: CONCOR | D60: 2023-11-30 | E60: 766.65 | F60: 761.45 | G60: 752.45 | H60: 738.25 | I60: 729.25 | J60: 775.65 | K60: 784.65 | L60: 798.85 | M60: 770.45 | N60: 747.25 | O60: 6817000 | P60: 3.32%
A61: 51 | B61: Others | C61: COROMANDEL | D61: 2023-11-30 | E61: 1123.20 | F61: 1125.10 | G61: 1113.20 | H61: 1103.20 | I61: 1091.30 | J61: 1135.10 | K61: 1147.00 | L61: 1157.00 | M61: 1137 | N61: 1115.1 | O61: 1217300 | P61: -5.08%
A62: 52 | B62: Capital_Goods | C62: CROMPTON | D62: 2023-11-30 | E62: 284.20 | F62: 284.20 | G62: 280.85 | H62: 277.50 | I62: 274.15 | J62: 287.55 | K62: 290.90 | L62: 294.25 | M62: 287.55 | N62: 280.85 | O62: 12621600 | P62: -0.93%
A63: 53 | B63: Banking | C63: CUB | D63: 2023-11-30 | E63: 147.40 | F63: 146.83 | G63: 145.32 | H63: 143.23 | I63: 141.72 | J63: 148.92 | K63: 150.43 | L63: 152.52 | M63: 148.35 | N63: 144.75 | O63: 35365000 | P63: -3.59%
A64: 54 | B64: Capital_Goods | C64: CUMMINSIND | D64: 2023-11-30 | E64: 1880.30 | F64: 1870.95 | G64: 1859.30 | H64: 1838.30 | I64: 1826.65 | J64: 1891.95 | K64: 1903.60 | L64: 1924.60 | M64: 1882.6 | N64: 1849.95 | O64: 3982800 | P64: 6.00%
A65: 55 | B65: FMCG | C65: DABUR | D65: 2023-11-30 | E65: 534.85 | F65: 534.78 | G65: 531.62 | H65: 528.38 | I65: 525.22 | J65: 538.02 | K65: 541.18 | L65: 544.42 | M65: 537.95 | N65: 531.55 | O65: 20720000 | P65: 2.42%
A66: 56 | B66: Cement | C66: DALBHARAT | D66: 2023-11-30 | E66: 2211.80 | F66: 2224.58 | G66: 2193.37 | H66: 2174.93 | I66: 2143.72 | J66: 2243.02 | K66: 2274.23 | L66: 2292.67 | M66: 2255.8 | N66: 2206.15 | O66: 2231750 | P66: 6.01%
A67: 57 | B67: Chemical | C67: DEEPAKNTR | D67: 2023-11-30 | E67: 2182.15 | F67: 2193.72 | G67: 2160.43 | H67: 2138.72 | I67: 2105.43 | J67: 2215.43 | K67: 2248.72 | L67: 2270.43 | M67: 2227 | N67: 2172 | O67: 2530200 | P67: -3.02%
A68: 58 | B68: Others | C68: DELTACORP | D68: 2023-11-30 | E68: 134.15 | F68: 135.03 | G68: 132.77 | H68: 131.38 | I68: 129.12 | J68: 136.42 | K68: 138.68 | L68: 140.07 | M68: 137.3 | N68: 133.65 | O68: 15420800 | P68: 4.05%
A69: 59 | B69: Pharma | C69: DIVISLAB | D69: 2023-11-30 | E69: 3760.40 | F69: 3765.38 | G69: 3743.12 | H69: 3725.83 | I69: 3703.57 | J69: 3782.67 | K69: 3804.93 | L69: 3822.22 | M69: 3787.65 | N69: 3748.1 | O69: 2949400 | P69: 1.91%
A70: 60 | B70: Others | C70: DIXON | D70: 2023-11-30 | E70: 5293.75 | F70: 5292.80 | G70: 5270.95 | H70: 5248.15 | I70: 5226.30 | J70: 5315.60 | K70: 5337.45 | L70: 5360.25 | M70: 5314.65 | N70: 5270 | O70: 1262800 | P70: -2.21%
A71: 61 | B71: Realty | C71: DLF | D71: 2023-11-30 | E71: 629.30 | F71: 627.57 | G71: 622.33 | H71: 615.37 | I71: 610.13 | J71: 634.53 | K71: 639.77 | L71: 646.73 | M71: 632.8 | N71: 620.6 | O71: 37813050 | P71: -2.36%
A72: 62 | B72: Pharma | C72: DRREDDY | D72: 2023-11-30 | E72: 5674.30 | F72: 5677.33 | G72: 5647.42 | H72: 5620.53 | I72: 5590.62 | J72: 5704.22 | K72: 5734.13 | L72: 5761.02 | M72: 5707.25 | N72: 5650.45 | O72: 3251625 | P72: -1.26%
A73: 63 | B73: Automobile | C73: EICHERMOT | D73: 2023-11-30 | E73: 3834.50 | F73: 3840.17 | G73: 3780.63 | H73: 3726.77 | I73: 3667.23 | J73: 3894.03 | K73: 3953.57 | L73: 4007.43 | M73: 3899.7 | N73: 3786.3 | O73: 3254650 | P73: 0.73%
A74: 64 | B74: Automobile | C74: ESCORTS | D74: 2023-11-30 | E74: 3207.35 | F74: 3221.58 | G74: 3184.97 | H74: 3162.58 | I74: 3125.97 | J74: 3243.97 | K74: 3280.58 | L74: 3302.97 | M74: 3258.2 | N74: 3199.2 | O74: 1899700 | P74: 4.59%
A75: 65 | B75: Automobile | C75: EXIDEIND | D75: 2023-11-30 | E75: 284.30 | F75: 283.93 | G75: 281.92 | H75: 279.53 | I75: 277.52 | J75: 286.32 | K75: 288.33 | L75: 290.72 | M75: 285.95 | N75: 281.55 | O75: 18968400 | P75: -5.39%
A76: 66 | B76: Banking | C76: FEDERALBNK | D76: 2023-11-30 | E76: 150.10 | F76: 148.62 | G76: 146.58 | H76: 143.07 | I76: 141.03 | J76: 152.13 | K76: 154.17 | L76: 157.68 | M76: 150.65 | N76: 145.1 | O76: 105640000 | P76: -5.12%
A77: 67 | B77: Oil_Gas | C77: GAIL | D77: 2023-11-30 | E77: 125.70 | F77: 125.37 | G77: 124.13 | H77: 122.57 | I77: 121.33 | J77: 126.93 | K77: 128.17 | L77: 129.73 | M77: 126.6 | N77: 123.8 | O77: 153788625 | P77: 6.06%
A78: 68 | B78: Pharma | C78: GLENMARK | D78: 2023-11-30 | E78: 772.95 | F78: 778.55 | G78: 765.80 | H78: 758.65 | I78: 745.90 | J78: 785.70 | K78: 798.45 | L78: 805.60 | M78: 791.3 | N78: 771.4 | O78: 11294050 | P78: 1.03%
A79: 69 | B79: Infrastructure | C79: GMRINFRA | D79: 2023-11-30 | E79: 60.30 | F79: 60.52 | G79: 59.33 | H79: 58.37 | I79: 57.18 | J79: 61.48 | K79: 62.67 | L79: 63.63 | M79: 61.7 | N79: 59.55 | O79: 158118750 | P79: 2.31%
A80: 70 | B80: Others | C80: GNFC | D80: 2023-11-30 | E80: 687.80 | F80: 691.57 | G80: 683.23 | H80: 678.67 | I80: 670.33 | J80: 696.13 | K80: 704.47 | L80: 709.03 | M80: 699.9 | N80: 687 | O80: 9651200 | P80: 1.94%
A81: 71 | B81: FMCG | C81: GODREJCP | D81: 2023-11-30 | E81: 1001.70 | F81: 1003.47 | G81: 994.13 | H81: 986.57 | I81: 977.23 | J81: 1011.03 | K81: 1020.37 | L81: 1027.93 | M81: 1012.8 | N81: 995.9 | O81: 8987500 | P81: -2.30%
A82: 72 | B82: Realty | C82: GODREJPROP | D82: 2023-11-30 | E82: 1844.90 | F82: 1845.05 | G82: 1827.10 | H82: 1809.30 | I82: 1791.35 | J82: 1862.85 | K82: 1880.80 | L82: 1898.60 | M82: 1863 | N82: 1827.25 | O82: 3560125 | P82: -2.47%
A83: 73 | B83: Pharma | C83: GRANULES | D83: 2023-11-30 | E83: 377.50 | F83: 379.50 | G83: 371.20 | H83: 364.90 | I83: 356.60 | J83: 385.80 | K83: 394.10 | L83: 400.40 | M83: 387.8 | N83: 373.2 | O83: 11942000 | P83: -12.15%
A84: 74 | B84: Cement | C84: GRASIM | D84: 2023-11-30 | E84: 1977.75 | F84: 1972.37 | G84: 1958.28 | H84: 1938.82 | I84: 1924.73 | J84: 1991.83 | K84: 2005.92 | L84: 2025.38 | M84: 1986.45 | N84: 1952.9 | O84: 10776800 | P84: 2.01%
A85: 75 | B85: Oil_Gas | C85: GUJGASLTD | D85: 2023-11-30 | E85: 428.90 | F85: 426.88 | G85: 423.82 | H85: 418.73 | I85: 415.67 | J85: 431.97 | K85: 435.03 | L85: 440.12 | M85: 429.95 | N85: 421.8 | O85: 8023750 | P85: -1.97%
A86: 76 | B86: Others | C86: HAL | D86: 2023-11-30 | E86: 2280.10 | F86: 2288.38 | G86: 2248.77 | H86: 2217.43 | I86: 2177.82 | J86: 2319.72 | K86: 2359.33 | L86: 2390.67 | M86: 2328 | N86: 2257.05 | O86: 8202900 | P86: -0.94%
A87: 77 | B87: Capital_Goods | C87: HAVELLS | D87: 2023-11-30 | E87: 1283.95 | F87: 1288.17 | G87: 1278.33 | H87: 1272.72 | I87: 1262.88 | J87: 1293.78 | K87: 1303.62 | L87: 1309.23 | M87: 1298 | N87: 1282.55 | O87: 6478500 | P87: 0.79%
A88: 78 | B88: Technology | C88: HCLTECH | D88: 2023-11-30 | E88: 1319.65 | F88: 1313.50 | G88: 1303.50 | H88: 1287.35 | I88: 1277.35 | J88: 1329.65 | K88: 1339.65 | L88: 1355.80 | M88: 1323.5 | N88: 1297.35 | O88: 13998600 | P88: 3.58%
A89: 79 | B89: Finance | C89: HDFCAMC | D89: 2023-11-30 | E89: 2907.05 | F89: 2899.62 | G89: 2860.63 | H89: 2814.22 | I89: 2775.23 | J89: 2946.03 | K89: 2985.02 | L89: 3031.43 | M89: 2938.6 | N89: 2853.2 | O89: 3111000 | P89: -0.65%
A90: 80 | B90: Banking | C90: HDFCBANK | D90: 2023-11-30 | E90: 1531.75 | F90: 1532.15 | G90: 1527.80 | H90: 1523.85 | I90: 1519.50 | J90: 1536.10 | K90: 1540.45 | L90: 1544.40 | M90: 1536.5 | N90: 1528.2 | O90: 164991200 | P90: 0.25%
A91: 81 | B91: Finance | C91: HDFCLIFE | D91: 2023-11-30 | E91: 673.80 | F91: 671.63 | G91: 667.47 | H91: 661.13 | I91: 656.97 | J91: 677.97 | K91: 682.13 | L91: 688.47 | M91: 675.8 | N91: 665.3 | O91: 16798100 | P91: 0.42%
A92: 82 | B92: Automobile | C92: HEROMOTOCO | D92: 2023-11-30 | E92: 3615.90 | F92: 3596.10 | G92: 3567.60 | H92: 3519.30 | I92: 3490.80 | J92: 3644.40 | K92: 3672.90 | L92: 3721.20 | M92: 3624.6 | N92: 3547.8 | O92: 4414800 | P92: 7.79%
A93: 83 | B93: Metals | C93: HINDALCO | D93: 2023-11-30 | E93: 516.25 | F93: 514.23 | G93: 510.77 | H93: 505.28 | I93: 501.82 | J93: 519.72 | K93: 523.18 | L93: 528.67 | M93: 517.7 | N93: 508.75 | O93: 38406200 | P93: 1.73%
A94: 84 | B94: Metals | C94: HINDCOPPER | D94: 2023-11-30 | E94: 169.15 | F94: 167.65 | G94: 165.40 | H94: 161.65 | I94: 159.40 | J94: 171.40 | K94: 173.65 | L94: 177.40 | M94: 169.9 | N94: 163.9 | O94: 34222100 | P94: -2.36%
A95: 85 | B95: Oil_Gas | C95: HINDPETRO | D95: 2023-11-30 | E95: 342.55 | F95: 337.68 | G95: 330.87 | H95: 319.18 | I95: 312.37 | J95: 349.37 | K95: 356.18 | L95: 367.87 | M95: 344.5 | N95: 326 | O95: 48195000 | P95: -13.19%
A96: 86 | B96: FMCG | C96: HINDUNILVR | D96: 2023-11-30 | E96: 2514.10 | F96: 2515.83 | G96: 2506.87 | H96: 2499.63 | I96: 2490.67 | J96: 2523.07 | K96: 2532.03 | L96: 2539.27 | M96: 2524.8 | N96: 2508.6 | O96: 9391200 | P96: 2.26%
A97: 87 | B97: Finance | C97: IBULHSGFIN | D97: 2023-11-30 | E97: 188.35 | F97: 187.02 | G97: 185.03 | H97: 181.72 | I97: 179.73 | J97: 190.33 | K97: 192.32 | L97: 195.63 | M97: 189 | N97: 183.7 | O97: 57497400 | P97: -3.67%
A98: 88 | B98: Banking | C98: ICICIBANK | D98: 2023-11-30 | E98: 927.10 | F98: 926.52 | G98: 923.23 | H98: 919.37 | I98: 916.08 | J98: 930.38 | K98: 933.67 | L98: 937.53 | M98: 929.8 | N98: 922.65 | O98: 107321900 | P98: 4.16%
A99: 89 | B99: Finance | C99: ICICIGI | D99: 2023-11-30 | E99: 1452.70 | F99: 1448.65 | G99: 1440.05 | H99: 1427.40 | I99: 1418.80 | J99: 1461.30 | K99: 1469.90 | L99: 1482.55 | M99: 1457.25 | N99: 1436 | O99: 2843500 | P99: 3.21%
A100: 90 | B100: Finance | C100: ICICIPRULI | D100: 2023-11-30 | E100: 553.10 | F100: 554.28 | G100: 550.47 | H100: 547.83 | I100: 544.02 | J100: 556.92 | K100: 560.73 | L100: 563.37 | M100: 558.1 | N100: 551.65 | O100: 9883500 | P100: -4.47%
A101: 91 | B101: Telecom | C101: IDEA | D101: 2023-11-30 | E101: 13.30 | F101: 13.33 | G101: 13.07 | H101: 12.83 | I101: 12.57 | J101: 13.57 | K101: 13.83 | L101: 14.07 | M101: 13.6 | N101: 13.1 | O101: 1739920000 | P101: -2.48%
A102: 92 | B102: Finance | C102: IDFC | D102: 2023-11-30 | E102: 117.70 | F102: 117.38 | G102: 116.77 | H102: 115.83 | I102: 115.22 | J102: 118.32 | K102: 118.93 | L102: 119.87 | M102: 118 | N102: 116.45 | O102: 88350000 | P102: -0.16%
A103: 93 | B103: Banking | C103: IDFCFIRSTB | D103: 2023-11-30 | E103: 85.55 | F103: 85.23 | G103: 84.67 | H103: 83.78 | I103: 83.22 | J103: 86.12 | K103: 86.68 | L103: 87.57 | M103: 85.8 | N103: 84.35 | O103: 291630000 | P103: 0.05%
A104: 94 | B104: Others | C104: IEX | D104: 2023-11-30 | E104: 144.95 | F104: 144.03 | G104: 142.47 | H104: 139.98 | I104: 138.42 | J104: 146.52 | K104: 148.08 | L104: 150.57 | M104: 145.6 | N104: 141.55 | O104: 67023750 | P104: -2.55%
A105: 95 | B105: Oil_Gas | C105: IGL | D105: 2023-11-30 | E105: 389.70 | F105: 390.17 | G105: 387.23 | H105: 384.77 | I105: 381.83 | J105: 392.63 | K105: 395.57 | L105: 398.03 | M105: 393.1 | N105: 387.7 | O105: 16586625 | P105: -4.49%
A106: 96 | B106: Infrastructure | C106: INDHOTEL | D106: 2023-11-30 | E106: 422.65 | F106: 421.77 | G106: 418.93 | H106: 415.22 | I106: 412.38 | J106: 425.48 | K106: 428.32 | L106: 432.03 | M106: 424.6 | N106: 418.05 | O106: 19534000 | P106: 1.00%
A107: 97 | B107: Cement | C107: INDIACEM | D107: 2023-11-30 | E107: 230.25 | F107: 227.57 | G107: 224.23 | H107: 218.22 | I107: 214.88 | J107: 233.58 | K107: 236.92 | L107: 242.93 | M107: 230.9 | N107: 221.55 | O107: 24771800 | P107: 8.41%
A108: 98 | B108: Others | C108: INDIAMART | D108: 2023-11-30 | E108: 2597.10 | F108: 2594.83 | G108: 2584.22 | H108: 2571.33 | I108: 2560.72 | J108: 2607.72 | K108: 2618.33 | L108: 2631.22 | M108: 2605.45 | N108: 2581.95 | O108: 1221900 | P108: -2.93%
A109: 99 | B109: Others | C109: INDIGO | D109: 2023-11-30 | E109: 2644.05 | F109: 2623.78 | G109: 2595.52 | H109: 2546.98 | I109: 2518.72 | J109: 2672.32 | K109: 2700.58 | L109: 2749.12 | M109: 2652.05 | N109: 2575.25 | O109: 6815400 | P109: 0.29%
A110: 100 | B110: Banking | C110: INDUSINDBK | D110: 2023-11-30 | E110: 1478.20 | F110: 1476.25 | G110: 1467.50 | H110: 1456.80 | I110: 1448.05 | J110: 1486.95 | K110: 1495.70 | L110: 1506.40 | M110: 1485 | N110: 1465.55 | O110: 24090500 | P110: 0.85%
A111: 101 | B111: Telecom | C111: INDUSTOWER | D111: 2023-11-30 | E111: 184.95 | F111: 185.42 | G111: 183.68 | H111: 182.42 | I111: 180.68 | J111: 186.68 | K111: 188.42 | L111: 189.68 | M111: 187.15 | N111: 184.15 | O111: 70808400 | P111: -1.62%
A112: 102 | B112: Technology | C112: INFY | D112: 2023-11-30 | E112: 1443.00 | F112: 1439.75 | G112: 1432.40 | H112: 1421.80 | I112: 1414.45 | J112: 1450.35 | K112: 1457.70 | L112: 1468.30 | M112: 1447.1 | N112: 1429.15 | O112: 29371200 | P112: 2.11%
A113: 103 | B113: Oil_Gas | C113: IOC | D113: 2023-11-30 | E113: 108.25 | F113: 107.07 | G113: 105.38 | H113: 102.52 | I113: 100.83 | J113: 109.93 | K113: 111.62 | L113: 114.48 | M113: 108.75 | N113: 104.2 | O113: 174096000 | P113: 5.51%
A114: 104 | B114: Pharma | C114: IPCALAB | D114: 2023-11-30 | E114: 1091.60 | F114: 1095.60 | G114: 1082.85 | H114: 1074.10 | I114: 1061.35 | J114: 1104.35 | K114: 1117.10 | L114: 1125.85 | M114: 1108.35 | N114: 1086.85 | O114: 2319200 | P114: -5.81%
A115: 105 | B115: Others | C115: IRCTC | D115: 2023-11-30 | E115: 698.00 | F115: 696.77 | G115: 693.98 | H115: 689.97 | I115: 687.18 | J115: 700.78 | K115: 703.57 | L115: 707.58 | M115: 699.55 | N115: 692.75 | O115: 13740125 | P115: -6.31%
A116: 106 | B116: FMCG | C116: ITC | D116: 2023-11-30 | E116: 436.45 | F116: 437.30 | G116: 434.90 | H116: 433.35 | I116: 430.95 | J116: 438.85 | K116: 441.25 | L116: 442.80 | M116: 439.7 | N116: 435.75 | O116: 64496000 | P116: 6.84%
A117: 107 | B117: Metals | C117: JINDALSTEL | D117: 2023-11-30 | E117: 667.90 | F117: 664.55 | G117: 660.15 | H117: 652.40 | I117: 648.00 | J117: 672.30 | K117: 676.70 | L117: 684.45 | M117: 668.95 | N117: 656.8 | O117: 26838750 | P117: -2.05%
A118: 108 | B118: Cement | C118: JKCEMENT | D118: 2023-11-30 | E118: 3565.00 | F118: 3555.70 | G118: 3533.05 | H118: 3501.10 | I118: 3478.45 | J118: 3587.65 | K118: 3610.30 | L118: 3642.25 | M118: 3578.35 | N118: 3523.75 | O118: 737500 | P118: -1.83%
A119: 109 | B119: Metals | C119: JSWSTEEL | D119: 2023-11-30 | E119: 783.50 | F119: 782.65 | G119: 780.55 | H119: 777.60 | I119: 775.50 | J119: 785.60 | K119: 787.70 | L119: 790.65 | M119: 784.75 | N119: 779.7 | O119: 17747775 | P119: -0.78%
A120: 110 | B120: Others | C120: JUBLFOOD | D120: 2023-11-30 | E120: 545.15 | F120: 546.05 | G120: 538.60 | H120: 532.05 | I120: 524.60 | J120: 552.60 | K120: 560.05 | L120: 566.60 | M120: 553.5 | N120: 539.5 | O120: 22913750 | P120: -3.13%
A121: 111 | B121: Banking | C121: KOTAKBANK | D121: 2023-11-30 | E121: 1745.25 | F121: 1745.25 | G121: 1739.65 | H121: 1734.05 | I121: 1728.45 | J121: 1750.85 | K121: 1756.45 | L121: 1762.05 | M121: 1750.85 | N121: 1739.65 | O121: 29395600 | P121: 2.52%
A122: 112 | B122: Finance | C122: L&TFH | D122: 2023-11-30 | E122: 144.85 | F122: 143.38 | G122: 141.57 | H122: 138.28 | I122: 136.47 | J122: 146.67 | K122: 148.48 | L122: 151.77 | M122: 145.2 | N122: 140.1 | O122: 59094728 | P122: -1.27%
A123: 113 | B123: Others | C123: LALPATHLAB | D123: 2023-11-30 | E123: 2654.95 | F123: 2670.10 | G123: 2635.90 | H123: 2616.85 | I123: 2582.65 | J123: 2689.15 | K123: 2723.35 | L123: 2742.40 | M123: 2704.3 | N123: 2651.05 | O123: 1007100 | P123: -4.09%
A124: 114 | B124: Pharma | C124: LAURUSLABS | D124: 2023-11-30 | E124: 371.55 | F124: 373.35 | G124: 368.50 | H124: 365.45 | I124: 360.60 | J124: 376.40 | K124: 381.25 | L124: 384.30 | M124: 378.2 | N124: 370.3 | O124: 13314400 | P124: -3.05%
A125: 115 | B125: Finance | C125: LICHSGFIN | D125: 2023-11-30 | E125: 458.80 | F125: 457.28 | G125: 454.77 | H125: 450.73 | I125: 448.22 | J125: 461.32 | K125: 463.83 | L125: 467.87 | M125: 459.8 | N125: 453.25 | O125: 24434000 | P125: 0.07%
A126: 116 | B126: Capital_Goods | C126: LT | D126: 2023-11-30 | E126: 3057.75 | F126: 3054.23 | G126: 3044.22 | H126: 3030.68 | I126: 3020.67 | J126: 3067.77 | K126: 3077.78 | L126: 3091.32 | M126: 3064.25 | N126: 3040.7 | O126: 10241400 | P126: 5.44%
A127: 117 | B127: Technology | C127: LTIM | D127: 2023-11-30 | E127: 5496.60 | F127: 5476.65 | G127: 5443.55 | H127: 5390.50 | I127: 5357.40 | J127: 5529.70 | K127: 5562.80 | L127: 5615.85 | M127: 5509.75 | N127: 5423.6 | O127: 1490250 | P127: 1.01%
A128: 118 | B128: Technology | C128: LTTS | D128: 2023-11-30 | E128: 4587.65 | F128: 4578.53 | G128: 4559.42 | H128: 4531.18 | I128: 4512.07 | J128: 4606.77 | K128: 4625.88 | L128: 4654.12 | M128: 4597.65 | N128: 4550.3 | O128: 848200 | P128: 7.91%
A129: 119 | B129: Pharma | C129: LUPIN | D129: 2023-11-30 | E129: 1244.90 | F129: 1244.27 | G129: 1236.63 | H129: 1228.37 | I129: 1220.73 | J129: 1252.53 | K129: 1260.17 | L129: 1268.43 | M129: 1251.9 | N129: 1236 | O129: 9659400 | P129: -4.05%
A130: 120 | B130: Automobile | C130: M&M | D130: 2023-11-30 | E130: 1565.35 | F130: 1558.70 | G130: 1549.65 | H130: 1533.95 | I130: 1524.90 | J130: 1574.40 | K130: 1583.45 | L130: 1599.15 | M130: 1567.75 | N130: 1543 | O130: 15764350 | P130: 4.15%
A131: 121 | B131: Finance | C131: M&MFIN | D131: 2023-11-30 | E131: 270.90 | F131: 268.55 | G131: 265.20 | H131: 259.50 | I131: 256.15 | J131: 274.25 | K131: 277.60 | L131: 283.30 | M131: 271.9 | N131: 262.85 | O131: 35908000 | P131: 0.38%
A132: 122 | B132: Finance | C132: MANAPPURAM | D132: 2023-11-30 | E132: 151.80 | F132: 152.23 | G132: 149.67 | H132: 147.53 | I132: 144.97 | J132: 154.37 | K132: 156.93 | L132: 159.07 | M132: 154.8 | N132: 150.1 | O132: 70386000 | P132: 13.31%
A133: 123 | B133: FMCG | C133: MARICO | D133: 2023-11-30 | E133: 525.10 | F133: 524.42 | G133: 522.93 | H133: 520.77 | I133: 519.28 | J133: 526.58 | K133: 528.07 | L133: 530.23 | M133: 525.9 | N133: 522.25 | O133: 13791600 | P133: -2.57%
A134: 124 | B134: Automobile | C134: MARUTI | D134: 2023-11-30 | E134: 10528.15 | F134: 10523.43 | G134: 10501.72 | H134: 10475.28 | I134: 10453.57 | J134: 10549.87 | K134: 10571.58 | L134: 10598.02 | M134: 10545.15 | N134: 10497 | O134: 2650200 | P134: 1.99%
A135: 125 | B135: FMCG | C135: MCDOWELL-N | D135: 2023-11-30 | E135: 1040.45 | F135: 1038.57 | G135: 1033.33 | H135: 1026.22 | I135: 1020.98 | J135: 1045.68 | K135: 1050.92 | L135: 1058.03 | M135: 1043.8 | N135: 1031.45 | O135: 9390500 | P135: -0.35%
A136: 126 | B136: Others | C136: MCX | D136: 2023-11-30 | E136: 3135.25 | F136: 3080.45 | G136: 2984.90 | H136: 2834.55 | I136: 2739.00 | J136: 3230.80 | K136: 3326.35 | L136: 3476.70 | M136: 3176 | N136: 2930.1 | O136: 3170400 | P136: -2.50%
A137: 127 | B137: Pharma | C137: METROPOLIS | D137: 2023-11-30 | E137: 1674.30 | F137: 1673.98 | G137: 1653.22 | H137: 1632.13 | I137: 1611.37 | J137: 1695.07 | K137: 1715.83 | L137: 1736.92 | M137: 1694.75 | N137: 1652.9 | O137: 1502400 | P137: -1.37%
A138: 128 | B138: Finance | C138: MFSL | D138: 2023-11-30 | E138: 1008.35 | F138: 997.63 | G138: 978.22 | H138: 948.08 | I138: 928.67 | J138: 1027.77 | K138: 1047.18 | L138: 1077.32 | M138: 1017.05 | N138: 967.5 | O138: 7546400 | P138: 0.36%
A139: 129 | B139: Oil_Gas | C139: MGL | D139: 2023-11-30 | E139: 1028.85 | F139: 1025.92 | G139: 1021.48 | H139: 1014.12 | I139: 1009.68 | J139: 1033.28 | K139: 1037.72 | L139: 1045.08 | M139: 1030.35 | N139: 1018.55 | O139: 1790400 | P139: -2.65%
A140: 130 | B140: Automobile | C140: MOTHERSON | D140: 2023-11-30 | E140: 90.10 | F140: 89.10 | G140: 87.75 | H140: 85.40 | I140: 84.05 | J140: 91.45 | K140: 92.80 | L140: 95.15 | M140: 90.45 | N140: 86.75 | O140: 95324600 | P140: 8.38%
A141: 131 | B141: Technology | C141: MPHASIS | D141: 2023-11-30 | E141: 2308.80 | F141: 2311.62 | G141: 2277.18 | H141: 2245.57 | I141: 2211.13 | J141: 2343.23 | K141: 2377.67 | L141: 2409.28 | M141: 2346.05 | N141: 2280 | O141: 2434300 | P141: 0.26%
A142: 132 | B142: Automobile | C142: MRF | D142: 2023-11-30 | E142: 111913.45 | F142: 111813.85 | G142: 111526.50 | H142: 111139.55 | I142: 110852.20 | J142: 112200.80 | K142: 112488.15 | L142: 112875.10 | M142: 112101.2 | N142: 111426.9 | O142: 38620 | P142: -0.76%
A143: 133 | B143: Finance | C143: MUTHOOTFIN | D143: 2023-11-30 | E143: 1345.20 | F143: 1339.83 | G143: 1332.67 | H143: 1320.13 | I143: 1312.97 | J143: 1352.37 | K143: 1359.53 | L143: 1372.07 | M143: 1347 | N143: 1327.3 | O143: 6418500 | P143: -8.12%
A144: 134 | B144: Metals | C144: NATIONALUM | D144: 2023-11-30 | E144: 92.25 | F144: 91.98 | G144: 91.47 | H144: 90.68 | I144: 90.17 | J144: 92.77 | K144: 93.28 | L144: 94.07 | M144: 92.5 | N144: 91.2 | O144: 76477500 | P144: 0.33%
A145: 135 | B145: Others | C145: NAUKRI | D145: 2023-11-30 | E145: 4557.75 | F145: 4571.63 | G145: 4528.67 | H145: 4499.58 | I145: 4456.62 | J145: 4600.72 | K145: 4643.68 | L145: 4672.77 | M145: 4614.6 | N145: 4542.55 | O145: 1585200 | P145: 1.35%
A146: 136 | B146: Chemical | C146: NAVINFLUOR | D146: 2023-11-30 | E146: 3693.85 | F146: 3704.18 | G146: 3665.07 | H146: 3636.28 | I146: 3597.17 | J146: 3732.97 | K146: 3772.08 | L146: 3800.87 | M146: 3743.3 | N146: 3675.4 | O146: 1038300 | P146: 12.63%
A147: 137 | B147: FMCG | C147: NESTLEIND | D147: 2023-11-30 | E147: 24219.25 | F147: 24137.47 | G147: 24015.93 | H147: 23812.62 | I147: 23691.08 | J147: 24340.78 | K147: 24462.32 | L147: 24665.63 | M147: 24259 | N147: 23934.15 | O147: 351400 | P147: -4.43%
A148: 138 | B148: Metals | C148: NMDC | D148: 2023-11-30 | E148: 181.75 | F148: 179.33 | G148: 176.32 | H148: 170.88 | I148: 167.87 | J148: 184.77 | K148: 187.78 | L148: 193.22 | M148: 182.35 | N148: 173.9 | O148: 101772000 | P148: 3.61%
A149: 139 | B149: Power | C149: NTPC | D149: 2023-11-30 | E149: 256.75 | F149: 255.85 | G149: 254.25 | H149: 251.75 | I149: 250.15 | J149: 258.35 | K149: 259.95 | L149: 262.45 | M149: 257.45 | N149: 253.35 | O149: 118260000 | P149: 11.80%
A150: 140 | B150: Realty | C150: OBEROIRLTY | D150: 2023-11-30 | E150: 1414.30 | F150: 1404.83 | G150: 1389.67 | H150: 1365.03 | I150: 1349.87 | J150: 1429.47 | K150: 1444.63 | L150: 1469.27 | M150: 1420 | N150: 1380.2 | O150: 8337700 | P150: -2.97%
A151: 141 | B151: Technology | C151: OFSS | D151: 2023-11-30 | E151: 4025.75 | F151: 4007.68 | G151: 3977.77 | H151: 3929.78 | I151: 3899.87 | J151: 4055.67 | K151: 4085.58 | L151: 4133.57 | M151: 4037.6 | N151: 3959.7 | O151: 414200 | P151: 3.45%
A152: 142 | B152: Oil_Gas | C152: ONGC | D152: 2023-11-30 | E152: 193.50 | F152: 191.83 | G152: 189.87 | H152: 186.23 | I152: 184.27 | J152: 195.47 | K152: 197.43 | L152: 201.07 | M152: 193.8 | N152: 188.2 | O152: 63679000 | P152: 6.78%
A153: 143 | B153: Textile | C153: PAGEIND | D153: 2023-11-30 | E153: 37653.95 | F153: 37612.55 | G153: 37292.10 | H153: 36930.25 | I153: 36609.80 | J153: 37974.40 | K153: 38294.85 | L153: 38656.70 | M153: 37933 | N153: 37250.7 | O153: 130515 | P153: -0.64%
A154: 144 | B154: Pharma | C154: PEL | D154: 2023-11-30 | E154: 911.65 | F154: 904.38 | G154: 895.07 | H154: 878.48 | I154: 869.17 | J154: 920.97 | K154: 930.28 | L154: 946.87 | M154: 913.7 | N154: 887.8 | O154: 12267750 | P154: -0.04%
A155: 145 | B155: Technology | C155: PERSISTENT | D155: 2023-11-30 | E155: 6330.65 | F155: 6342.85 | G155: 6266.70 | H155: 6202.75 | I155: 6126.60 | J155: 6406.80 | K155: 6482.95 | L155: 6546.90 | M155: 6419 | N155: 6278.9 | O155: 1934425 | P155: 1.51%
A156: 146 | B156: Oil_Gas | C156: PETRONET | D156: 2023-11-30 | E156: 196.80 | F156: 196.47 | G156: 195.68 | H156: 194.57 | I156: 193.78 | J156: 197.58 | K156: 198.37 | L156: 199.48 | M156: 197.25 | N156: 195.35 | O156: 46173000 | P156: -3.57%
A157: 147 | B157: Finance | C157: PFC | D157: 2023-11-30 | E157: 320.60 | F157: 317.22 | G157: 313.08 | H157: 305.57 | I157: 301.43 | J157: 324.73 | K157: 328.87 | L157: 336.38 | M157: 321.35 | N157: 309.7 | O157: 65875000 | P157: 0.68%
A158: 148 | B158: FMCG | C158: PIDILITIND | D158: 2023-11-30 | E158: 2488.75 | F158: 2494.98 | G158: 2476.97 | H158: 2465.18 | I158: 2447.17 | J158: 2506.77 | K158: 2524.78 | L158: 2536.57 | M158: 2513 | N158: 2483.2 | O158: 2549250 | P158: -1.70%
A159: 149 | B159: Chemical | C159: PIIND | D159: 2023-11-30 | E159: 3740.80 | F159: 3732.00 | G159: 3692.50 | H159: 3644.20 | I159: 3604.70 | J159: 3780.30 | K159: 3819.80 | L159: 3868.10 | M159: 3771.5 | N159: 3683.7 | O159: 1721000 | P159: -4.31%
A160: 150 | B160: Banking | C160: PNB | D160: 2023-11-30 | E160: 78.75 | F160: 78.03 | G160: 76.27 | H160: 73.78 | I160: 72.02 | J160: 80.52 | K160: 82.28 | L160: 84.77 | M160: 79.8 | N160: 75.55 | O160: 270432000 | P160: -6.67%
A161: 151 | B161: Others | C161: POLYCAB | D161: 2023-11-30 | E161: 5187.80 | F161: 5209.15 | G161: 5124.35 | H161: 5060.90 | I161: 4976.10 | J161: 5272.60 | K161: 5357.40 | L161: 5420.85 | M161: 5293.95 | N161: 5145.7 | O161: 2774800 | P161: -3.94%
A162: 152 | B162: Power | C162: POWERGRID | D162: 2023-11-30 | E162: 210.75 | F162: 211.05 | G162: 209.25 | H162: 207.75 | I162: 205.95 | J162: 212.55 | K162: 214.35 | L162: 215.85 | M162: 212.85 | N162: 209.55 | O162: 68450400 | P162: 3.08%
A163: 153 | B163: Media | C163: PVRINOX | D163: 2023-11-30 | E163: 1668.05 | F163: 1663.88 | G163: 1655.82 | H163: 1643.58 | I163: 1635.52 | J163: 1676.12 | K163: 1684.18 | L163: 1696.42 | M163: 1671.95 | N163: 1651.65 | O163: 6157910 | P163: 0.30%
A164: 154 | B164: Cement | C164: RAMCOCEM | D164: 2023-11-30 | E164: 971.45 | F164: 968.58 | G164: 963.07 | H164: 954.68 | I164: 949.17 | J164: 976.97 | K164: 982.48 | L164: 990.87 | M164: 974.1 | N164: 960.2 | O164: 3519850 | P164: -1.03%
A165: 155 | B165: Banking | C165: RBLBANK | D165: 2023-11-30 | E165: 238.30 | F165: 237.50 | G165: 234.45 | H165: 230.60 | I165: 227.55 | J165: 241.35 | K165: 244.40 | L165: 248.25 | M165: 240.55 | N165: 233.65 | O165: 52692500 | P165: -0.25%
A166: 156 | B166: Power | C166: RECLTD | D166: 2023-11-30 | E166: 340.15 | F166: 338.42 | G166: 333.88 | H166: 327.62 | I166: 323.08 | J166: 344.68 | K166: 349.22 | L166: 355.48 | M166: 342.95 | N166: 332.15 | O166: 51518000 | P166: 0.12%
A167: 157 | B167: Oil_Gas | C167: RELIANCE | D167: 2023-11-30 | E167: 2397.95 | F167: 2393.10 | G167: 2383.95 | H167: 2369.95 | I167: 2360.80 | J167: 2407.10 | K167: 2416.25 | L167: 2430.25 | M167: 2402.25 | N167: 2379.1 | O167: 44881750 | P167: 2.45%
A168: 158 | B168: Metals | C168: SAIL | D168: 2023-11-30 | E168: 91.20 | F168: 90.77 | G168: 89.93 | H168: 88.67 | I168: 87.83 | J168: 92.03 | K168: 92.87 | L168: 94.13 | M168: 91.6 | N168: 89.5 | O168: 146368000 | P168: 5.03%
A169: 159 | B169: Banking | C169: SBICARD | D169: 2023-11-30 | E169: 736.30 | F169: 739.83 | G169: 731.07 | H169: 725.83 | I169: 717.07 | J169: 745.07 | K169: 753.83 | L169: 759.07 | M169: 748.6 | N169: 734.6 | O169: 15491200 | P169: 4.55%
A170: 160 | B170: Finance | C170: SBILIFE | D170: 2023-11-30 | E170: 1414.05 | F170: 1408.27 | G170: 1398.98 | H170: 1383.92 | I170: 1374.63 | J170: 1423.33 | K170: 1432.62 | L170: 1447.68 | M170: 1417.55 | N170: 1393.2 | O170: 7555500 | P170: 2.95%
A171: 161 | B171: Banking | C171: SBIN | D171: 2023-11-30 | E171: 566.15 | F171: 564.58 | G171: 562.57 | H171: 558.98 | I171: 556.97 | J171: 568.17 | K171: 570.18 | L171: 573.77 | M171: 566.6 | N171: 561 | O171: 127258500 | P171: -0.95%
A172: 162 | B172: Cement | C172: SHREECEM | D172: 2023-11-30 | E172: 26062.25 | F172: 26055.28 | G172: 25696.57 | H172: 25330.88 | I172: 24972.17 | J172: 26420.97 | K172: 26779.68 | L172: 27145.37 | M172: 26414 | N172: 25689.6 | O172: 214000 | P172: 0.34%
A173: 163 | B173: Capital_Goods | C173: SIEMENS | D173: 2023-11-30 | E173: 3647.10 | F173: 3629.50 | G173: 3596.10 | H173: 3545.10 | I173: 3511.70 | J173: 3680.50 | K173: 3713.90 | L173: 3764.90 | M173: 3662.9 | N173: 3578.5 | O173: 2639675 | P173: 2.30%
A174: 164 | B174: Textile | C174: SRF | D174: 2023-11-30 | E174: 2352.95 | F174: 2352.48 | G174: 2336.47 | H174: 2319.98 | I174: 2303.97 | J174: 2368.97 | K174: 2384.98 | L174: 2401.47 | M174: 2368.5 | N174: 2336 | O174: 3758625 | P174: -0.68%
A175: 165 | B175: Finance | C175: SHRIRAMFIN | D175: 2023-11-30 | E175: 1969.00 | F175: 1959.57 | G175: 1947.13 | H175: 1925.27 | I175: 1912.83 | J175: 1981.43 | K175: 1993.87 | L175: 2015.73 | M175: 1972 | N175: 1937.7 | O175: 7229100 | P175: 1.62%
A176: 166 | B176: Pharma | C176: SUNPHARMA | D176: 2023-11-30 | E176: 1189.85 | F176: 1192.85 | G176: 1185.25 | H176: 1180.65 | I176: 1173.05 | J176: 1197.45 | K176: 1205.05 | L176: 1209.65 | M176: 1200.45 | N176: 1188.25 | O176: 21640500 | P176: -1.36%
A177: 167 | B177: Media | C177: SUNTV | D177: 2023-11-30 | E177: 674.70 | F177: 671.40 | G177: 667.30 | H177: 659.90 | I177: 655.80 | J177: 678.80 | K177: 682.90 | L177: 690.30 | M177: 675.5 | N177: 664 | O177: 8226000 | P177: -1.06%
A178: 168 | B178: Pharma | C178: SYNGENE | D178: 2023-11-30 | E178: 751.50 | F178: 751.35 | G178: 744.30 | H178: 737.10 | I178: 730.05 | J178: 758.55 | K178: 765.60 | L178: 772.80 | M178: 758.4 | N178: 744.15 | O178: 5041000 | P178: 16.05%
A179: 169 | B179: Chemical | C179: TATACHEM | D179: 2023-11-30 | E179: 969.65 | F179: 966.52 | G179: 959.68 | H179: 949.72 | I179: 942.88 | J179: 976.48 | K179: 983.32 | L179: 993.28 | M179: 973.35 | N179: 956.55 | O179: 11426250 | P179: -9.21%
A180: 170 | B180: Telecom | C180: TATACOMM | D180: 2023-11-30 | E180: 1681.00 | F180: 1694.10 | G180: 1664.55 | H180: 1648.10 | I180: 1618.55 | J180: 1710.55 | K180: 1740.10 | L180: 1756.55 | M180: 1723.65 | N180: 1677.65 | O180: 7825000 | P180: 18.21%
A181: 171 | B181: FMCG | C181: TATACONSUM | D181: 2023-11-30 | E181: 932.50 | F181: 929.78 | G181: 924.97 | H181: 917.43 | I181: 912.62 | J181: 937.32 | K181: 942.13 | L181: 949.67 | M181: 934.6 | N181: 922.25 | O181: 10785600 | P181: 0.13%
A182: 172 | B182: Automobile | C182: TATAMOTORS | D182: 2023-11-30 | E182: 697.80 | F182: 690.33 | G182: 681.37 | H182: 664.93 | I182: 655.97 | J182: 706.77 | K182: 715.73 | L182: 732.17 | M182: 699.3 | N182: 673.9 | O182: 75004875 | P182: 7.19%
A183: 173 | B183: Power | C183: TATAPOWER | D183: 2023-11-30 | E183: 271.35 | F183: 267.28 | G183: 262.82 | H183: 254.28 | I183: 249.82 | J183: 275.82 | K183: 280.28 | L183: 288.82 | M183: 271.75 | N183: 258.75 | O183: 104375250 | P183: 10.48%
A184: 174 | B184: Metals | C184: TATASTEEL | D184: 2023-11-30 | E184: 127.10 | F184: 126.75 | G184: 126.20 | H184: 125.30 | I184: 124.75 | J184: 127.65 | K184: 128.20 | L184: 129.10 | M184: 127.3 | N184: 125.85 | O184: 205986000 | P184: 1.39%
A185: 175 | B185: Technology | C185: TCS | D185: 2023-11-30 | E185: 3468.20 | F185: 3461.53 | G185: 3444.42 | H185: 3420.63 | I185: 3403.52 | J185: 3485.32 | K185: 3502.43 | L185: 3526.22 | M185: 3478.65 | N185: 3437.75 | O185: 12543825 | P185: 0.75%
A186: 176 | B186: Technology | C186: TECHM | D186: 2023-11-30 | E186: 1204.25 | F186: 1199.77 | G186: 1189.53 | H186: 1174.82 | I186: 1164.58 | J186: 1214.48 | K186: 1224.72 | L186: 1239.43 | M186: 1210 | N186: 1185.05 | O186: 15580200 | P186: 1.85%
A187: 177 | B187: FMCG | C187: TITAN | D187: 2023-11-30 | E187: 3439.70 | F187: 3426.52 | G187: 3411.53 | H187: 3383.37 | I187: 3368.38 | J187: 3454.68 | K187: 3469.67 | L187: 3497.83 | M187: 3441.5 | N187: 3398.35 | O187: 5926875 | P187: 2.92%
A188: 178 | B188: Pharma | C188: TORNTPHARM | D188: 2023-11-30 | E188: 2083.25 | F188: 2088.73 | G188: 2068.52 | H188: 2053.78 | I188: 2033.57 | J188: 2103.47 | K188: 2123.68 | L188: 2138.42 | M188: 2108.95 | N188: 2074 | O188: 1765000 | P188: 2.62%
A189: 179 | B189: Others | C189: TRENT | D189: 2023-11-30 | E189: 2677.15 | F189: 2670.27 | G189: 2655.58 | H189: 2634.02 | I189: 2619.33 | J189: 2691.83 | K189: 2706.52 | L189: 2728.08 | M189: 2684.95 | N189: 2648.7 | O189: 3866800 | P189: 2.06%
A190: 180 | B190: Automobile | C190: TVSMOTOR | D190: 2023-11-30 | E190: 1816.95 | F190: 1809.20 | G190: 1798.40 | H190: 1779.85 | I190: 1769.05 | J190: 1827.75 | K190: 1838.55 | L190: 1857.10 | M190: 1820 | N190: 1790.65 | O190: 9291450 | P190: 6.51%
A191: 181 | B191: FMCG | C191: UBL | D191: 2023-11-30 | E191: 1612.10 | F191: 1605.08 | G191: 1589.12 | H191: 1566.13 | I191: 1550.17 | J191: 1628.07 | K191: 1644.03 | L191: 1667.02 | M191: 1621.05 | N191: 1582.1 | O191: 3407200 | P191: 4.25%
A192: 182 | B192: Cement | C192: ULTRACEMCO | D192: 2023-11-30 | E192: 8735.75 | F192: 8688.60 | G192: 8631.70 | H192: 8527.65 | I192: 8470.75 | J192: 8792.65 | K192: 8849.55 | L192: 8953.60 | M192: 8745.5 | N192: 8584.55 | O192: 1314100 | P192: 0.01%
A193: 183 | B193: Chemical | C193: UPL | D193: 2023-11-30 | E193: 565.15 | F193: 563.02 | G193: 559.33 | H193: 553.52 | I193: 549.83 | J193: 568.83 | K193: 572.52 | L193: 578.33 | M193: 566.7 | N193: 557.2 | O193: 32661200 | P193: 1.13%
A194: 184 | B194: Metals | C194: VEDL | D194: 2023-11-30 | E194: 234.90 | F194: 234.25 | G194: 233.00 | H194: 231.10 | I194: 229.85 | J194: 236.15 | K194: 237.40 | L194: 239.30 | M194: 235.5 | N194: 232.35 | O194: 83056200 | P194: -1.49%
A195: 185 | B195: Capital_Goods | C195: VOLTAS | D195: 2023-11-30 | E195: 822.90 | F195: 819.55 | G195: 811.15 | H195: 799.40 | I195: 791.00 | J195: 831.30 | K195: 839.70 | L195: 851.45 | M195: 827.95 | N195: 807.8 | O195: 9399000 | P195: -1.12%
A196: 186 | B196: Technology | C196: WIPRO | D196: 2023-11-30 | E196: 397.70 | F196: 396.85 | G196: 395.20 | H196: 392.70 | I196: 391.05 | J196: 399.35 | K196: 401.00 | L196: 403.50 | M196: 398.5 | N196: 394.35 | O196: 44299500 | P196: -2.75%
A197: 187 | B197: Media | C197: ZEEL | D197: 2023-11-30 | E197: 257.00 | F197: 255.97 | G197: 254.58 | H197: 252.17 | I197: 250.78 | J197: 258.38 | K197: 259.77 | L197: 262.18 | M197: 257.35 | N197: 253.55 | O197: 93105000 | P197: -2.06%
A198: 188 | B198: Pharma | C198: ZYDUSLIFE | D198: 2023-11-30 | E198: 630.10 | F198: 633.05 | G198: 625.60 | H198: 621.10 | I198: 613.65 | J198: 637.55 | K198: 645.00 | L198: 649.50 | M198: 640.5 | N198: 628.55 | O198: 6376500 | P198: -1.36%
A221: Pivot Point: This is trigger point for intra day buy/sell based on the price range of the previous day
A222: As per the tool,the trader should take BUY position just above Pivot and keep the stop loss of pivot point and the first target would be Resistance 1(R1)
A223: If R1 is crossed then R2 becomes the next target with stop loss of at R1
A224: Similarly if price goes below pivot point then the trader should sell and keep a stop loss of pivot point and the first target would be S1
A225: If S1 is crossed then S2 becomes the next target with stop loss of at S1
A227: Disclaimer:
A228: This document has been prepared by the Retail Research Desk of Asit C Mehta
A229: Investment Intermediates Ltd. and is meant for use of the recipient only
... 7 more rows

Sheet Cash Intra
M5: Back to Main Page
A6: FOR INTRA DAY TRADING | K6: =Main!B10 -> 2023-11-29
A8: Sr.no | C8: CLOSE RATE | D8: Pivot Point | E8: Supports | H8: Resistances
E9: S1 | F9: S2 | G9: S3 | H9: R1 | I9: R2 | J9: R3 | K9: HIGH | L9: LOW | M9: Total Trade Quanity in Lakhs
A10: 1 | B10: Nifty 50 | C10: 19889.70 | D10: 19868.85 | E10: 19820.85 | F10: 19752.00 | G10: 19704.00 | H10: 19937.70 | I10: 19985.70 | J10: 20054.55 | K10: 19916.85 | L10: 19800.00
A11: 2 | B11: Nifty Bank | C11: 43880.95 | D11: 43860.35 | E11: 43760.40 | F11: 43639.85 | G11: 43539.90 | H11: 43980.90 | I11: 44080.85 | J11: 44201.40 | K11: 43960.30 | L11: 43739.80
A12: 3 | B12: Nifty CPSE | C12: 4199.50 | D12: 4182.05 | E12: 4159.25 | F12: 4119.00 | G12: 4096.20 | H12: 4222.30 | I12: 4245.10 | J12: 4285.35 | K12: 4204.85 | L12: 4141.80
A13: 4 | B13: Nifty Infra | C13: 6507.30 | D13: 6488.22 | E13: 6462.13 | F13: 6416.97 | G13: 6390.88 | H13: 6533.38 | I13: 6559.47 | J13: 6604.63 | K13: 6514.30 | L13: 6443.05
A14: 5 | B14: Nifty IT | C14: 32118.45 | D14: 32038.08 | E14: 31888.22 | F14: 31657.98 | G14: 31508.12 | H14: 32268.32 | I14: 32418.18 | J14: 32648.42 | K14: 32187.95 | L14: 31807.85
A15: 6 | B15: Nifty PSE | C15: 6652.00 | D15: 6625.37 | E15: 6591.18 | F15: 6530.37 | G15: 6496.18 | H15: 6686.18 | I15: 6720.37 | J15: 6781.18 | K15: 6659.55 | L15: 6564.55
A16: 7 | B16: Nifty Midcap 50 | C16: 12031.60 | D16: 12010.10 | E16: 11979.20 | F16: 11926.80 | G16: 11895.90 | H16: 12062.50 | I16: 12093.40 | J16: 12145.80 | K16: 12041.00 | L16: 11957.70
A17: 8 | B17: ABB | C17: 4255.25 | D17: 4246.60 | E17: 4204.20 | F17: 4153.15 | G17: 4110.75 | H17: 4297.65 | I17: 4340.05 | J17: 4391.10 | K17: 4289 | L17: 4195.55 | M17: 1.84551
A18: 9 | B18: ABBOTINDIA | C18: 23697.75 | D18: 23811.48 | E18: 23556.27 | F18: 23414.78 | G18: 23159.57 | H18: 23952.97 | I18: 24208.18 | J18: 24349.67 | K18: 24066.7 | L18: 23670 | M18: 0.04778
A19: 10 | B19: ABCAPITAL | C19: 170.1 | D19: 169.60 | E19: 168.35 | F19: 166.60 | G19: 165.35 | H19: 171.35 | I19: 172.60 | J19: 174.35 | K19: 170.85 | L19: 167.85 | M19: 24.00141
A20: 11 | B20: ABFRL | C20: 228.35 | D20: 229.13 | E20: 226.27 | F20: 224.18 | G20: 221.32 | H20: 231.22 | I20: 234.08 | J20: 236.17 | K20: 232 | L20: 227.05 | M20: 22.13682
A21: 12 | B21: ACC | C21: 1869 | D21: 1861.83 | E21: 1832.17 | F21: 1795.33 | G21: 1765.67 | H21: 1898.67 | I21: 1928.33 | J21: 1965.17 | K21: 1891.5 | L21: 1825 | M21: 9.34618
A22: 13 | B22: ADANIENT | C22: 2423.5 | D22: 2403.63 | E22: 2294.87 | F22: 2166.23 | G22: 2057.47 | H22: 2532.27 | I22: 2641.03 | J22: 2769.67 | K22: 2512.4 | L22: 2275 | M22: 119.72275
A23: 14 | B23: ADANIGREEN | C23: 1052.8 | D23: 1035.60 | E23: 972.20 | F23: 891.60 | G23: 828.20 | H23: 1116.20 | I23: 1179.60 | J23: 1260.20 | K23: 1099 | L23: 955 | M23: 115.65049
A24: 15 | B24: ADANIPORTS | C24: 837.7 | D24: 832.70 | E24: 811.00 | F24: 784.30 | G24: 762.60 | H24: 859.40 | I24: 881.10 | J24: 907.80 | K24: 854.4 | L24: 806 | M24: 159.29818
A25: 16 | B25: ADANIPOWER | C25: 446.2 | D25: 439.20 | E25: 414.00 | F25: 381.80 | G25: 356.60 | H25: 471.40 | I25: 496.60 | J25: 528.80 | K25: 464.4 | L25: 407 | M25: 674.82614
A26: 17 | B26: ALKEM | C26: 4554.2 | D26: 4560.93 | E26: 4508.32 | F26: 4462.43 | G26: 4409.82 | H26: 4606.82 | I26: 4659.43 | J26: 4705.32 | K26: 4613.55 | L26: 4515.05 | M26: 4.01971
A27: 18 | B27: AMBUJACEM | C27: 431.2 | D27: 427.97 | E27: 420.48 | F27: 409.77 | G27: 402.28 | H27: 438.68 | I27: 446.17 | J27: 456.88 | K27: 435.45 | L27: 417.25 | M27: 76.54493
A28: 19 | B28: APOLLOHOSP | C28: 5366.8 | D28: 5377.55 | E28: 5330.25 | F28: 5293.70 | G28: 5246.40 | H28: 5414.10 | I28: 5461.40 | J28: 5497.95 | K28: 5424.85 | L28: 5341 | M28: 3.62746
A29: 20 | B29: APOLLOTYRE | C29: 422.6 | D29: 420.18 | E29: 417.02 | F29: 411.43 | G29: 408.27 | H29: 425.77 | I29: 428.93 | J29: 434.52 | K29: 423.35 | L29: 414.6 | M29: 7.16242
A30: 21 | B30: ASHOKLEY | C30: 178.95 | D30: 179.37 | E30: 177.73 | F30: 176.52 | G30: 174.88 | H30: 180.58 | I30: 182.22 | J30: 183.43 | K30: 181 | L30: 178.15 | M30: 83.45825
A31: 22 | B31: ASIANPAINT | C31: 3148.35 | D31: 3148.17 | E31: 3136.33 | F31: 3124.32 | G31: 3112.48 | H31: 3160.18 | I31: 3172.02 | J31: 3184.03 | K31: 3160 | L31: 3136.15 | M31: 6.47883
A32: 23 | B32: ASTRAL | C32: 1932.55 | D32: 1930.90 | E32: 1915.75 | F32: 1898.95 | G32: 1883.80 | H32: 1947.70 | I32: 1962.85 | J32: 1979.65 | K32: 1946.05 | L32: 1914.1 | M32: 2.4701
A33: 24 | B33: ATGL | C33: 644.2 | D33: 612.50 | E33: 580.70 | F33: 517.20 | G33: 485.40 | H33: 676.00 | I33: 707.80 | J33: 771.30 | K33: 644.3 | L33: 549 | M33: 133.83917
A34: 25 | B34: AUBANK | C34: 737.15 | D34: 732.68 | E34: 722.67 | F34: 708.18 | G34: 698.17 | H34: 747.17 | I34: 757.18 | J34: 771.67 | K34: 742.7 | L34: 718.2 | M34: 15.21215
A35: 26 | B35: AUROPHARMA | C35: 1016.15 | D35: 1020.10 | E35: 1005.45 | F35: 994.75 | G35: 980.10 | H35: 1030.80 | I35: 1045.45 | J35: 1056.15 | K35: 1034.75 | L35: 1009.4 | M35: 23.65708
A36: 27 | B36: AWL | C36: 348.45 | D36: 339.05 | E36: 329.50 | F36: 310.55 | G36: 301.00 | H36: 358.00 | I36: 367.55 | J36: 386.50 | K36: 348.6 | L36: 320.1 | M36: 166.78984
A37: 28 | B37: AXISBANK | C37: 1021.15 | D37: 1017.45 | E37: 1012.95 | F37: 1004.75 | G37: 1000.25 | H37: 1025.65 | I37: 1030.15 | J37: 1038.35 | K37: 1021.95 | L37: 1009.25 | M37: 61.73384
A38: 29 | B38: BAJAJ-AUTO | C38: 5998.15 | D38: 5983.27 | E38: 5926.88 | F38: 5855.62 | G38: 5799.23 | H38: 6054.53 | I38: 6110.92 | J38: 6182.18 | K38: 6039.65 | L38: 5912 | M38: 3.80535
A39: 30 | B39: BAJAJFINSV | C39: 1654.4 | D39: 1642.97 | E39: 1628.93 | F39: 1603.47 | G39: 1589.43 | H39: 1668.43 | I39: 1682.47 | J39: 1707.93 | K39: 1657 | L39: 1617.5 | M39: 15.64478
A40: 31 | B40: BAJAJHLDNG | C40: 7320.7 | D40: 7366.90 | E40: 7253.80 | F40: 7186.90 | G40: 7073.80 | H40: 7433.80 | I40: 7546.90 | J40: 7613.80 | K40: 7480 | L40: 7300 | M40: 0.19597
A41: 32 | B41: BAJFINANCE | C41: 7127.55 | D41: 7097.48 | E41: 7059.97 | F41: 6992.38 | G41: 6954.87 | H41: 7165.07 | I41: 7202.58 | J41: 7270.17 | K41: 7135 | L41: 7029.9 | M41: 7.28158
A42: 33 | B42: BALKRISIND | C42: 2619.95 | D42: 2606.87 | E42: 2583.88 | F42: 2547.82 | G42: 2524.83 | H42: 2642.93 | I42: 2665.92 | J42: 2701.98 | K42: 2629.85 | L42: 2570.8 | M42: 4.23349
A43: 34 | B43: BANDHANBNK | C43: 216.85 | D43: 216.05 | E43: 213.60 | F43: 210.35 | G43: 207.90 | H43: 219.30 | I43: 221.75 | J43: 225.00 | K43: 218.5 | L43: 212.8 | M43: 101.54652
A44: 35 | B44: BANKBARODA | C44: 196.55 | D44: 195.97 | E44: 193.33 | F44: 190.12 | G44: 187.48 | H44: 199.18 | I44: 201.82 | J44: 205.03 | K44: 198.6 | L44: 192.75 | M44: 123.82178
A45: 36 | B45: BANKINDIA | C45: 105.1 | D45: 104.90 | E45: 103.10 | F45: 101.10 | G45: 99.30 | H45: 106.90 | I45: 108.70 | J45: 110.70 | K45: 106.7 | L45: 102.9 | M45: 72.48889
A46: 37 | B46: BATAINDIA | C46: 1617.1 | D46: 1615.35 | E46: 1601.90 | F46: 1586.70 | G46: 1573.25 | H46: 1630.55 | I46: 1644.00 | J46: 1659.20 | K46: 1628.8 | L46: 1600.15 | M46: 1.80041
A47: 38 | B47: BEL | C47: 141.3 | D47: 141.17 | E47: 140.53 | F47: 139.77 | G47: 139.13 | H47: 141.93 | I47: 142.57 | J47: 143.33 | K47: 141.8 | L47: 140.4 | M47: 85.95693
A48: 39 | B48: BERGEPAINT | C48: 574.3 | D48: 573.93 | E48: 570.37 | F48: 566.43 | G48: 562.87 | H48: 577.87 | I48: 581.43 | J48: 585.37 | K48: 577.5 | L48: 570 | M48: 4.6348
A49: 40 | B49: BHARATFORG | C49: 1097.1 | D49: 1102.52 | E49: 1083.03 | F49: 1068.97 | G49: 1049.48 | H49: 1116.58 | I49: 1136.07 | J49: 1150.13 | K49: 1122 | L49: 1088.45 | M49: 12.67193
A50: 41 | B50: BHARTIARTL | C50: 984.9 | D50: 981.37 | E50: 974.73 | F50: 964.57 | G50: 957.93 | H50: 991.53 | I50: 998.17 | J50: 1008.33 | K50: 988 | L50: 971.2 | M50: 50.96984
A51: 42 | B51: BHEL | C51: 156.05 | D51: 155.12 | E51: 152.43 | F51: 148.82 | G51: 146.13 | H51: 158.73 | I51: 161.42 | J51: 165.03 | K51: 157.8 | L51: 151.5 | M51: 487.16588
A52: 43 | B52: BIOCON | C52: 233.1 | D52: 233.53 | E52: 230.82 | F52: 228.53 | G52: 225.82 | H52: 235.82 | I52: 238.53 | J52: 240.82 | K52: 236.25 | L52: 231.25 | M52: 28.46098
A53: 44 | B53: BOSCHLTD | C53: 21273.6 | D53: 21208.05 | E53: 21065.55 | F53: 20857.50 | G53: 20715.00 | H53: 21416.10 | I53: 21558.60 | J53: 21766.65 | K53: 21350.55 | L53: 21000 | M53: 0.24561
A54: 45 | B54: BPCL | C54: 424.5 | D54: 421.17 | E54: 416.43 | F54: 408.37 | G54: 403.63 | H54: 429.23 | I54: 433.97 | J54: 442.03 | K54: 425.9 | L54: 413.1 | M54: 115.93428
A55: 46 | B55: BRITANNIA | C55: 4713.45 | D55: 4687.45 | E55: 4652.00 | F55: 4590.55 | G55: 4555.10 | H55: 4748.90 | I55: 4784.35 | J55: 4845.80 | K55: 4722.9 | L55: 4626 | M55: 1.8279
A56: 47 | B56: CANBK | C56: 396.1 | D56: 395.20 | E56: 390.90 | F56: 385.70 | G56: 381.40 | H56: 400.40 | I56: 404.70 | J56: 409.90 | K56: 399.5 | L56: 390 | M56: 46.26113
A57: 48 | B57: CGPOWER | C57: 431.5 | D57: 426.33 | E57: 415.27 | F57: 399.03 | G57: 387.97 | H57: 442.57 | I57: 453.63 | J57: 469.87 | K57: 437.4 | L57: 410.1 | M57: 106.84488
A58: 49 | B58: CHOLAFIN | C58: 1106.25 | D58: 1099.88 | E58: 1091.77 | F58: 1077.28 | G58: 1069.17 | H58: 1114.37 | I58: 1122.48 | J58: 1136.97 | K58: 1108 | L58: 1085.4 | M58: 24.45247
A59: 50 | B59: CIPLA | C59: 1192.3 | D59: 1194.35 | E59: 1185.95 | F59: 1179.60 | G59: 1171.20 | H59: 1200.70 | I59: 1209.10 | J59: 1215.45 | K59: 1202.75 | L59: 1188 | M59: 16.91543
A60: 51 | B60: COALINDIA | C60: 341.95 | D60: 339.25 | E60: 336.00 | F60: 330.05 | G60: 326.80 | H60: 345.20 | I60: 348.45 | J60: 354.40 | K60: 342.5 | L60: 333.3 | M60: 107.91886
A61: 52 | B61: COFORGE | C61: 5566.3 | D61: 5566.25 | E61: 5492.50 | F61: 5418.70 | G61: 5344.95 | H61: 5640.05 | I61: 5713.80 | J61: 5787.60 | K61: 5640 | L61: 5492.45 | M61: 2.38937
A62: 53 | B62: COLPAL | C62: 2180.3 | D62: 2183.72 | E62: 2167.63 | F62: 2154.97 | G62: 2138.88 | H62: 2196.38 | I62: 2212.47 | J62: 2225.13 | K62: 2199.8 | L62: 2171.05 | M62: 6.78686
A63: 54 | B63: CONCOR | C63: 766.85 | D63: 761.28 | E63: 753.57 | F63: 740.28 | G63: 732.57 | H63: 774.57 | I63: 782.28 | J63: 795.57 | K63: 769 | L63: 748 | M63: 8.45708
A64: 55 | B64: COROMANDEL | C64: 1124.25 | D64: 1126.38 | E64: 1112.07 | F64: 1099.88 | G64: 1085.57 | H64: 1138.57 | I64: 1152.88 | J64: 1165.07 | K64: 1140.7 | L64: 1114.2 | M64: 3.00439
A65: 56 | B65: CROMPTON | C65: 283.15 | D65: 282.92 | E65: 280.53 | F65: 277.92 | G65: 275.53 | H65: 285.53 | I65: 287.92 | J65: 290.53 | K65: 285.3 | L65: 280.3 | M65: 28.95205
A66: 57 | B66: CUMMINSIND | C66: 1875.35 | D66: 1869.98 | E66: 1858.22 | F66: 1841.08 | G66: 1829.32 | H66: 1887.12 | I66: 1898.88 | J66: 1916.02 | K66: 1881.75 | L66: 1852.85 | M66: 2.57084
A67: 58 | B67: DABUR | C67: 533.8 | D67: 534.07 | E67: 530.78 | F67: 527.77 | G67: 524.48 | H67: 537.08 | I67: 540.37 | J67: 543.38 | K67: 537.35 | L67: 531.05 | M67: 22.51292
A68: 59 | B68: DALBHARAT | C68: 2206.2 | D68: 2220.00 | E68: 2187.80 | F68: 2169.40 | G68: 2137.20 | H68: 2238.40 | I68: 2270.60 | J68: 2289.00 | K68: 2252.2 | L68: 2201.6 | M68: 2.62585
A69: 60 | B69: DEEPAKNTR | C69: 2177.85 | D69: 2189.12 | E69: 2156.73 | F69: 2135.62 | G69: 2103.23 | H69: 2210.23 | I69: 2242.62 | J69: 2263.73 | K69: 2221.5 | L69: 2168 | M69: 2.3631
A70: 61 | B70: DELHIVERY | C70: 385.1 | D70: 384.35 | E70: 380.90 | F70: 376.70 | G70: 373.25 | H70: 388.55 | I70: 392.00 | J70: 396.20 | K70: 387.8 | L70: 380.15 | M70: 8.9885
A71: 62 | B71: DEVYANI | C71: 179.3 | D71: 179.77 | E71: 176.73 | F71: 174.17 | G71: 171.13 | H71: 182.33 | I71: 185.37 | J71: 187.93 | K71: 182.8 | L71: 177.2 | M71: 20.93594
A72: 63 | B72: DIVISLAB | C72: 3760.15 | D72: 3763.32 | E72: 3740.28 | F72: 3720.42 | G72: 3697.38 | H72: 3783.18 | I72: 3806.22 | J72: 3826.08 | K72: 3786.35 | L72: 3743.45 | M72: 1.97926
A73: 64 | B73: DIXON | C73: 5290.7 | D73: 5291.40 | E73: 5271.35 | F73: 5252.00 | G73: 5231.95 | H73: 5310.75 | I73: 5330.80 | J73: 5350.15 | K73: 5311.45 | L73: 5272.05 | M73: 1.3645
A74: 65 | B74: DLF | C74: 629.15 | D74: 626.73 | E74: 621.67 | F74: 614.18 | G74: 609.12 | H74: 634.22 | I74: 639.28 | J74: 646.77 | K74: 631.8 | L74: 619.25 | M74: 45.35901
A75: 66 | B75: DMART | C75: 3912.15 | D75: 3887.05 | E75: 3840.10 | F75: 3768.05 | G75: 3721.10 | H75: 3959.10 | I75: 4006.05 | J75: 4078.10 | K75: 3934 | L75: 3815 | M75: 4.49705
A76: 67 | B76: DRREDDY | C76: 5675.8 | D76: 5679.08 | E76: 5643.72 | F76: 5611.63 | G76: 5576.27 | H76: 5711.17 | I76: 5746.53 | J76: 5778.62 | K76: 5714.45 | L76: 5647 | M76: 3.11158
A77: 68 | B77: EICHERMOT | C77: 3826.7 | D77: 3832.20 | E77: 3772.25 | F77: 3717.80 | G77: 3657.85 | H77: 3886.65 | I77: 3946.60 | J77: 4001.05 | K77: 3892.15 | L77: 3777.75 | M77: 5.05274
A78: 69 | B78: ESCORTS | C78: 3196.2 | D78: 3211.55 | E78: 3174.10 | F78: 3152.00 | G78: 3114.55 | H78: 3233.65 | I78: 3271.10 | J78: 3293.20 | K78: 3249 | L78: 3189.45 | M78: 1.63391
A79: 70 | B79: FEDERALBNK | C79: 149.95 | D79: 149.07 | E79: 147.58 | F79: 145.22 | G79: 143.73 | H79: 151.43 | I79: 152.92 | J79: 155.28 | K79: 150.55 | L79: 146.7 | M79: 71.6875
A80: 71 | B80: FLUOROCHEM | C80: 2891.7 | D80: 2902.28 | E80: 2856.62 | F80: 2821.53 | G80: 2775.87 | H80: 2937.37 | I80: 2983.03 | J80: 3018.12 | K80: 2947.95 | L80: 2867.2 | M80: 1.11643
A81: 72 | B81: FORTIS | C81: 373.25 | D81: 370.78 | E81: 367.57 | F81: 361.88 | G81: 358.67 | H81: 376.47 | I81: 379.68 | J81: 385.37 | K81: 374 | L81: 365.1 | M81: 25.07207
A82: 73 | B82: GAIL | C82: 125.3 | D82: 125.13 | E82: 123.82 | F82: 122.33 | G82: 121.02 | H82: 126.62 | I82: 127.93 | J82: 129.42 | K82: 126.45 | L82: 123.65 | M82: 199.5579
A83: 74 | B83: GLAND | C83: 1785.1 | D83: 1783.02 | E83: 1768.08 | F83: 1751.07 | G83: 1736.13 | H83: 1800.03 | I83: 1814.97 | J83: 1831.98 | K83: 1797.95 | L83: 1766 | M83: 6.30302
A84: 75 | B84: GODREJCP | C84: 1001.75 | D84: 1002.60 | E84: 995.25 | F84: 988.75 | G84: 981.40 | H84: 1009.10 | I84: 1016.45 | J84: 1022.95 | K84: 1009.95 | L84: 996.1 | M84: 12.4948
A85: 76 | B85: GODREJPROP | C85: 1839.5 | D85: 1842.00 | E85: 1820.65 | F85: 1801.80 | G85: 1780.45 | H85: 1860.85 | I85: 1882.20 | J85: 1901.05 | K85: 1863.35 | L85: 1823.15 | M85: 4.18868
A86: 77 | B86: GRASIM | C86: 1975.9 | D86: 1972.05 | E86: 1957.10 | F86: 1938.30 | G86: 1923.35 | H86: 1990.85 | I86: 2005.80 | J86: 2024.60 | K86: 1987 | L86: 1953.25 | M86: 6.96321
A87: 78 | B87: GUJGASLTD | C87: 427.95 | D87: 426.95 | E87: 425.10 | F87: 422.25 | G87: 420.40 | H87: 429.80 | I87: 431.65 | J87: 434.50 | K87: 428.8 | L87: 424.1 | M87: 4.29173
A88: 79 | B88: HAL | C88: 2287 | D88: 2295.78 | E88: 2257.22 | F88: 2227.43 | G88: 2188.87 | H88: 2325.57 | I88: 2364.13 | J88: 2393.92 | K88: 2334.35 | L88: 2266 | M88: 34.88568
A89: 80 | B89: HAVELLS | C89: 1281.25 | D89: 1284.53 | E89: 1274.72 | F89: 1268.18 | G89: 1258.37 | H89: 1291.07 | I89: 1300.88 | J89: 1307.42 | K89: 1294.35 | L89: 1278 | M89: 4.46363
A90: 81 | B90: HCLTECH | C90: 1316.65 | D90: 1310.62 | E90: 1301.33 | F90: 1286.02 | G90: 1276.73 | H90: 1325.93 | I90: 1335.22 | J90: 1350.53 | K90: 1319.9 | L90: 1295.3 | M90: 21.52951
A91: 82 | B91: HDFCAMC | C91: 2898.3 | D91: 2894.83 | E91: 2851.47 | F91: 2804.63 | G91: 2761.27 | H91: 2941.67 | I91: 2985.03 | J91: 3031.87 | K91: 2938.2 | L91: 2848 | M91: 5.65796
A92: 83 | B92: HDFCBANK | C92: 1528.65 | D92: 1530.57 | E92: 1523.88 | F92: 1519.12 | G92: 1512.43 | H92: 1535.33 | I92: 1542.02 | J92: 1546.78 | K92: 1537.25 | L92: 1525.8 | M92: 142.44669
A93: 84 | B93: HDFCLIFE | C93: 673.3 | D93: 672.68 | E93: 668.67 | F93: 664.03 | G93: 660.02 | H93: 677.32 | I93: 681.33 | J93: 685.97 | K93: 676.7 | L93: 668.05 | M93: 19.00825
A94: 85 | B94: HEROMOTOCO | C94: 3622 | D94: 3601.68 | E94: 3575.37 | F94: 3528.73 | G94: 3502.42 | H94: 3648.32 | I94: 3674.63 | J94: 3721.27 | K94: 3628 | L94: 3555.05 | M94: 6.59645
A95: 86 | B95: HINDALCO | C95: 515.6 | D95: 514.55 | E95: 510.85 | F95: 506.10 | G95: 502.40 | H95: 519.30 | I95: 523.00 | J95: 527.75 | K95: 518.25 | L95: 509.8 | M95: 78.04926
A96: 87 | B96: HINDPETRO | C96: 342.75 | D96: 337.62 | E96: 330.23 | F96: 317.72 | G96: 310.33 | H96: 350.13 | I96: 357.52 | J96: 370.03 | K96: 345 | L96: 325.1 | M96: 264.84193
A97: 88 | B97: HINDUNILVR | C97: 2510.55 | D97: 2514.10 | E97: 2496.45 | F97: 2482.35 | G97: 2464.70 | H97: 2528.20 | I97: 2545.85 | J97: 2559.95 | K97: 2531.75 | L97: 2500 | M97: 18.80641
A98: 89 | B98: HINDZINC | C98: 300.8 | D98: 301.18 | E98: 299.62 | F98: 298.43 | G98: 296.87 | H98: 302.37 | I98: 303.93 | J98: 305.12 | K98: 302.75 | L98: 300 | M98: 1.97865
A99: 90 | B99: HONAUT | C99: 36660.15 | D99: 36768.38 | E99: 36491.77 | F99: 36323.38 | G99: 36046.77 | H99: 36936.77 | I99: 37213.38 | J99: 37381.77 | K99: 37045 | L99: 36600 | M99: 0.0154
A100: 91 | B100: ICICIBANK | C100: 925.5 | D100: 926.08 | E100: 921.12 | F100: 916.73 | G100: 911.77 | H100: 930.47 | I100: 935.43 | J100: 939.82 | K100: 931.05 | L100: 921.7 | M100: 142.31987
A101: 92 | B101: ICICIGI | C101: 1450.1 | D101: 1447.00 | E101: 1436.15 | F101: 1422.20 | G101: 1411.35 | H101: 1460.95 | I101: 1471.80 | J101: 1485.75 | K101: 1457.85 | L101: 1433.05 | M101: 11.0612
A102: 93 | B102: ICICIPRULI | C102: 551.55 | D102: 553.22 | E102: 548.83 | F102: 546.12 | G102: 541.73 | H102: 555.93 | I102: 560.32 | J102: 563.03 | K102: 557.6 | L102: 550.5 | M102: 9.62469
A103: 94 | B103: IDEA | C103: 13.25 | D103: 13.32 | E103: 13.03 | F103: 12.82 | G103: 12.53 | H103: 13.53 | I103: 13.82 | J103: 14.03 | K103: 13.6 | L103: 13.1 | M103: 1383.60228
A104: 95 | B104: IDFCFIRSTB | C104: 85.25 | D104: 84.98 | E104: 84.42 | F104: 83.58 | G104: 83.02 | H104: 85.82 | I104: 86.38 | J104: 87.22 | K104: 85.55 | L104: 84.15 | M104: 255.97715
A105: 96 | B105: IGL | C105: 389.6 | D105: 390.17 | E105: 387.33 | F105: 385.07 | G105: 382.23 | H105: 392.43 | I105: 395.27 | J105: 397.53 | K105: 393 | L105: 387.9 | M105: 23.00124
A106: 97 | B106: INDHOTEL | C106: 422.75 | D106: 421.93 | E106: 419.12 | F106: 415.48 | G106: 412.67 | H106: 425.57 | I106: 428.38 | J106: 432.02 | K106: 424.75 | L106: 418.3 | M106: 24.02488
A107: 98 | B107: INDIANB | C107: 403.05 | D107: 405.55 | E107: 399.10 | F107: 395.15 | G107: 388.70 | H107: 409.50 | I107: 415.95 | J107: 419.90 | K107: 412 | L107: 401.6 | M107: 11.12045
A108: 99 | B108: INDIGO | C108: 2642.45 | D108: 2622.48 | E108: 2594.97 | F108: 2547.48 | G108: 2519.97 | H108: 2669.97 | I108: 2697.48 | J108: 2744.97 | K108: 2650 | L108: 2575 | M108: 4.29852
A109: 100 | B109: INDUSINDBK | C109: 1477.55 | D109: 1477.45 | E109: 1468.10 | F109: 1458.65 | G109: 1449.30 | H109: 1486.90 | I109: 1496.25 | J109: 1505.70 | K109: 1486.8 | L109: 1468 | M109: 43.05915
A110: 101 | B110: INDUSTOWER | C110: 184.85 | D110: 185.00 | E110: 184.05 | F110: 183.25 | G110: 182.30 | H110: 185.80 | I110: 186.75 | J110: 187.55 | K110: 185.95 | L110: 184.2 | M110: 29.61178
A111: 102 | B111: INFY | C111: 1442.7 | D111: 1438.25 | E111: 1431.50 | F111: 1420.30 | G111: 1413.55 | H111: 1449.45 | I111: 1456.20 | J111: 1467.40 | K111: 1445 | L111: 1427.05 | M111: 37.55373
A112: 103 | B112: IOC | C112: 108.2 | D112: 106.97 | E112: 105.33 | F112: 102.47 | G112: 100.83 | H112: 109.83 | I112: 111.47 | J112: 114.33 | K112: 108.6 | L112: 104.1 | M112: 611.27565
A113: 104 | B113: IPCALAB | C113: 1097.65 | D113: 1100.52 | E113: 1089.18 | F113: 1080.72 | G113: 1069.38 | H113: 1108.98 | I113: 1120.32 | J113: 1128.78 | K113: 1111.85 | L113: 1092.05 | M113: 5.59276
A114: 105 | B114: IRCTC | C114: 696.8 | D114: 696.27 | E114: 693.33 | F114: 689.87 | G114: 686.93 | H114: 699.73 | I114: 702.67 | J114: 706.13 | K114: 699.2 | L114: 692.8 | M114: 8.77968
A115: 106 | B115: IRFC | C115: 75.6 | D115: 75.87 | E115: 74.98 | F115: 74.37 | G115: 73.48 | H115: 76.48 | I115: 77.37 | J115: 77.98 | K115: 76.75 | L115: 75.25 | M115: 250.80614
A116: 107 | B116: ITC | C116: 435.25 | D116: 436.38 | E116: 433.77 | F116: 432.28 | G116: 429.67 | H116: 437.87 | I116: 440.48 | J116: 441.97 | K116: 439 | L116: 434.9 | M116: 87.45691
A117: 108 | B117: JINDALSTEL | C117: 668.4 | D117: 664.65 | E117: 659.25 | F117: 650.10 | G117: 644.70 | H117: 673.80 | I117: 679.20 | J117: 688.35 | K117: 670.05 | L117: 655.5 | M117: 25.68165
A118: 109 | B118: JSWENERGY | C118: 409.45 | D118: 413.08 | E118: 403.22 | F118: 396.98 | G118: 387.12 | H118: 419.32 | I118: 429.18 | J118: 435.42 | K118: 422.95 | L118: 406.85 | M118: 24.67926
A119: 110 | B119: JSWSTEEL | C119: 782.35 | D119: 782.22 | E119: 778.88 | F119: 775.42 | G119: 772.08 | H119: 785.68 | I119: 789.02 | J119: 792.48 | K119: 785.55 | L119: 778.75 | M119: 8.58569
A120: 111 | B120: JUBLFOOD | C120: 544.7 | D120: 544.75 | E120: 539.75 | F120: 534.80 | G120: 529.80 | H120: 549.70 | I120: 554.70 | J120: 559.65 | K120: 549.75 | L120: 539.8 | M120: 21.68765
A121: 112 | B121: KOTAKBANK | C121: 1742.25 | D121: 1742.75 | E121: 1737.50 | F121: 1732.75 | G121: 1727.50 | H121: 1747.50 | I121: 1752.75 | J121: 1757.50 | K121: 1748 | L121: 1738 | M121: 33.49292
A122: 113 | B122: L&TFH | C122: 144.75 | D122: 143.28 | E122: 141.42 | F122: 138.08 | G122: 136.22 | H122: 146.62 | I122: 148.48 | J122: 151.82 | K122: 145.15 | L122: 139.95 | M122: 67.35882
A123: 114 | B123: LALPATHLAB | C123: 2647.55 | D123: 2664.63 | E123: 2624.52 | F123: 2601.48 | G123: 2561.37 | H123: 2687.67 | I123: 2727.78 | J123: 2750.82 | K123: 2704.75 | L123: 2641.6 | M123: 2.22358
A124: 115 | B124: LAURUSLABS | C124: 370.75 | D124: 371.62 | E124: 368.28 | F124: 365.82 | G124: 362.48 | H124: 374.08 | I124: 377.42 | J124: 379.88 | K124: 374.95 | L124: 369.15 | M124: 6.06473
A125: 116 | B125: LICHSGFIN | C125: 457.7 | D125: 456.77 | E125: 454.03 | F125: 450.37 | G125: 447.63 | H125: 460.43 | I125: 463.17 | J125: 466.83 | K125: 459.5 | L125: 453.1 | M125: 19.13696
A126: 117 | B126: LICI | C126: 674.3 | D126: 679.97 | E126: 665.43 | F126: 656.57 | G126: 642.03 | H126: 688.83 | I126: 703.37 | J126: 712.23 | K126: 694.5 | L126: 671.1 | M126: 80.34353
A127: 118 | B127: LT | C127: 3050 | D127: 3048.05 | E127: 3036.95 | F127: 3023.90 | G127: 3012.80 | H127: 3061.10 | I127: 3072.20 | J127: 3085.25 | K127: 3059.15 | L127: 3035 | M127: 12.10508
A128: 119 | B128: LTIM | C128: 5479.25 | D128: 5458.95 | E128: 5427.90 | F128: 5376.55 | G128: 5345.50 | H128: 5510.30 | I128: 5541.35 | J128: 5592.70 | K128: 5490 | L128: 5407.6 | M128: 2.63892
A129: 120 | B129: LTTS | C129: 4591.35 | D129: 4577.12 | E129: 4554.23 | F129: 4517.12 | G129: 4494.23 | H129: 4614.23 | I129: 4637.12 | J129: 4674.23 | K129: 4600 | L129: 4540 | M129: 0.75975
A130: 121 | B130: LUPIN | C130: 1244.95 | D130: 1244.08 | E130: 1236.62 | F130: 1228.28 | G130: 1220.82 | H130: 1252.42 | I130: 1259.88 | J130: 1268.22 | K130: 1251.55 | L130: 1235.75 | M130: 8.06664
A131: 122 | B131: M&M | C131: 1566.05 | D131: 1560.07 | E131: 1548.13 | F131: 1530.22 | G131: 1518.28 | H131: 1577.98 | I131: 1589.92 | J131: 1607.83 | K131: 1572 | L131: 1542.15 | M131: 25.96766
A132: 123 | B132: M&MFIN | C132: 270.45 | D132: 268.13 | E132: 264.92 | F132: 259.38 | G132: 256.17 | H132: 273.67 | I132: 276.88 | J132: 282.42 | K132: 271.35 | L132: 262.6 | M132: 16.93274
A133: 124 | B133: MANKIND | C133: 1896.35 | D133: 1907.12 | E133: 1879.23 | F133: 1862.12 | G133: 1834.23 | H133: 1924.23 | I133: 1952.12 | J133: 1969.23 | K133: 1935 | L133: 1890 | M133: 1.25665
A134: 125 | B134: MARICO | C134: 525.15 | D134: 524.38 | E134: 522.12 | F134: 519.08 | G134: 516.82 | H134: 527.42 | I134: 529.68 | J134: 532.72 | K134: 526.65 | L134: 521.35 | M134: 12.84496
A135: 126 | B135: MARUTI | C135: 10537.55 | D135: 10533.32 | E135: 10510.23 | F135: 10482.92 | G135: 10459.83 | H135: 10560.63 | I135: 10583.72 | J135: 10611.03 | K135: 10556.4 | L135: 10506 | M135: 2.68026
A136: 127 | B136: MAXHEALTH | C136: 601.65 | D136: 606.97 | E136: 593.83 | F136: 586.02 | G136: 572.88 | H136: 614.78 | I136: 627.92 | J136: 635.73 | K136: 620.1 | L136: 599.15 | M136: 11.62012
A137: 128 | B137: MCDOWELL-N | C137: 1041.15 | D137: 1039.40 | E137: 1033.80 | F137: 1026.45 | G137: 1020.85 | H137: 1046.75 | I137: 1052.35 | J137: 1059.70 | K137: 1045 | L137: 1032.05 | M137: 6.38605
A138: 129 | B138: MFSL | C138: 1005.3 | D138: 996.53 | E138: 978.12 | F138: 950.93 | G138: 932.52 | H138: 1023.72 | I138: 1042.13 | J138: 1069.32 | K138: 1014.95 | L138: 969.35 | M138: 20.72808
A139: 130 | B139: MOTHERSON | C139: 89.95 | D139: 89.02 | E139: 87.73 | F139: 85.52 | G139: 84.23 | H139: 91.23 | I139: 92.52 | J139: 94.73 | K139: 90.3 | L139: 86.8 | M139: 137.89535
A140: 131 | B140: MPHASIS | C140: 2299.8 | D140: 2302.72 | E140: 2270.48 | F140: 2241.17 | G140: 2208.93 | H140: 2332.03 | I140: 2364.27 | J140: 2393.58 | K140: 2334.95 | L140: 2273.4 | M140: 5.61736
A141: 132 | B141: MRF | C141: 111546.95 | D141: 111515.65 | E141: 111231.30 | F141: 110915.65 | G141: 110631.30 | H141: 111831.30 | I141: 112115.65 | J141: 112431.30 | K141: 111800 | L141: 111200 | M141: 0.03104
A142: 133 | B142: MSUMI | C142: 60.7 | D142: 60.65 | E142: 60.05 | F142: 59.40 | G142: 58.80 | H142: 61.30 | I142: 61.90 | J142: 62.55 | K142: 61.25 | L142: 60 | M142: 30.85483
A143: 134 | B143: MUTHOOTFIN | C143: 1342.75 | D143: 1337.37 | E143: 1329.73 | F143: 1316.72 | G143: 1309.08 | H143: 1350.38 | I143: 1358.02 | J143: 1371.03 | K143: 1345 | L143: 1324.35 | M143: 4.28007
A144: 135 | B144: NAUKRI | C144: 4550 | D144: 4564.82 | E144: 4523.48 | F144: 4496.97 | G144: 4455.63 | H144: 4591.33 | I144: 4632.67 | J144: 4659.18 | K144: 4606.15 | L144: 4538.3 | M144: 1.62661
A145: 136 | B145: NAVINFLUOR | C145: 3692.7 | D145: 3702.52 | E145: 3661.63 | F145: 3630.57 | G145: 3589.68 | H145: 3733.58 | I145: 3774.47 | J145: 3805.53 | K145: 3743.4 | L145: 3671.45 | M145: 1.87097
A146: 137 | B146: NESTLEIND | C146: 24218.6 | D146: 24120.58 | E146: 23981.17 | F146: 23743.73 | G146: 23604.32 | H146: 24358.02 | I146: 24497.43 | J146: 24734.87 | K146: 24260 | L146: 23883.15 | M146: 0.87697
A147: 138 | B147: NHPC | C147: 53.85 | D147: 54.13 | E147: 53.37 | F147: 52.88 | G147: 52.12 | H147: 54.62 | I147: 55.38 | J147: 55.87 | K147: 54.9 | L147: 53.65 | M147: 165.24338
A148: 139 | B148: NMDC | C148: 181.65 | D148: 179.27 | E148: 176.13 | F148: 170.62 | G148: 167.48 | H148: 184.78 | I148: 187.92 | J148: 193.43 | K148: 182.4 | L148: 173.75 | M148: 221.60056
A149: 140 | B149: NTPC | C149: 257.55 | D149: 256.50 | E149: 254.70 | F149: 251.85 | G149: 250.05 | H149: 259.35 | I149: 261.15 | J149: 264.00 | K149: 258.3 | L149: 253.65 | M149: 61.51585
A150: 141 | B150: NYKAA | C150: 169.3 | D150: 169.03 | E150: 165.72 | F150: 162.13 | G150: 158.82 | H150: 172.62 | I150: 175.93 | J150: 179.52 | K150: 172.35 | L150: 165.45 | M150: 65.14133
A151: 142 | B151: OBEROIRLTY | C151: 1410.4 | D151: 1401.27 | E151: 1385.18 | F151: 1359.97 | G151: 1343.88 | H151: 1426.48 | I151: 1442.57 | J151: 1467.78 | K151: 1417.35 | L151: 1376.05 | M151: 6.62461
A152: 143 | B152: OFSS | C152: 4025.9 | D152: 4011.18 | E152: 3972.47 | F152: 3919.03 | G152: 3880.32 | H152: 4064.62 | I152: 4103.33 | J152: 4156.77 | K152: 4049.9 | L152: 3957.75 | M152: 1.39291
A153: 144 | B153: OIL | C153: 298.95 | D153: 298.67 | E153: 293.48 | F153: 288.02 | G153: 282.83 | H153: 304.13 | I153: 309.32 | J153: 314.78 | K153: 303.85 | L153: 293.2 | M153: 19.03035
A154: 145 | B154: ONGC | C154: 193.95 | D154: 192.27 | E154: 190.08 | F154: 186.22 | G154: 184.03 | H154: 196.13 | I154: 198.32 | J154: 202.18 | K154: 194.45 | L154: 188.4 | M154: 92.77764
A155: 146 | B155: PAGEIND | C155: 37653.35 | D155: 37677.60 | E155: 37382.20 | F155: 37111.05 | G155: 36815.65 | H155: 37948.75 | I155: 38244.15 | J155: 38515.30 | K155: 37973 | L155: 37406.45 | M155: 0.21591
A156: 147 | B156: PATANJALI | C156: 1337.75 | D156: 1334.95 | E156: 1322.90 | F156: 1308.05 | G156: 1296.00 | H156: 1349.80 | I156: 1361.85 | J156: 1376.70 | K156: 1347 | L156: 1320.1 | M156: 3.45412
A157: 148 | B157: PAYTM | C157: 888.65 | D157: 887.27 | E157: 879.53 | F157: 870.42 | G157: 862.68 | H157: 896.38 | I157: 904.12 | J157: 913.23 | K157: 895 | L157: 878.15 | M157: 45.86218
A158: 149 | B158: PEL | C158: 908.3 | D158: 901.62 | E158: 891.98 | F158: 875.67 | G158: 866.03 | H158: 917.93 | I158: 927.57 | J158: 943.88 | K158: 911.25 | L158: 885.3 | M158: 21.35427
A159: 150 | B159: PERSISTENT | C159: 6319.1 | D159: 6345.03 | E159: 6250.07 | F159: 6181.03 | G159: 6086.07 | H159: 6414.07 | I159: 6509.03 | J159: 6578.07 | K159: 6440 | L159: 6276 | M159: 5.70088
A160: 151 | B160: PETRONET | C160: 196.35 | D160: 196.35 | E160: 195.40 | F160: 194.45 | G160: 193.50 | H160: 197.30 | I160: 198.25 | J160: 199.20 | K160: 197.3 | L160: 195.4 | M160: 73.56644
A161: 152 | B161: PFC | C161: 320.55 | D161: 317.37 | E161: 312.73 | F161: 304.92 | G161: 300.28 | H161: 325.18 | I161: 329.82 | J161: 337.63 | K161: 322 | L161: 309.55 | M161: 123.93794
A162: 153 | B162: PGHH | C162: 17579.4 | D162: 17670.28 | E162: 17409.12 | F162: 17238.83 | G162: 16977.67 | H162: 17840.57 | I162: 18101.73 | J162: 18272.02 | K162: 17931.45 | L162: 17500 | M162: 0.07174
A163: 154 | B163: PIDILITIND | C163: 2488.05 | D163: 2494.70 | E163: 2475.10 | F163: 2462.15 | G163: 2442.55 | H163: 2507.65 | I163: 2527.25 | J163: 2540.20 | K163: 2514.3 | L163: 2481.75 | M163: 2.29294
A164: 155 | B164: PIIND | C164: 3740.35 | D164: 3728.62 | E164: 3691.73 | F164: 3643.12 | G164: 3606.23 | H164: 3777.23 | I164: 3814.12 | J164: 3862.73 | K164: 3765.5 | L164: 3680 | M164: 3.01275
A165: 156 | B165: PNB | C165: 78.55 | D165: 77.92 | E165: 76.23 | F165: 73.92 | G165: 72.23 | H165: 80.23 | I165: 81.92 | J165: 84.23 | K165: 79.6 | L165: 75.6 | M165: 439.66316
A166: 157 | B166: POLICYBZR | C166: 819.2 | D166: 823.78 | E166: 808.77 | F166: 798.33 | G166: 783.32 | H166: 834.22 | I166: 849.23 | J166: 859.67 | K166: 838.8 | L166: 813.35 | M166: 6.11177
A167: 158 | B167: POLYCAB | C167: 5199.75 | D167: 5222.92 | E167: 5136.83 | F167: 5073.92 | G167: 4987.83 | H167: 5285.83 | I167: 5371.92 | J167: 5434.83 | K167: 5309 | L167: 5160 | M167: 8.49883
A168: 159 | B168: POONAWALLA | C168: 363.9 | D168: 363.25 | E168: 358.85 | F168: 353.80 | G168: 349.40 | H168: 368.30 | I168: 372.70 | J168: 377.75 | K168: 367.65 | L168: 358.2 | M168: 28.42462
A169: 160 | B169: POWERGRID | C169: 210.2 | D169: 211.38 | E169: 208.32 | F169: 206.43 | G169: 203.37 | H169: 213.27 | I169: 216.33 | J169: 218.22 | K169: 214.45 | L169: 209.5 | M169: 156.29209
A170: 161 | B170: PRESTIGE | C170: 956.7 | D170: 951.77 | E170: 935.53 | F170: 914.37 | G170: 898.13 | H170: 972.93 | I170: 989.17 | J170: 1010.33 | K170: 968 | L170: 930.6 | M170: 6.11069
A171: 162 | B171: RAMCOCEM | C171: 971.55 | D171: 969.18 | E171: 962.42 | F171: 953.28 | G171: 946.52 | H171: 978.32 | I171: 985.08 | J171: 994.22 | K171: 975.95 | L171: 960.05 | M171: 3.01132
A172: 163 | B172: RECLTD | C172: 339.05 | D172: 337.77 | E172: 333.13 | F172: 327.22 | G172: 322.58 | H172: 343.68 | I172: 348.32 | J172: 354.23 | K172: 342.4 | L172: 331.85 | M172: 99.94686
A173: 164 | B173: RELIANCE | C173: 2394.4 | D173: 2389.78 | E173: 2379.87 | F173: 2365.33 | G173: 2355.42 | H173: 2404.32 | I173: 2414.23 | J173: 2428.77 | K173: 2399.7 | L173: 2375.25 | M173: 68.96087
A174: 165 | B174: SAIL | C174: 90.95 | D174: 90.58 | E174: 89.77 | F174: 88.58 | G174: 87.77 | H174: 91.77 | I174: 92.58 | J174: 93.77 | K174: 91.4 | L174: 89.4 | M174: 192.52753
A175: 166 | B175: SBICARD | C175: 733.75 | D175: 736.88 | E175: 729.07 | F175: 724.38 | G175: 716.57 | H175: 741.57 | I175: 749.38 | J175: 754.07 | K175: 744.7 | L175: 732.2 | M175: 23.66981
A176: 167 | B176: SBILIFE | C176: 1412.45 | D176: 1407.62 | E176: 1397.93 | F176: 1383.42 | G176: 1373.73 | H176: 1422.13 | I176: 1431.82 | J176: 1446.33 | K176: 1417.3 | L176: 1393.1 | M176: 11.2347
A177: 168 | B177: SBIN | C177: 564.45 | D177: 563.58 | E177: 561.97 | F177: 559.48 | G177: 557.87 | H177: 566.07 | I177: 567.68 | J177: 570.17 | K177: 565.2 | L177: 561.1 | M177: 81.53314
A178: 169 | B178: SHREECEM | C178: 26067.45 | D178: 25999.48 | E178: 25667.97 | F178: 25268.48 | G178: 24936.97 | H178: 26398.97 | I178: 26730.48 | J178: 27129.97 | K178: 26331 | L178: 25600 | M178: 0.16523
A179: 170 | B179: SHRIRAMFIN | C179: 1965.7 | D179: 1956.75 | E179: 1943.50 | F179: 1921.30 | G179: 1908.05 | H179: 1978.95 | I179: 1992.20 | J179: 2014.40 | K179: 1970 | L179: 1934.55 | M179: 7.20833
A180: 171 | B180: SIEMENS | C180: 3646.5 | D180: 3626.35 | E180: 3595.70 | F180: 3544.90 | G180: 3514.25 | H180: 3677.15 | I180: 3707.80 | J180: 3758.60 | K180: 3657 | L180: 3575.55 | M180: 2.70594
A181: 172 | B181: SONACOMS | C181: 558.25 | D181: 562.38 | E181: 551.37 | F181: 544.48 | G181: 533.47 | H181: 569.27 | I181: 580.28 | J181: 587.17 | K181: 573.4 | L181: 555.5 | M181: 13.75997
A182: 173 | B182: SRF | C182: 2351.6 | D182: 2349.33 | E182: 2333.67 | F182: 2315.73 | G182: 2300.07 | H182: 2367.27 | I182: 2382.93 | J182: 2400.87 | K182: 2365 | L182: 2331.4 | M182: 2.62258
A183: 174 | B183: SUNPHARMA | C183: 1191.35 | D183: 1193.82 | E183: 1187.28 | F183: 1183.22 | G183: 1176.68 | H183: 1197.88 | I183: 1204.42 | J183: 1208.48 | K183: 1200.35 | L183: 1189.75 | M183: 8.86708
A184: 175 | B184: SUNTV | C184: 674.7 | D184: 671.23 | E184: 666.47 | F184: 658.23 | G184: 653.47 | H184: 679.47 | I184: 684.23 | J184: 692.47 | K184: 676 | L184: 663 | M184: 7.78221
A185: 176 | B185: SYNGENE | C185: 750.55 | D185: 749.75 | E185: 742.80 | F185: 735.05 | G185: 728.10 | H185: 757.50 | I185: 764.45 | J185: 772.20 | K185: 756.7 | L185: 742 | M185: 13.96553
A186: 177 | B186: TATACHEM | C186: 968.55 | D186: 966.37 | E186: 960.78 | F186: 953.02 | G186: 947.43 | H186: 974.13 | I186: 979.72 | J186: 987.48 | K186: 971.95 | L186: 958.6 | M186: 5.42859
A187: 178 | B187: TATACOMM | C187: 1683.5 | D187: 1697.27 | E187: 1666.53 | F187: 1649.57 | G187: 1618.83 | H187: 1714.23 | I187: 1744.97 | J187: 1761.93 | K187: 1728 | L187: 1680.3 | M187: 14.94681
A188: 179 | B188: TATACONSUM | C188: 931.85 | D188: 930.52 | E188: 926.08 | F188: 920.32 | G188: 915.88 | H188: 936.28 | I188: 940.72 | J188: 946.48 | K188: 934.95 | L188: 924.75 | M188: 9.04835
A189: 180 | B189: TATAELXSI | C189: 8306.2 | D189: 8329.87 | E189: 8179.78 | F189: 8053.37 | G189: 7903.28 | H189: 8456.28 | I189: 8606.37 | J189: 8732.78 | K189: 8479.95 | L189: 8203.45 | M189: 1.28466
A190: 181 | B190: TATAMOTORS | C190: 697.5 | D190: 690.40 | E190: 681.35 | F190: 665.20 | G190: 656.15 | H190: 706.55 | I190: 715.60 | J190: 731.75 | K190: 699.45 | L190: 674.25 | M190: 160.1586
A191: 182 | B191: TATAPOWER | C191: 270.8 | D191: 266.90 | E191: 262.40 | F191: 254.00 | G191: 249.50 | H191: 275.30 | I191: 279.80 | J191: 288.20 | K191: 271.4 | L191: 258.5 | M191: 247.45437
A192: 183 | B192: TATASTEEL | C192: 126.85 | D192: 126.62 | E192: 126.23 | F192: 125.62 | G192: 125.23 | H192: 127.23 | I192: 127.62 | J192: 128.23 | K192: 127 | L192: 126 | M192: 183.77843
A193: 184 | B193: TCS | C193: 3470.15 | D193: 3461.47 | E193: 3441.68 | F193: 3413.22 | G193: 3393.43 | H193: 3489.93 | I193: 3509.72 | J193: 3538.18 | K193: 3481.25 | L193: 3433 | M193: 16.89195
A194: 185 | B194: TECHM | C194: 1202.4 | D194: 1199.13 | E194: 1189.27 | F194: 1176.13 | G194: 1166.27 | H194: 1212.27 | I194: 1222.13 | J194: 1235.27 | K194: 1209 | L194: 1186 | M194: 9.10795
A195: 186 | B195: TIINDIA | C195: 3421.75 | D195: 3425.07 | E195: 3372.28 | F195: 3322.82 | G195: 3270.03 | H195: 3474.53 | I195: 3527.32 | J195: 3576.78 | K195: 3477.85 | L195: 3375.6 | M195: 1.44251
A196: 187 | B196: TITAN | C196: 3442.4 | D196: 3428.57 | E196: 3411.18 | F196: 3379.97 | G196: 3362.58 | H196: 3459.78 | I196: 3477.17 | J196: 3508.38 | K196: 3445.95 | L196: 3397.35 | M196: 7.33524
A197: 188 | B197: TORNTPHARM | C197: 2079 | D197: 2085.48 | E197: 2065.77 | F197: 2052.53 | G197: 2032.82 | H197: 2098.72 | I197: 2118.43 | J197: 2131.67 | K197: 2105.2 | L197: 2072.25 | M197: 3.06047
A198: 189 | B198: TORNTPOWER | C198: 844.05 | D198: 842.33 | E198: 819.67 | F198: 795.28 | G198: 772.62 | H198: 866.72 | I198: 889.38 | J198: 913.77 | K198: 865 | L198: 817.95 | M198: 9.62879
A199: 190 | B199: TRENT | C199: 2671.75 | D199: 2666.77 | E199: 2650.03 | F199: 2628.32 | G199: 2611.58 | H199: 2688.48 | I199: 2705.22 | J199: 2726.93 | K199: 2683.5 | L199: 2645.05 | M199: 5.35972
A200: 191 | B200: TRIDENT | C200: 36.6 | D200: 36.75 | E200: 36.35 | F200: 36.10 | G200: 35.70 | H200: 37.00 | I200: 37.40 | J200: 37.65 | K200: 37.15 | L200: 36.5 | M200: 62.94535
A201: 192 | B201: TTML | C201: 88.2 | D201: 88.67 | E201: 87.58 | F201: 86.97 | G201: 85.88 | H201: 89.28 | I201: 90.37 | J201: 90.98 | K201: 89.75 | L201: 88.05 | M201: 22.3939
A202: 193 | B202: TVSMOTOR | C202: 1824.1 | D202: 1817.68 | E202: 1805.42 | F202: 1786.73 | G202: 1774.47 | H202: 1836.37 | I202: 1848.63 | J202: 1867.32 | K202: 1829.95 | L202: 1799 | M202: 9.57141
A203: 194 | B203: UBL | C203: 1612.35 | D203: 1605.47 | E203: 1587.88 | F203: 1563.42 | G203: 1545.83 | H203: 1629.93 | I203: 1647.52 | J203: 1671.98 | K203: 1623.05 | L203: 1581 | M203: 3.14501
A204: 195 | B204: ULTRACEMCO | C204: 8726.5 | D204: 8683.42 | E204: 8631.33 | F204: 8536.17 | G204: 8484.08 | H204: 8778.58 | I204: 8830.67 | J204: 8925.83 | K204: 8735.5 | L204: 8588.25 | M204: 3.43335
A205: 196 | B205: UNIONBANK | C205: 108.2 | D205: 108.23 | E205: 106.57 | F205: 104.93 | G205: 103.27 | H205: 109.87 | I205: 111.53 | J205: 113.17 | K205: 109.9 | L205: 106.6 | M205: 143.94577
... 28 more rows

Sheet MidCap Intra
L5: Back To Main Page
A6: FOR INTRA DAY TRADING | K6: =Main!B10 -> 2023-11-29
A9: Sr.no | B9: Scrip | C9: CLOSE RATE | D9: Pivot Point | E9: Supports | H9: Resistances
E10: S1 | F10: S2 | G10: S3 | H10: R1 | I10: R2 | J10: R3 | K10: HIGH | L10: LOW | M10: Total Trade Quanity in Lakhs
A11: 1 | B11: 360ONE | C11: 543.9 | D11: 543.60 | E11: 539.80 | F11: 535.70 | G11: 531.90 | H11: 547.70 | I11: 551.50 | J11: 555.60 | K11: 547.4 | L11: 539.5 | M11: 2.42257
A12: 2 | B12: 3MINDIA | C12: 30424 | D12: 30542.67 | E12: 30187.33 | F12: 29950.67 | G12: 29595.33 | H12: 30779.33 | I12: 31134.67 | J12: 31371.33 | K12: 30898 | L12: 30306 | M12: 0.047
A13: 3 | B13: AARTIDRUGS | C13: 494.95 | D13: 492.95 | E13: 485.00 | F13: 475.05 | G13: 467.10 | H13: 502.90 | I13: 510.85 | J13: 520.80 | K13: 500.9 | L13: 483 | M13: 4.37377
A14: 4 | B14: AARTIIND | C14: 530.05 | D14: 531.10 | E14: 526.95 | F14: 523.85 | G14: 519.70 | H14: 534.20 | I14: 538.35 | J14: 541.45 | K14: 535.25 | L14: 528 | M14: 7.21136
A15: 5 | B15: AAVAS | C15: 1446.3 | D15: 1460.17 | E15: 1427.38 | F15: 1408.47 | G15: 1375.68 | H15: 1479.08 | I15: 1511.87 | J15: 1530.78 | K15: 1492.95 | L15: 1441.25 | M15: 1.664
A16: 6 | B16: ABB | C16: 4255.25 | D16: 4246.60 | E16: 4204.20 | F16: 4153.15 | G16: 4110.75 | H16: 4297.65 | I16: 4340.05 | J16: 4391.10 | K16: 4289 | L16: 4195.55 | M16: 1.84551
A17: 7 | B17: ABBOTINDIA | C17: 23697.75 | D17: 23811.48 | E17: 23556.27 | F17: 23414.78 | G17: 23159.57 | H17: 23952.97 | I17: 24208.18 | J17: 24349.67 | K17: 24066.7 | L17: 23670 | M17: 0.04778
A18: 8 | B18: ACC | C18: 1869 | D18: 1861.83 | E18: 1832.17 | F18: 1795.33 | G18: 1765.67 | H18: 1898.67 | I18: 1928.33 | J18: 1965.17 | K18: 1891.5 | L18: 1825 | M18: 9.34618
A19: 9 | B19: ADANIENT | C19: 2423.5 | D19: 2403.63 | E19: 2294.87 | F19: 2166.23 | G19: 2057.47 | H19: 2532.27 | I19: 2641.03 | J19: 2769.67 | K19: 2512.4 | L19: 2275 | M19: 119.72275
A20: 10 | B20: ADANIGREEN | C20: 1052.8 | D20: 1035.60 | E20: 972.20 | F20: 891.60 | G20: 828.20 | H20: 1116.20 | I20: 1179.60 | J20: 1260.20 | K20: 1099 | L20: 955 | M20: 115.65049
A21: 11 | B21: ADANIPORTS | C21: 837.7 | D21: 832.70 | E21: 811.00 | F21: 784.30 | G21: 762.60 | H21: 859.40 | I21: 881.10 | J21: 907.80 | K21: 854.4 | L21: 806 | M21: 159.29818
A22: 12 | B22: ADANIPOWER | C22: 446.2 | D22: 439.20 | E22: 414.00 | F22: 381.80 | G22: 356.60 | H22: 471.40 | I22: 496.60 | J22: 528.80 | K22: 464.4 | L22: 407 | M22: 674.82614
A23: 13 | B23: ATGL | C23: 644.2 | D23: 612.50 | E23: 580.70 | F23: 517.20 | G23: 485.40 | H23: 676.00 | I23: 707.80 | J23: 771.30 | K23: 644.3 | L23: 549 | M23: 133.83917
A24: 14 | B24: AWL | C24: 348.45 | D24: 339.05 | E24: 329.50 | F24: 310.55 | G24: 301.00 | H24: 358.00 | I24: 367.55 | J24: 386.50 | K24: 348.6 | L24: 320.1 | M24: 166.78984
A25: 15 | B25: ABCAPITAL | C25: 170.1 | D25: 169.60 | E25: 168.35 | F25: 166.60 | G25: 165.35 | H25: 171.35 | I25: 172.60 | J25: 174.35 | K25: 170.85 | L25: 167.85 | M25: 24.00141
A26: 16 | B26: ABFRL | C26: 228.35 | D26: 229.13 | E26: 226.27 | F26: 224.18 | G26: 221.32 | H26: 231.22 | I26: 234.08 | J26: 236.17 | K26: 232 | L26: 227.05 | M26: 22.13682
A27: 17 | B27: AEGISCHEM | C27: 344.35 | D27: 345.13 | E27: 342.27 | F27: 340.18 | G27: 337.32 | H27: 347.22 | I27: 350.08 | J27: 352.17 | K27: 348 | L27: 343.05 | M27: 5.57047
A28: 18 | B28: AETHER | C28: 905.55 | D28: 903.93 | E28: 890.77 | F28: 875.98 | G28: 862.82 | H28: 918.72 | I28: 931.88 | J28: 946.67 | K28: 917.1 | L28: 889.15 | M28: 1.54088
A29: 19 | B29: AFFLE | C29: 1112.55 | D29: 1112.55 | E29: 1097.10 | F29: 1081.65 | G29: 1066.20 | H29: 1128.00 | I29: 1143.45 | J29: 1158.90 | K29: 1128 | L29: 1097.1 | M29: 3.49704
A30: 20 | B30: AIAENG | C30: 3545.1 | D30: 3548.25 | E30: 3516.50 | F30: 3487.90 | G30: 3456.15 | H30: 3576.85 | I30: 3608.60 | J30: 3637.20 | K30: 3580 | L30: 3519.65 | M30: 0.49839
A31: 21 | B31: AJANTPHARM | C31: 1919.6 | D31: 1933.78 | E31: 1897.92 | F31: 1876.23 | G31: 1840.37 | H31: 1955.47 | I31: 1991.33 | J31: 2013.02 | K31: 1969.65 | L31: 1912.1 | M31: 0.77476
A32: 22 | B32: APLLTD | C32: 720.05 | D32: 724.47 | E32: 713.58 | F32: 707.12 | G32: 696.23 | H32: 730.93 | I32: 741.82 | J32: 748.28 | K32: 735.35 | L32: 718 | M32: 0.81303
A33: 23 | B33: ALKEM | C33: 4554.2 | D33: 4560.93 | E33: 4508.32 | F33: 4462.43 | G33: 4409.82 | H33: 4606.82 | I33: 4659.43 | J33: 4705.32 | K33: 4613.55 | L33: 4515.05 | M33: 4.01971
A34: 24 | B34: ALKYLAMINE | C34: 2135.65 | D34: 2142.88 | E34: 2125.77 | F34: 2115.88 | G34: 2098.77 | H34: 2152.77 | I34: 2169.88 | J34: 2179.77 | K34: 2160 | L34: 2133 | M34: 0.23143
A35: 25 | B35: ARE&M | C35: 700.5 | D35: 694.03 | E35: 684.12 | F35: 667.73 | G35: 657.82 | H35: 710.42 | I35: 720.33 | J35: 736.72 | K35: 703.95 | L35: 677.65 | M35: 16.92623
A36: 26 | B36: AMBER | C36: 3133.75 | D36: 3187.93 | E36: 3070.87 | F36: 3007.98 | G36: 2890.92 | H36: 3250.82 | I36: 3367.88 | J36: 3430.77 | K36: 3305 | L36: 3125.05 | M36: 1.14577
A37: 27 | B37: AMBUJACEM | C37: 431.2 | D37: 427.97 | E37: 420.48 | F37: 409.77 | G37: 402.28 | H37: 438.68 | I37: 446.17 | J37: 456.88 | K37: 435.45 | L37: 417.25 | M37: 76.54493
A38: 28 | B38: ANGELONE | C38: 3069.4 | D38: 3108.13 | E38: 3021.27 | F38: 2973.13 | G38: 2886.27 | H38: 3156.27 | I38: 3243.13 | J38: 3291.27 | K38: 3195 | L38: 3060 | M38: 12.95226
A39: 29 | B39: ANURAS | C39: 955.5 | D39: 953.32 | E39: 948.73 | F39: 941.97 | G39: 937.38 | H39: 960.08 | I39: 964.67 | J39: 971.43 | K39: 957.9 | L39: 946.55 | M39: 7.66406
A40: 30 | B40: APARINDS | C40: 5449.05 | D40: 5523.02 | E40: 5351.03 | F40: 5253.02 | G40: 5081.03 | H40: 5621.03 | I40: 5793.02 | J40: 5891.03 | K40: 5695 | L40: 5425 | M40: 1.44771
A41: 31 | B41: APLAPOLLO | C41: 1661.75 | D41: 1675.88 | E41: 1641.87 | F41: 1621.98 | G41: 1587.97 | H41: 1695.77 | I41: 1729.78 | J41: 1749.67 | K41: 1709.9 | L41: 1656 | M41: 12.30891
A42: 32 | B42: APOLLOHOSP | C42: 5366.8 | D42: 5377.55 | E42: 5330.25 | F42: 5293.70 | G42: 5246.40 | H42: 5414.10 | I42: 5461.40 | J42: 5497.95 | K42: 5424.85 | L42: 5341 | M42: 3.62746
A43: 33 | B43: APOLLOTYRE | C43: 422.6 | D43: 420.18 | E43: 417.02 | F43: 411.43 | G43: 408.27 | H43: 425.77 | I43: 428.93 | J43: 434.52 | K43: 423.35 | L43: 414.6 | M43: 7.16242
A44: 34 | B44: APTUS | C44: 284.2 | D44: 284.63 | E44: 282.52 | F44: 280.83 | G44: 278.72 | H44: 286.32 | I44: 288.43 | J44: 290.12 | K44: 286.75 | L44: 282.95 | M44: 1.92177
A45: 35 | B45: ACI | C45: 552.8 | D45: 556.77 | E45: 545.13 | F45: 537.47 | G45: 525.83 | H45: 564.43 | I45: 576.07 | J45: 583.73 | K45: 568.4 | L45: 549.1 | M45: 4.19931
A46: 36 | B46: ASAHIINDIA | C46: 558.2 | D46: 560.68 | E46: 550.52 | F46: 542.83 | G46: 532.67 | H46: 568.37 | I46: 578.53 | J46: 586.22 | K46: 570.85 | L46: 553 | M46: 0.49715
A47: 37 | B47: ASHOKLEY | C47: 178.95 | D47: 179.37 | E47: 177.73 | F47: 176.52 | G47: 174.88 | H47: 180.58 | I47: 182.22 | J47: 183.43 | K47: 181 | L47: 178.15 | M47: 83.45825
A48: 38 | B48: ASIANPAINT | C48: 3148.35 | D48: 3148.17 | E48: 3136.33 | F48: 3124.32 | G48: 3112.48 | H48: 3160.18 | I48: 3172.02 | J48: 3184.03 | K48: 3160 | L48: 3136.15 | M48: 6.47883
A49: 39 | B49: ASTERDM | C49: 332.65 | D49: 334.88 | E49: 325.82 | F49: 318.98 | G49: 309.92 | H49: 341.72 | I49: 350.78 | J49: 357.62 | K49: 343.95 | L49: 328.05 | M49: 9.63398
A50: 40 | B50: ASTRAL | C50: 1932.55 | D50: 1930.90 | E50: 1915.75 | F50: 1898.95 | G50: 1883.80 | H50: 1947.70 | I50: 1962.85 | J50: 1979.65 | K50: 1946.05 | L50: 1914.1 | M50: 2.4701
A51: 41 | B51: ATUL | C51: 6525.55 | D51: 6543.27 | E51: 6496.53 | F51: 6467.52 | G51: 6420.78 | H51: 6572.28 | I51: 6619.02 | J51: 6648.03 | K51: 6590 | L51: 6514.25 | M51: 0.51857
A52: 42 | B52: AUBANK | C52: 737.15 | D52: 732.68 | E52: 722.67 | F52: 708.18 | G52: 698.17 | H52: 747.17 | I52: 757.18 | J52: 771.67 | K52: 742.7 | L52: 718.2 | M52: 15.21215
A53: 43 | B53: AUROPHARMA | C53: 1016.15 | D53: 1020.10 | E53: 1005.45 | F53: 994.75 | G53: 980.10 | H53: 1030.80 | I53: 1045.45 | J53: 1056.15 | K53: 1034.75 | L53: 1009.4 | M53: 23.65708
A54: 44 | B54: AVANTIFEED | C54: 393.3 | D54: 395.77 | E54: 390.53 | F54: 387.77 | G54: 382.53 | H54: 398.53 | I54: 403.77 | J54: 406.53 | K54: 401 | L54: 393 | M54: 1.02719
A55: 45 | B55: DMART | C55: 3912.15 | D55: 3887.05 | E55: 3840.10 | F55: 3768.05 | G55: 3721.10 | H55: 3959.10 | I55: 4006.05 | J55: 4078.10 | K55: 3934 | L55: 3815 | M55: 4.49705
A56: 46 | B56: AXISBANK | C56: 1021.15 | D56: 1017.45 | E56: 1012.95 | F56: 1004.75 | G56: 1000.25 | H56: 1025.65 | I56: 1030.15 | J56: 1038.35 | K56: 1021.95 | L56: 1009.25 | M56: 61.73384
A57: 47 | B57: BAJAJ-AUTO | C57: 5998.15 | D57: 5983.27 | E57: 5926.88 | F57: 5855.62 | G57: 5799.23 | H57: 6054.53 | I57: 6110.92 | J57: 6182.18 | K57: 6039.65 | L57: 5912 | M57: 3.80535
A58: 48 | B58: BAJFINANCE | C58: 7127.55 | D58: 7097.48 | E58: 7059.97 | F58: 6992.38 | G58: 6954.87 | H58: 7165.07 | I58: 7202.58 | J58: 7270.17 | K58: 7135 | L58: 7029.9 | M58: 7.28158
A59: 49 | B59: BAJAJFINSV | C59: 1654.4 | D59: 1642.97 | E59: 1628.93 | F59: 1603.47 | G59: 1589.43 | H59: 1668.43 | I59: 1682.47 | J59: 1707.93 | K59: 1657 | L59: 1617.5 | M59: 15.64478
A60: 50 | B60: BAJAJHLDNG | C60: 7320.7 | D60: 7366.90 | E60: 7253.80 | F60: 7186.90 | G60: 7073.80 | H60: 7433.80 | I60: 7546.90 | J60: 7613.80 | K60: 7480 | L60: 7300 | M60: 0.19597
A61: 51 | B61: BALAMINES | C61: 2015.05 | D61: 2020.03 | E61: 2000.07 | F61: 1985.08 | G61: 1965.12 | H61: 2035.02 | I61: 2054.98 | J61: 2069.97 | K61: 2040 | L61: 2005.05 | M61: 0.3263
A62: 52 | B62: BALKRISIND | C62: 2619.95 | D62: 2606.87 | E62: 2583.88 | F62: 2547.82 | G62: 2524.83 | H62: 2642.93 | I62: 2665.92 | J62: 2701.98 | K62: 2629.85 | L62: 2570.8 | M62: 4.23349
A63: 53 | B63: BALRAMCHIN | C63: 468.25 | D63: 467.00 | E63: 461.00 | F63: 453.75 | G63: 447.75 | H63: 474.25 | I63: 480.25 | J63: 487.50 | K63: 473 | L63: 459.75 | M63: 25.18948
A64: 54 | B64: BANDHANBNK | C64: 216.85 | D64: 216.05 | E64: 213.60 | F64: 210.35 | G64: 207.90 | H64: 219.30 | I64: 221.75 | J64: 225.00 | K64: 218.5 | L64: 212.8 | M64: 101.54652
A65: 55 | B65: BANKBARODA | C65: 196.55 | D65: 195.97 | E65: 193.33 | F65: 190.12 | G65: 187.48 | H65: 199.18 | I65: 201.82 | J65: 205.03 | K65: 198.6 | L65: 192.75 | M65: 123.82178
A66: 56 | B66: BANKINDIA | C66: 105.1 | D66: 104.90 | E66: 103.10 | F66: 101.10 | G66: 99.30 | H66: 106.90 | I66: 108.70 | J66: 110.70 | K66: 106.7 | L66: 102.9 | M66: 72.48889
A67: 57 | B67: MAHABANK | C67: 44.15 | D67: 43.85 | E67: 43.15 | F67: 42.15 | G67: 41.45 | H67: 44.85 | I67: 45.55 | J67: 46.55 | K67: 44.55 | L67: 42.85 | M67: 176.33086
A68: 58 | B68: BASF | C68: 2945.1 | D68: 2992.70 | E68: 2885.50 | F68: 2825.90 | G68: 2718.70 | H68: 3052.30 | I68: 3159.50 | J68: 3219.10 | K68: 3099.9 | L68: 2933.1 | M68: 0.26785
A69: 59 | B69: BATAINDIA | C69: 1617.1 | D69: 1615.35 | E69: 1601.90 | F69: 1586.70 | G69: 1573.25 | H69: 1630.55 | I69: 1644.00 | J69: 1659.20 | K69: 1628.8 | L69: 1600.15 | M69: 1.80041
A70: 60 | B70: BAYERCROP | C70: 5231.05 | D70: 5254.22 | E70: 5190.83 | F70: 5150.62 | G70: 5087.23 | H70: 5294.43 | I70: 5357.82 | J70: 5398.03 | K70: 5317.6 | L70: 5214 | M70: 0.08037
A71: 61 | B71: BEML | C71: 2435.6 | D71: 2440.27 | E71: 2400.53 | F71: 2365.47 | G71: 2325.73 | H71: 2475.33 | I71: 2515.07 | J71: 2550.13 | K71: 2480 | L71: 2405.2 | M71: 4.21239
A72: 62 | B72: BERGEPAINT | C72: 574.3 | D72: 573.93 | E72: 570.37 | F72: 566.43 | G72: 562.87 | H72: 577.87 | I72: 581.43 | J72: 585.37 | K72: 577.5 | L72: 570 | M72: 4.6348
A73: 63 | B73: BDL | C73: 1168.05 | D73: 1169.52 | E73: 1155.03 | F73: 1142.02 | G73: 1127.53 | H73: 1182.53 | I73: 1197.02 | J73: 1210.03 | K73: 1184 | L73: 1156.5 | M73: 11.6934
A74: 64 | B74: BEL | C74: 141.3 | D74: 141.17 | E74: 140.53 | F74: 139.77 | G74: 139.13 | H74: 141.93 | I74: 142.57 | J74: 143.33 | K74: 141.8 | L74: 140.4 | M74: 85.95693
A75: 65 | B75: BHARATFORG | C75: 1097.1 | D75: 1102.52 | E75: 1083.03 | F75: 1068.97 | G75: 1049.48 | H75: 1116.58 | I75: 1136.07 | J75: 1150.13 | K75: 1122 | L75: 1088.45 | M75: 12.67193
A76: 66 | B76: BHEL | C76: 156.05 | D76: 155.12 | E76: 152.43 | F76: 148.82 | G76: 146.13 | H76: 158.73 | I76: 161.42 | J76: 165.03 | K76: 157.8 | L76: 151.5 | M76: 487.16588
A77: 67 | B77: BPCL | C77: 424.5 | D77: 421.17 | E77: 416.43 | F77: 408.37 | G77: 403.63 | H77: 429.23 | I77: 433.97 | J77: 442.03 | K77: 425.9 | L77: 413.1 | M77: 115.93428
A78: 68 | B78: BHARTIARTL | C78: 984.9 | D78: 981.37 | E78: 974.73 | F78: 964.57 | G78: 957.93 | H78: 991.53 | I78: 998.17 | J78: 1008.33 | K78: 988 | L78: 971.2 | M78: 50.96984
A79: 69 | B79: BIKAJI | C79: 542.35 | D79: 545.75 | E79: 536.60 | F79: 530.85 | G79: 521.70 | H79: 551.50 | I79: 560.65 | J79: 566.40 | K79: 554.9 | L79: 540 | M79: 1.33897
A80: 70 | B80: BIOCON | C80: 233.1 | D80: 233.53 | E80: 230.82 | F80: 228.53 | G80: 225.82 | H80: 235.82 | I80: 238.53 | J80: 240.82 | K80: 236.25 | L80: 231.25 | M80: 28.46098
A81: 71 | B81: BIRLACORPN | C81: 1368.65 | D81: 1350.90 | E81: 1321.80 | F81: 1274.95 | G81: 1245.85 | H81: 1397.75 | I81: 1426.85 | J81: 1473.70 | K81: 1380 | L81: 1304.05 | M81: 4.23395
A82: 72 | B82: BSOFT | C82: 611.7 | D82: 610.05 | E82: 601.75 | F82: 591.80 | G82: 583.50 | H82: 620.00 | I82: 628.30 | J82: 638.25 | K82: 618.35 | L82: 600.1 | M82: 18.33462
A83: 73 | B83: BLS | C83: 261.05 | D83: 262.60 | E83: 256.70 | F83: 252.35 | G83: 246.45 | H83: 266.95 | I83: 272.85 | J83: 277.20 | K83: 268.5 | L83: 258.25 | M83: 17.54375
A84: 74 | B84: BLUEDART | C84: 6940.05 | D84: 7003.38 | E84: 6856.77 | F84: 6773.48 | G84: 6626.87 | H84: 7086.67 | I84: 7233.28 | J84: 7316.57 | K84: 7150 | L84: 6920.1 | M84: 0.2923
A85: 75 | B85: BLUESTARCO | C85: 998.95 | D85: 1003.93 | E85: 983.87 | F85: 968.78 | G85: 948.72 | H85: 1019.02 | I85: 1039.08 | J85: 1054.17 | K85: 1024 | L85: 988.85 | M85: 1.17046
A86: 76 | B86: BBTC | C86: 1401.75 | D86: 1407.25 | E86: 1379.50 | F86: 1357.25 | G86: 1329.50 | H86: 1429.50 | I86: 1457.25 | J86: 1479.50 | K86: 1435 | L86: 1385 | M86: 1.78333
A87: 77 | B87: BORORENEW | C87: 413.45 | D87: 415.17 | E87: 410.33 | F87: 407.22 | G87: 402.38 | H87: 418.28 | I87: 423.12 | J87: 426.23 | K87: 420 | L87: 412.05 | M87: 1.19769
A88: 78 | B88: BOSCHLTD | C88: 21273.6 | D88: 21208.05 | E88: 21065.55 | F88: 20857.50 | G88: 20715.00 | H88: 21416.10 | I88: 21558.60 | J88: 21766.65 | K88: 21350.55 | L88: 21000 | M88: 0.24561
A89: 79 | B89: BRIGADE | C89: 773.75 | D89: 764.03 | E89: 750.07 | F89: 726.38 | G89: 712.42 | H89: 787.72 | I89: 801.68 | J89: 825.37 | K89: 778 | L89: 740.35 | M89: 6.79783
A90: 80 | B90: BCG | C90: 16.6 | D90: 16.67 | E90: 16.43 | F90: 16.27 | G90: 16.03 | H90: 16.83 | I90: 17.07 | J90: 17.23 | K90: 16.9 | L90: 16.5 | M90: 85.31757
A91: 81 | B91: BRITANNIA | C91: 4713.45 | D91: 4687.45 | E91: 4652.00 | F91: 4590.55 | G91: 4555.10 | H91: 4748.90 | I91: 4784.35 | J91: 4845.80 | K91: 4722.9 | L91: 4626 | M91: 1.8279
A92: 82 | B92: BSE | C92: 2348.75 | D92: 2321.22 | E92: 2272.53 | F92: 2196.32 | G92: 2147.63 | H92: 2397.43 | I92: 2446.12 | J92: 2522.33 | K92: 2369.9 | L92: 2245 | M92: 29.53417
A93: 83 | B93: MAPMYINDIA | C93: 2183.15 | D93: 2199.72 | E93: 2149.48 | F93: 2115.82 | G93: 2065.58 | H93: 2233.38 | I93: 2283.62 | J93: 2317.28 | K93: 2249.95 | L93: 2166.05 | M93: 1.25623
A94: 84 | B94: CAMPUS | C94: 282.5 | D94: 278.83 | E94: 273.72 | F94: 264.93 | G94: 259.82 | H94: 287.62 | I94: 292.73 | J94: 301.52 | K94: 283.95 | L94: 270.05 | M94: 18.39163
A95: 85 | B95: CANFINHOME | C95: 755.9 | D95: 756.65 | E95: 752.30 | F95: 748.70 | G95: 744.35 | H95: 760.25 | I95: 764.60 | J95: 768.20 | K95: 761 | L95: 753.05 | M95: 2.06809
A96: 86 | B96: CANBK | C96: 396.1 | D96: 395.20 | E96: 390.90 | F96: 385.70 | G96: 381.40 | H96: 400.40 | I96: 404.70 | J96: 409.90 | K96: 399.5 | L96: 390 | M96: 46.26113
A97: 87 | B97: CGCL | C97: 750.95 | D97: 748.18 | E97: 740.92 | F97: 730.88 | G97: 723.62 | H97: 758.22 | I97: 765.48 | J97: 775.52 | K97: 755.45 | L97: 738.15 | M97: 1.49228
A98: 88 | B98: CARBORUNIV | C98: 1154.7 | D98: 1166.23 | E98: 1133.47 | F98: 1112.23 | G98: 1079.47 | H98: 1187.47 | I98: 1220.23 | J98: 1241.47 | K98: 1199 | L98: 1145 | M98: 4.37601
A99: 89 | B99: CASTROLIND | C99: 140.65 | D99: 141.40 | E99: 139.25 | F99: 137.85 | G99: 135.70 | H99: 142.80 | I99: 144.95 | J99: 146.35 | K99: 143.55 | L99: 140 | M99: 36.61271
A100: 90 | B100: CCL | C100: 634 | D100: 630.93 | E100: 625.22 | F100: 616.43 | G100: 610.72 | H100: 639.72 | I100: 645.43 | J100: 654.22 | K100: 636.65 | L100: 622.15 | M100: 1.32378
A101: 91 | B101: CEATLTD | C101: 2091 | D101: 2100.52 | E101: 2072.03 | F101: 2053.07 | G101: 2024.58 | H101: 2119.48 | I101: 2147.97 | J101: 2166.93 | K101: 2129 | L101: 2081.55 | M101: 1.86534
A102: 92 | B102: CENTRALBK | C102: 44.75 | D102: 44.48 | E102: 43.87 | F102: 42.98 | G102: 42.37 | H102: 45.37 | I102: 45.98 | J102: 46.87 | K102: 45.1 | L102: 43.6 | M102: 113.93541
A103: 93 | B103: CDSL | C103: 1811.9 | D103: 1811.30 | E103: 1788.60 | F103: 1765.30 | G103: 1742.60 | H103: 1834.60 | I103: 1857.30 | J103: 1880.60 | K103: 1834 | L103: 1788 | M103: 11.08191
A104: 94 | B104: CENTURYPLY | C104: 635.1 | D104: 637.37 | E104: 630.33 | F104: 625.57 | G104: 618.53 | H104: 642.13 | I104: 649.17 | J104: 653.93 | K104: 644.4 | L104: 632.6 | M104: 0.32195
A105: 95 | B105: CENTURYTEX | C105: 1233.6 | D105: 1218.85 | E105: 1192.75 | F105: 1151.90 | G105: 1125.80 | H105: 1259.70 | I105: 1285.80 | J105: 1326.65 | K105: 1244.95 | L105: 1178 | M105: 2.98606
A106: 96 | B106: CERA | C106: 8327.4 | D106: 8382.73 | E106: 8244.67 | F106: 8161.93 | G106: 8023.87 | H106: 8465.47 | I106: 8603.53 | J106: 8686.27 | K106: 8520.8 | L106: 8300 | M106: 0.22039
A107: 97 | B107: CESC | C107: 96.75 | D107: 97.28 | E107: 95.97 | F107: 95.18 | G107: 93.87 | H107: 98.07 | I107: 99.38 | J107: 100.17 | K107: 98.6 | L107: 96.5 | M107: 42.27106
A108: 98 | B108: CGPOWER | C108: 431.5 | D108: 426.33 | E108: 415.27 | F108: 399.03 | G108: 387.97 | H108: 442.57 | I108: 453.63 | J108: 469.87 | K108: 437.4 | L108: 410.1 | M108: 106.84488
A109: 99 | B109: CHALET | C109: 588.35 | D109: 591.28 | E109: 584.07 | F109: 579.78 | G109: 572.57 | H109: 595.57 | I109: 602.78 | J109: 607.07 | K109: 598.5 | L109: 587 | M109: 1.35833
A110: 100 | B110: CHAMBLFERT | C110: 314.5 | D110: 313.38 | E110: 309.77 | F110: 305.03 | G110: 301.42 | H110: 318.12 | I110: 321.73 | J110: 326.47 | K110: 317 | L110: 308.65 | M110: 30.58903
A111: 101 | B111: CHEMPLASTS | C111: 447.85 | D111: 449.30 | E111: 444.20 | F111: 440.55 | G111: 435.45 | H111: 452.95 | I111: 458.05 | J111: 461.70 | K111: 454.4 | L111: 445.65 | M111: 2.97004
A112: 102 | B112: CHOLAHLDNG | C112: 1004.85 | D112: 1012.68 | E112: 988.32 | F112: 971.78 | G112: 947.42 | H112: 1029.22 | I112: 1053.58 | J112: 1070.12 | K112: 1037.05 | L112: 996.15 | M112: 2.83758
A113: 103 | B113: CHOLAFIN | C113: 1106.25 | D113: 1099.88 | E113: 1091.77 | F113: 1077.28 | G113: 1069.17 | H113: 1114.37 | I113: 1122.48 | J113: 1136.97 | K113: 1108 | L113: 1085.4 | M113: 24.45247
A114: 104 | B114: CIEINDIA | C114: 469.95 | D114: 471.38 | E114: 462.77 | F114: 455.58 | G114: 446.97 | H114: 478.57 | I114: 487.18 | J114: 494.37 | K114: 480 | L114: 464.2 | M114: 9.84974
A115: 105 | B115: CIPLA | C115: 1192.3 | D115: 1194.35 | E115: 1185.95 | F115: 1179.60 | G115: 1171.20 | H115: 1200.70 | I115: 1209.10 | J115: 1215.45 | K115: 1202.75 | L115: 1188 | M115: 16.91543
A116: 106 | B116: CUB | C116: 147.4 | D116: 146.93 | E116: 145.47 | F116: 143.53 | G116: 142.07 | H116: 148.87 | I116: 150.33 | J116: 152.27 | K116: 148.4 | L116: 145 | M116: 28.37514
A117: 107 | B117: CLEAN | C117: 1343.85 | D117: 1345.27 | E117: 1336.58 | F117: 1329.32 | G117: 1320.63 | H117: 1352.53 | I117: 1361.22 | J117: 1368.48 | K117: 1353.95 | L117: 1338 | M117: 0.67459
A118: 108 | B118: COALINDIA | C118: 341.95 | D118: 339.25 | E118: 336.00 | F118: 330.05 | G118: 326.80 | H118: 345.20 | I118: 348.45 | J118: 354.40 | K118: 342.5 | L118: 333.3 | M118: 107.91886
A119: 109 | B119: COCHINSHIP | C119: 1132.75 | D119: 1133.92 | E119: 1119.83 | F119: 1106.92 | G119: 1092.83 | H119: 1146.83 | I119: 1160.92 | J119: 1173.83 | K119: 1148 | L119: 1121 | M119: 20.17146
A120: 110 | B120: COFORGE | C120: 5566.3 | D120: 5566.25 | E120: 5492.50 | F120: 5418.70 | G120: 5344.95 | H120: 5640.05 | I120: 5713.80 | J120: 5787.60 | K120: 5640 | L120: 5492.45 | M120: 2.38937
A121: 111 | B121: COLPAL | C121: 2180.3 | D121: 2183.72 | E121: 2167.63 | F121: 2154.97 | G121: 2138.88 | H121: 2196.38 | I121: 2212.47 | J121: 2225.13 | K121: 2199.8 | L121: 2171.05 | M121: 6.78686
A122: 112 | B122: CAMS | C122: 2760.75 | D122: 2760.13 | E122: 2722.27 | F122: 2683.78 | G122: 2645.92 | H122: 2798.62 | I122: 2836.48 | J122: 2874.97 | K122: 2798 | L122: 2721.65 | M122: 2.2941
A123: 113 | B123: CONCOR | C123: 766.85 | D123: 761.28 | E123: 753.57 | F123: 740.28 | G123: 732.57 | H123: 774.57 | I123: 782.28 | J123: 795.57 | K123: 769 | L123: 748 | M123: 8.45708
A124: 114 | B124: COROMANDEL | C124: 1124.25 | D124: 1126.38 | E124: 1112.07 | F124: 1099.88 | G124: 1085.57 | H124: 1138.57 | I124: 1152.88 | J124: 1165.07 | K124: 1140.7 | L124: 1114.2 | M124: 3.00439
A125: 115 | B125: CRAFTSMAN | C125: 4998.05 | D125: 5055.97 | E125: 4922.13 | F125: 4846.22 | G125: 4712.38 | H125: 5131.88 | I125: 5265.72 | J125: 5341.63 | K125: 5189.8 | L125: 4980.05 | M125: 0.3816
A126: 116 | B126: CREDITACC | C126: 1685.6 | D126: 1690.95 | E126: 1673.95 | F126: 1662.30 | G126: 1645.30 | H126: 1702.60 | I126: 1719.60 | J126: 1731.25 | K126: 1707.95 | L126: 1679.3 | M126: 1.53594
A127: 117 | B127: CRISIL | C127: 4315.2 | D127: 4338.12 | E127: 4277.23 | F127: 4239.27 | G127: 4178.38 | H127: 4376.08 | I127: 4436.97 | J127: 4474.93 | K127: 4399 | L127: 4300.15 | M127: 0.22091
A128: 118 | B128: CROMPTON | C128: 283.15 | D128: 282.92 | E128: 280.53 | F128: 277.92 | G128: 275.53 | H128: 285.53 | I128: 287.92 | J128: 290.53 | K128: 285.3 | L128: 280.3 | M128: 28.95205
A129: 119 | B129: CSBBANK | C129: 392.55 | D129: 389.23 | E129: 383.47 | F129: 374.38 | G129: 368.62 | H129: 398.32 | I129: 404.08 | J129: 413.17 | K129: 395 | L129: 380.15 | M129: 12.92076
A130: 120 | B130: CUMMINSIND | C130: 1875.35 | D130: 1869.98 | E130: 1858.22 | F130: 1841.08 | G130: 1829.32 | H130: 1887.12 | I130: 1898.88 | J130: 1916.02 | K130: 1881.75 | L130: 1852.85 | M130: 2.57084
A131: 121 | B131: CYIENT | C131: 1894.4 | D131: 1886.15 | E131: 1871.30 | F131: 1848.20 | G131: 1833.35 | H131: 1909.25 | I131: 1924.10 | J131: 1947.20 | K131: 1901 | L131: 1863.05 | M131: 4.37063
A132: 122 | B132: DABUR | C132: 533.8 | D132: 534.07 | E132: 530.78 | F132: 527.77 | G132: 524.48 | H132: 537.08 | I132: 540.37 | J132: 543.38 | K132: 537.35 | L132: 531.05 | M132: 22.51292
A133: 123 | B133: DALBHARAT | C133: 2206.2 | D133: 2220.00 | E133: 2187.80 | F133: 2169.40 | G133: 2137.20 | H133: 2238.40 | I133: 2270.60 | J133: 2289.00 | K133: 2252.2 | L133: 2201.6 | M133: 2.62585
A134: 124 | B134: DATAPATTNS | C134: 1939.45 | D134: 1965.78 | E134: 1907.57 | F134: 1875.68 | G134: 1817.47 | H134: 1997.67 | I134: 2055.88 | J134: 2087.77 | K134: 2024 | L134: 1933.9 | M134: 2.5313
A135: 125 | B135: DCMSHRIRAM | C135: 948.95 | D135: 944.37 | E135: 932.73 | F135: 916.52 | G135: 904.88 | H135: 960.58 | I135: 972.22 | J135: 988.43 | K135: 956 | L135: 928.15 | M135: 0.50683
A136: 126 | B136: DEEPAKFERT | C136: 600.4 | D136: 601.73 | E136: 598.07 | F136: 595.73 | G136: 592.07 | H136: 604.07 | I136: 607.73 | J136: 610.07 | K136: 605.4 | L136: 599.4 | M136: 2.63799
A137: 127 | B137: DEEPAKNTR | C137: 2177.85 | D137: 2189.12 | E137: 2156.73 | F137: 2135.62 | G137: 2103.23 | H137: 2210.23 | I137: 2242.62 | J137: 2263.73 | K137: 2221.5 | L137: 2168 | M137: 2.3631
A138: 128 | B138: DELHIVERY | C138: 385.1 | D138: 384.35 | E138: 380.90 | F138: 376.70 | G138: 373.25 | H138: 388.55 | I138: 392.00 | J138: 396.20 | K138: 387.8 | L138: 380.15 | M138: 8.9885
A139: 129 | B139: DELTACORP | C139: 133.95 | D139: 134.92 | E139: 132.53 | F139: 131.12 | G139: 128.73 | H139: 136.33 | I139: 138.72 | J139: 140.13 | K139: 137.3 | L139: 133.5 | M139: 27.74996
A140: 130 | B140: DEVYANI | C140: 179.3 | D140: 179.77 | E140: 176.73 | F140: 174.17 | G140: 171.13 | H140: 182.33 | I140: 185.37 | J140: 187.93 | K140: 182.8 | L140: 177.2 | M140: 20.93594
A141: 131 | B141: DIVISLAB | C141: 3760.15 | D141: 3763.32 | E141: 3740.28 | F141: 3720.42 | G141: 3697.38 | H141: 3783.18 | I141: 3806.22 | J141: 3826.08 | K141: 3786.35 | L141: 3743.45 | M141: 1.97926
A142: 132 | B142: DIXON | C142: 5290.7 | D142: 5291.40 | E142: 5271.35 | F142: 5252.00 | G142: 5231.95 | H142: 5310.75 | I142: 5330.80 | J142: 5350.15 | K142: 5311.45 | L142: 5272.05 | M142: 1.3645
A143: 133 | B143: DLF | C143: 629.15 | D143: 626.73 | E143: 621.67 | F143: 614.18 | G143: 609.12 | H143: 634.22 | I143: 639.28 | J143: 646.77 | K143: 631.8 | L143: 619.25 | M143: 45.35901
A144: 134 | B144: LALPATHLAB | C144: 2647.55 | D144: 2664.63 | E144: 2624.52 | F144: 2601.48 | G144: 2561.37 | H144: 2687.67 | I144: 2727.78 | J144: 2750.82 | K144: 2704.75 | L144: 2641.6 | M144: 2.22358
A145: 135 | B145: DRREDDY | C145: 5675.8 | D145: 5679.08 | E145: 5643.72 | F145: 5611.63 | G145: 5576.27 | H145: 5711.17 | I145: 5746.53 | J145: 5778.62 | K145: 5714.45 | L145: 5647 | M145: 3.11158
A146: 136 | B146: EIDPARRY | C146: 535.05 | D146: 535.62 | E146: 527.43 | F146: 519.82 | G146: 511.63 | H146: 543.23 | I146: 551.42 | J146: 559.03 | K146: 543.8 | L146: 528 | M146: 11.51018
A147: 137 | B147: EASEMYTRIP | C147: 39.05 | D147: 39.02 | E147: 38.78 | F147: 38.52 | G147: 38.28 | H147: 39.28 | I147: 39.52 | J147: 39.78 | K147: 39.25 | L147: 38.75 | M147: 146.31159
A148: 138 | B148: ECLERX | C148: 2491.05 | D148: 2527.23 | E148: 2440.72 | F148: 2390.38 | G148: 2303.87 | H148: 2577.57 | I148: 2664.08 | J148: 2714.42 | K148: 2613.75 | L148: 2476.9 | M148: 1.28221
A149: 139 | B149: EICHERMOT | C149: 3826.7 | D149: 3832.20 | E149: 3772.25 | F149: 3717.80 | G149: 3657.85 | H149: 3886.65 | I149: 3946.60 | J149: 4001.05 | K149: 3892.15 | L149: 3777.75 | M149: 5.05274
A150: 140 | B150: EIHOTEL | C150: 239 | D150: 237.50 | E150: 233.40 | F150: 227.80 | G150: 223.70 | H150: 243.10 | I150: 247.20 | J150: 252.80 | K150: 241.6 | L150: 231.9 | M150: 11.41041
A151: 141 | B151: ELGIEQUIP | C151: 520.95 | D151: 521.22 | E151: 514.78 | F151: 508.62 | G151: 502.18 | H151: 527.38 | I151: 533.82 | J151: 539.98 | K151: 527.65 | L151: 515.05 | M151: 1.31101
A152: 142 | B152: EMAMILTD | C152: 499.75 | D152: 501.28 | E152: 494.57 | F152: 489.38 | G152: 482.67 | H152: 506.47 | I152: 513.18 | J152: 518.37 | K152: 508 | L152: 496.1 | M152: 2.93417
A153: 143 | B153: ENDURANCE | C153: 1630.3 | D153: 1631.80 | E153: 1614.60 | F153: 1598.90 | G153: 1581.70 | H153: 1647.50 | I153: 1664.70 | J153: 1680.40 | K153: 1649 | L153: 1616.1 | M153: 1.15458
A154: 144 | B154: ENGINERSIN | C154: 143.55 | D154: 144.27 | E154: 142.38 | F154: 141.22 | G154: 139.33 | H154: 145.43 | I154: 147.32 | J154: 148.48 | K154: 146.15 | L154: 143.1 | M154: 14.39875
A155: 145 | B155: EPL | C155: 196.65 | D155: 197.60 | E155: 194.55 | F155: 192.45 | G155: 189.40 | H155: 199.70 | I155: 202.75 | J155: 204.85 | K155: 200.65 | L155: 195.5 | M155: 4.5785
A156: 146 | B156: EQUITASBNK | C156: 93.55 | D156: 94.08 | E156: 92.02 | F156: 90.48 | G156: 88.42 | H156: 95.62 | I156: 97.68 | J156: 99.22 | K156: 96.15 | L156: 92.55 | M156: 26.33291
A157: 147 | B157: ERIS | C157: 942 | D157: 938.78 | E157: 923.57 | F157: 905.13 | G157: 889.92 | H157: 957.22 | I157: 972.43 | J157: 990.87 | K157: 954 | L157: 920.35 | M157: 0.92158
A158: 148 | B158: ESCORTS | C158: 3196.2 | D158: 3211.55 | E158: 3174.10 | F158: 3152.00 | G158: 3114.55 | H158: 3233.65 | I158: 3271.10 | J158: 3293.20 | K158: 3249 | L158: 3189.45 | M158: 1.63391
A159: 149 | B159: EXIDEIND | C159: 283.3 | D159: 283.38 | E159: 280.92 | F159: 278.53 | G159: 276.07 | H159: 285.77 | I159: 288.23 | J159: 290.62 | K159: 285.85 | L159: 281 | M159: 15.52552
A160: 150 | B160: FDC | C160: 395.55 | D160: 398.90 | E160: 388.80 | F160: 382.05 | G160: 371.95 | H160: 405.65 | I160: 415.75 | J160: 422.50 | K160: 409 | L160: 392.15 | M160: 2.92394
A161: 151 | B161: FEDERALBNK | C161: 149.95 | D161: 149.07 | E161: 147.58 | F161: 145.22 | G161: 143.73 | H161: 151.43 | I161: 152.92 | J161: 155.28 | K161: 150.55 | L161: 146.7 | M161: 71.6875
A162: 152 | B162: FACT | C162: 716.5 | D162: 715.40 | E162: 705.10 | F162: 693.70 | G162: 683.40 | H162: 726.80 | I162: 737.10 | J162: 748.50 | K162: 725.7 | L162: 704 | M162: 7.84605
A163: 153 | B163: FINEORG | C163: 4223.5 | D163: 4232.48 | E163: 4206.02 | F163: 4188.53 | G163: 4162.07 | H163: 4249.97 | I163: 4276.43 | J163: 4293.92 | K163: 4258.95 | L163: 4215 | M163: 0.17636
A164: 154 | B164: FINCABLES | C164: 947.85 | D164: 943.08 | E164: 933.37 | F164: 918.88 | G164: 909.17 | H164: 957.57 | I164: 967.28 | J164: 981.77 | K164: 952.8 | L164: 928.6 | M164: 6.43808
A165: 155 | B165: FINPIPE | C165: 201.95 | D165: 201.42 | E165: 199.73 | F165: 197.52 | G165: 195.83 | H165: 203.63 | I165: 205.32 | J165: 207.53 | K165: 203.1 | L165: 199.2 | M165: 4.69748
A166: 156 | B166: FSL | C166: 168.85 | D166: 169.40 | E166: 167.45 | F166: 166.05 | G166: 164.10 | H166: 170.80 | I166: 172.75 | J166: 174.15 | K166: 171.35 | L166: 168 | M166: 9.42033
A167: 157 | B167: FIVESTAR | C167: 759.55 | D167: 769.12 | E167: 744.23 | F167: 728.92 | G167: 704.03 | H167: 784.43 | I167: 809.32 | J167: 824.63 | K167: 794 | L167: 753.8 | M167: 3.2933
A168: 158 | B168: FORTIS | C168: 373.25 | D168: 370.78 | E168: 367.57 | F168: 361.88 | G168: 358.67 | H168: 376.47 | I168: 379.68 | J168: 385.37 | K168: 374 | L168: 365.1 | M168: 25.07207
A169: 159 | B169: NYKAA | C169: 169.3 | D169: 169.03 | E169: 165.72 | F169: 162.13 | G169: 158.82 | H169: 172.62 | I169: 175.93 | J169: 179.52 | K169: 172.35 | L169: 165.45 | M169: 65.14133
A170: 160 | B170: GRINFRA | C170: 1064.3 | D170: 1071.43 | E170: 1050.87 | F170: 1037.43 | G170: 1016.87 | H170: 1084.87 | I170: 1105.43 | J170: 1118.87 | K170: 1092 | L170: 1058 | M170: 0.27188
A171: 161 | B171: GAIL | C171: 125.3 | D171: 125.13 | E171: 123.82 | F171: 122.33 | G171: 121.02 | H171: 126.62 | I171: 127.93 | J171: 129.42 | K171: 126.45 | L171: 123.65 | M171: 199.5579
A172: 162 | B172: GALAXYSURF | C172: 2803.7 | D172: 2815.03 | E172: 2779.07 | F172: 2754.43 | G172: 2718.47 | H172: 2839.67 | I172: 2875.63 | J172: 2900.27 | K172: 2851 | L172: 2790.4 | M172: 0.10333
A173: 163 | B173: GARFIBRES | C173: 3377.1 | D173: 3378.53 | E173: 3334.07 | F173: 3291.03 | G173: 3246.57 | H173: 3421.57 | I173: 3466.03 | J173: 3509.07 | K173: 3423 | L173: 3335.5 | M173: 0.25803
A174: 164 | B174: GICRE | C174: 311.75 | D174: 314.75 | E174: 293.60 | F174: 275.45 | G174: 254.30 | H174: 332.90 | I174: 354.05 | J174: 372.20 | K174: 335.9 | L174: 296.6 | M174: 215.69588
A175: 165 | B175: GLAND | C175: 1785.1 | D175: 1783.02 | E175: 1768.08 | F175: 1751.07 | G175: 1736.13 | H175: 1800.03 | I175: 1814.97 | J175: 1831.98 | K175: 1797.95 | L175: 1766 | M175: 6.30302
A176: 166 | B176: GLAXO | C176: 1644 | D176: 1663.97 | E176: 1618.03 | F176: 1592.07 | G176: 1546.13 | H176: 1689.93 | I176: 1735.87 | J176: 1761.83 | K176: 1709.9 | L176: 1638 | M176: 1.94289
A177: 167 | B177: GLENMARK | C177: 771 | D177: 777.28 | E177: 763.62 | F177: 756.23 | G177: 742.57 | H177: 784.67 | I177: 798.33 | J177: 805.72 | K177: 790.95 | L177: 769.9 | M177: 7.19949
A178: 168 | B178: MEDANTA | C178: 920.7 | D178: 916.20 | E178: 905.50 | F178: 890.30 | G178: 879.60 | H178: 931.40 | I178: 942.10 | J178: 957.30 | K178: 926.9 | L178: 901 | M178: 5.15216
A179: 169 | B179: GMMPFAUDLR | C179: 1513.9 | D179: 1527.15 | E179: 1498.75 | F179: 1483.60 | G179: 1455.20 | H179: 1542.30 | I179: 1570.70 | J179: 1585.85 | K179: 1555.55 | L179: 1512 | M179: 1.75022
A180: 170 | B180: GMRINFRA | C180: 60.25 | D180: 60.60 | E180: 59.30 | F180: 58.35 | G180: 57.05 | H180: 61.55 | I180: 62.85 | J180: 63.80 | K180: 61.9 | L180: 59.65 | M180: 242.75975
A181: 171 | B181: GOCOLORS | C181: 1298.9 | D181: 1290.77 | E181: 1278.53 | F181: 1258.17 | G181: 1245.93 | H181: 1311.13 | I181: 1323.37 | J181: 1343.73 | K181: 1303 | L181: 1270.4 | M181: 0.90665
A182: 172 | B182: GODFRYPHLP | C182: 2017.95 | D182: 2025.98 | E182: 2006.97 | F182: 1995.98 | G182: 1976.97 | H182: 2036.97 | I182: 2055.98 | J182: 2066.97 | K182: 2045 | L182: 2015 | M182: 0.30637
A183: 173 | B183: GODREJAGRO | C183: 500.3 | D183: 500.22 | E183: 493.73 | F183: 487.17 | G183: 480.68 | H183: 506.78 | I183: 513.27 | J183: 519.83 | K183: 506.7 | L183: 493.65 | M183: 2.38466
A184: 174 | B184: GODREJCP | C184: 1001.75 | D184: 1002.60 | E184: 995.25 | F184: 988.75 | G184: 981.40 | H184: 1009.10 | I184: 1016.45 | J184: 1022.95 | K184: 1009.95 | L184: 996.1 | M184: 12.4948
A185: 175 | B185: GODREJIND | C185: 669.65 | D185: 666.57 | E185: 661.38 | F185: 653.12 | G185: 647.93 | H185: 674.83 | I185: 680.02 | J185: 688.28 | K185: 671.75 | L185: 658.3 | M185: 4.058
A186: 176 | B186: GODREJPROP | C186: 1839.5 | D186: 1842.00 | E186: 1820.65 | F186: 1801.80 | G186: 1780.45 | H186: 1860.85 | I186: 1882.20 | J186: 1901.05 | K186: 1863.35 | L186: 1823.15 | M186: 4.18868
A187: 177 | B187: GRANULES | C187: 377.95 | D187: 380.65 | E187: 372.80 | F187: 367.65 | G187: 359.80 | H187: 385.80 | I187: 393.65 | J187: 398.80 | K187: 388.5 | L187: 375.5 | M187: 30.72295
A188: 178 | B188: GRAPHITE | C188: 474.5 | D188: 474.62 | E188: 468.98 | F188: 463.47 | G188: 457.83 | H188: 480.13 | I188: 485.77 | J188: 491.28 | K188: 480.25 | L188: 469.1 | M188: 6.40392
A189: 179 | B189: GRASIM | C189: 1975.9 | D189: 1972.05 | E189: 1957.10 | F189: 1938.30 | G189: 1923.35 | H189: 1990.85 | I189: 2005.80 | J189: 2024.60 | K189: 1987 | L189: 1953.25 | M189: 6.96321
A190: 180 | B190: GESHIP | C190: 816 | D190: 821.23 | E190: 806.77 | F190: 797.53 | G190: 783.07 | H190: 830.47 | I190: 844.93 | J190: 854.17 | K190: 835.7 | L190: 812 | M190: 2.10575
A191: 181 | B191: GREENPANEL | C191: 345.7 | D191: 344.45 | E191: 338.90 | F191: 332.10 | G191: 326.55 | H191: 351.25 | I191: 356.80 | J191: 363.60 | K191: 350 | L191: 337.65 | M191: 3.94124
A192: 182 | B192: GRINDWELL | C192: 2088.45 | D192: 2099.48 | E192: 2068.97 | F192: 2049.48 | G192: 2018.97 | H192: 2118.97 | I192: 2149.48 | J192: 2168.97 | K192: 2130 | L192: 2080 | M192: 0.21127
A193: 183 | B193: GUJALKALI | C193: 718.2 | D193: 717.38 | E193: 711.82 | F193: 705.43 | G193: 699.87 | H193: 723.77 | I193: 729.33 | J193: 735.72 | K193: 722.95 | L193: 711 | M193: 0.3962
A194: 184 | B194: GAEL | C194: 363.75 | D194: 361.25 | E194: 355.50 | F194: 347.25 | G194: 341.50 | H194: 369.50 | I194: 375.25 | J194: 383.50 | K194: 367 | L194: 353 | M194: 3.75951
A195: 185 | B195: FLUOROCHEM | C195: 2891.7 | D195: 2902.28 | E195: 2856.62 | F195: 2821.53 | G195: 2775.87 | H195: 2937.37 | I195: 2983.03 | J195: 3018.12 | K195: 2947.95 | L195: 2867.2 | M195: 1.11643
A196: 186 | B196: GUJGASLTD | C196: 427.95 | D196: 426.95 | E196: 425.10 | F196: 422.25 | G196: 420.40 | H196: 429.80 | I196: 431.65 | J196: 434.50 | K196: 428.8 | L196: 424.1 | M196: 4.29173
A197: 187 | B197: GNFC | C197: 686.2 | D197: 690.13 | E197: 681.07 | F197: 675.93 | G197: 666.87 | H197: 695.27 | I197: 704.33 | J197: 709.47 | K197: 699.2 | L197: 685 | M197: 6.11704
A198: 188 | B198: GPPL | C198: 144.85 | D198: 143.52 | E198: 138.53 | F198: 132.22 | G198: 127.23 | H198: 149.83 | I198: 154.82 | J198: 161.13 | K198: 148.5 | L198: 137.2 | M198: 148.40009
A199: 189 | B199: GSFC | C199: 186.25 | D199: 185.60 | E199: 183.50 | F199: 180.75 | G199: 178.65 | H199: 188.35 | I199: 190.45 | J199: 193.20 | K199: 187.7 | L199: 182.85 | M199: 38.91779
A200: 190 | B200: GSPL | C200: 282.7 | D200: 281.50 | E200: 278.80 | F200: 274.90 | G200: 272.20 | H200: 285.40 | I200: 288.10 | J200: 292.00 | K200: 284.2 | L200: 277.6 | M200: 8.63361
A201: 191 | B201: HEG | C201: 1567.25 | D201: 1568.77 | E201: 1552.63 | F201: 1538.02 | G201: 1521.88 | H201: 1583.38 | I201: 1599.52 | J201: 1614.13 | K201: 1584.9 | L201: 1554.15 | M201: 1.2299
A202: 192 | B202: HAPPSTMNDS | C202: 831.35 | D202: 833.47 | E202: 827.43 | F202: 823.52 | G202: 817.48 | H202: 837.38 | I202: 843.42 | J202: 847.33 | K202: 839.5 | L202: 829.55 | M202: 1.70141
A203: 193 | B203: HAVELLS | C203: 1281.25 | D203: 1284.53 | E203: 1274.72 | F203: 1268.18 | G203: 1258.37 | H203: 1291.07 | I203: 1300.88 | J203: 1307.42 | K203: 1294.35 | L203: 1278 | M203: 4.46363
A204: 194 | B204: HCLTECH | C204: 1316.65 | D204: 1310.62 | E204: 1301.33 | F204: 1286.02 | G204: 1276.73 | H204: 1325.93 | I204: 1335.22 | J204: 1350.53 | K204: 1319.9 | L204: 1295.3 | M204: 21.52951
A205: 195 | B205: HDFCAMC | C205: 2898.3 | D205: 2894.83 | E205: 2851.47 | F205: 2804.63 | G205: 2761.27 | H205: 2941.67 | I205: 2985.03 | J205: 3031.87 | K205: 2938.2 | L205: 2848 | M205: 5.65796
A206: 196 | B206: HDFCBANK | C206: 1528.65 | D206: 1530.57 | E206: 1523.88 | F206: 1519.12 | G206: 1512.43 | H206: 1535.33 | I206: 1542.02 | J206: 1546.78 | K206: 1537.25 | L206: 1525.8 | M206: 142.44669
... 319 more rows

Sheet Bulk Deals
E6: Back To Main Page
A7: Subject : | B7: BULK DEAL | D7: =Main!B10 -> 2023-11-29
A9: Date | B9: Scrip code | C9: Scrip Name | D9: Client Name | E9: Buy / Sell | F9: Quantity Traded | G9: Trade Price / Wt.Avg.trade price | H9: Exchange
A10: 2023-11-28 | B10: 534733 | C10: AERPACE | D10: RAMASWAMY PEDINEKALUVA | E10: BUY | F10: 320,000 | G10: 3.89 | H10: BSE
A11: 2023-11-28 | B11: 534733 | C11: AERPACE | D11: MULTIPLIER SHARE & STOCK ADVISORS PRIVATE LIMITED | E11: SELL | F11: 167,506 | G11: 3.89 | H11: BSE
A12: 2023-11-28 | B12: 534733 | C12: AERPACE | D12: VIVEK KANDA | E12: SELL | F12: 226,185 | G12: 3.89 | H12: BSE
A13: 2023-11-28 | B13: 534733 | C13: AERPACE | D13: ANILKUMAR | E13: SELL | F13: 730,000 | G13: 3.89 | H13: BSE
A14: 2023-11-28 | B14: 543453 | C14: ALKOSIGN | D14: MOHIT KUMAR MATHUR | E14: BUY | F14: 61,500 | G14: 223.97 | H14: BSE
A15: 2023-11-28 | B15: 539277 | C15: ALSTONE | D15: BAGH KOTHI INVESTMENT AND FINANCE PRIVATE LIMITED | E15: SELL | F15: 7,000,000 | G15: 0.59 | H15: BSE
A16: 2023-11-28 | B16: 539277 | C16: ALSTONE | D16: AQUARIUS FINCAP & CREDITS PRIVATE LIMITED | E16: SELL | F16: 8,989,859 | G16: 0.59 | H16: BSE
A17: 2023-11-28 | B17: 539277 | C17: ALSTONE | D17: HUM TUM MARKETING PRIVATE LIMITED | E17: SELL | F17: 12,500,000 | G17: 0.59 | H17: BSE
A18: 2023-11-28 | B18: 544025 | C18: ARROWHEAD | D18: MULTIPLIER SHARE & STOCK ADVISORS PRIVATE LIMITED | E18: BUY | F18: 16,200 | G18: 250 | H18: BSE
A19: 2023-11-28 | B19: 544025 | C19: ARROWHEAD | D19: SAHASTRAA ADVISORS PRIVATE LIMITED | E19: BUY | F19: 9,600 | G19: 250 | H19: BSE
A20: 2023-11-28 | B20: 532406 | C20: AVANTEL | D20: KANTHETI | E20: SELL | F20: 532,511 | G20: 130.88 | H20: BSE
A21: 2023-11-28 | B21: 534731 | C21: BITL | D21: PRASHANT SEHRA | E21: SELL | F21: 110,000 | G21: 0.9 | H21: BSE
A22: 2023-11-28 | B22: 534731 | C22: BITL | D22: TARABAI KAMALKISHORE GOENKA | E22: SELL | F22: 19,818 | G22: 0.95 | H22: BSE
A23: 2023-11-28 | B23: 534731 | C23: BITL | D23: TARABAI KAMALKISHORE GOENKA | E23: BUY | F23: 119,591 | G23: 0.9 | H23: BSE
A24: 2023-11-28 | B24: 542678 | C24: CHCL | D24: DAYAL TOURS AND TRAVELS INDIA PRIVATE LIMITED | E24: BUY | F24: 500,000 | G24: 18.58 | H24: BSE
A25: 2023-11-28 | B25: 542678 | C25: CHCL | D25: KAVITA SURAJ ZANWAR | E25: SELL | F25: 534,000 | G25: 18.57 | H25: BSE
A26: 2023-11-28 | B26: 539559 | C26: DDIL | D26: PRAVEEN ARORA | E26: BUY | F26: 160,650 | G26: 6.52 | H26: BSE
A27: 2023-11-28 | B27: 543516 | C27: DHYAANI | D27: CHINTAN NAYAN BHAI RAJYAGURU | E27: SELL | F27: 51,000 | G27: 87.85 | H27: BSE
A28: 2023-11-28 | B28: 532467 | C28: HAZOOR | D28: MULTIPLIER SHARE & STOCK ADVISORS PRIVATE LIMITED | E28: BUY | F28: 110,000 | G28: 166.85 | H28: BSE
A29: 2023-11-28 | B29: 514010 | C29: HIMFIBP | D29: SKYVEIL TRADE SOLUTIONS LLP | E29: BUY | F29: 570,000 | G29: 24.44 | H29: BSE
A30: 2023-11-28 | B30: 514010 | C30: HIMFIBP | D30: VINAYAK INTERNATIONAL | E30: SELL | F30: 1,500,000 | G30: 24.44 | H30: BSE
A31: 2023-11-28 | B31: 514010 | C31: HIMFIBP | D31: SHIV NARAYAN INVESTMENTS PRIVATE LIMITED | E31: SELL | F31: 1,500,000 | G31: 24.44 | H31: BSE
A32: 2023-11-28 | B32: 505712 | C32: HIMTEK | D32: EMERGING INDIA GROWTH FUND | E32: SELL | F32: 50,000 | G32: 120.48 | H32: BSE
A33: 2023-11-28 | B33: 536709 | C33: INDRENEW | D33: SHRENI CONSTRUCTION PRIVATE LIMITED . | E33: SELL | F33: 30,328 | G33: 28.85 | H33: BSE
A34: 2023-11-28 | B34: 536709 | C34: INDRENEW | D34: RIDDHI ANILKUMAR AGRAWAL | E34: SELL | F34: 19,900 | G34: 28.8 | H34: BSE
A35: 2023-11-28 | B35: 536709 | C35: INDRENEW | D35: SIDDHI ANILKUMAR AGRAWAL | E35: SELL | F35: 18,637 | G35: 28.8 | H35: BSE
A36: 2023-11-28 | B36: 538539 | C36: JTAPARIA | D36: VIVEK KUMAR BHAUKA | E36: SELL | F36: 101,480 | G36: 55.27 | H36: BSE
A37: 2023-11-28 | B37: 544023 | C37: KALYANI | D37: KANJIBHAI RABADIYA | E37: BUY | F37: 52,000 | G37: 371.4 | H37: BSE
A38: 2023-11-28 | B38: 544023 | C38: KALYANI | D38: SHERWOOD SECURITIES PVT LTD | E38: SELL | F38: 60,000 | G38: 371.4 | H38: BSE
A39: 2023-11-28 | B39: 544023 | C39: KALYANI | D39: SHERWOOD SECURITIES PVT LTD | E39: BUY | F39: 2,000 | G39: 371.4 | H39: BSE
A40: 2023-11-28 | B40: 540385 | C40: KDLL | D40: SHWETA SINGHAL | E40: BUY | F40: 17,500 | G40: 5.13 | H40: BSE
A41: 2023-11-28 | B41: 541352 | C41: MEGASTAR | D41: BNP PARIBAS ARBITRAGE | E41: BUY | F41: 79,000 | G41: 365.38 | H41: BSE
A42: 2023-11-28 | B42: 541352 | C42: MEGASTAR | D42: BEELINE MERCHANT BANKING PRIVATE LIMITED | E42: SELL | F42: 119,000 | G42: 370.08 | H42: BSE
A43: 2023-11-28 | B43: 541352 | C43: MEGASTAR | D43: GOENKA BUSINESS & FINANCE LIMITED | E43: BUY | F43: 55,358 | G43: 397.25 | H43: BSE
A44: 2023-11-28 | B44: 541352 | C44: MEGASTAR | D44: SHWETA GOYAL | E44: SELL | F44: 74,000 | G44: 397.3 | H44: BSE
A45: 2023-11-28 | B45: 541352 | C45: MEGASTAR | D45: BOFA SECURITIES EUROPE SA | E45: BUY | F45: 150,000 | G45: 376.31 | H45: BSE
A46: 2023-11-28 | B46: 541352 | C46: MEGASTAR | D46: GOENKA BUSINESS & FINANCE LIMITED | E46: SELL | F46: 150,000 | G46: 375.6 | H46: BSE
A47: 2023-11-28 | B47: 541352 | C47: MEGASTAR | D47: GOENKA BUSINESS & FINANCE LIMITED | E47: BUY | F47: 19,000 | G47: 397.47 | H47: BSE
A48: 2023-11-28 | B48: 543579 | C48: NATURO | D48: SATYAVIBHUMUPPANA | E48: BUY | F48: 120,000 | G48: 15.01 | H48: BSE
A49: 2023-11-28 | B49: 543400 | C49: OMNIPOTENT | D49: RAMJI | E49: BUY | F49: 32,000 | G49: 10.72 | H49: BSE
A50: 2023-11-28 | B50: 543400 | C50: OMNIPOTENT | D50: PRINCE P SHAH | E50: SELL | F50: 102,000 | G50: 10.86 | H50: BSE
A51: 2023-11-28 | B51: 535657 | C51: OONE | D51: SRINIVAS RAO MUDDANA NRO NON PIS | E51: SELL | F51: 80,000 | G51: 16.09 | H51: BSE
A52: 2023-11-28 | B52: 524372 | C52: ORCHIDPHAR | D52: DHANUKA LABORATORIES LIMITED | E52: SELL | F52: 1,300,000 | G52: 571.28 | H52: BSE
A53: 2023-11-28 | B53: 524372 | C53: ORCHIDPHAR | D53: UTI MUTUAL FUND | E53: BUY | F53: 445,000 | G53: 571 | H53: BSE
A54: 2023-11-28 | B54: 515127 | C54: RAMASIGNS | D54: PANKAJ HASMUKH JOBALIA | E54: SELL | F54: 207,879 | G54: 2.95 | H54: BSE
A55: 2023-11-28 | B55: 538273 | C55: RESPONSINF | D55: YUGA STOCKS AND COMMODITIES PRIVATE LIMITED . | E55: SELL | F55: 40,000 | G55: 48.81 | H55: BSE
A56: 2023-11-28 | B56: 538540 | C56: RLFL | D56: DEIPAKK BAWA AND SONS | E56: SELL | F56: 461,186 | G56: 0.67 | H56: BSE
A57: 2023-11-28 | B57: 530617 | C57: SAMPRE | D57: MULTIPLIER SHARE & STOCK ADVISORS PRIVATE LIMITED | E57: BUY | F57: 50,000 | G57: 80.34 | H57: BSE
A58: 2023-11-28 | B58: 530617 | C58: SAMPRE | D58: DEBASHISH NEOGI | E58: SELL | F58: 50,000 | G58: 80.34 | H58: BSE
A59: 2023-11-28 | B59: 539124 | C59: SARVOTTAM | D59: AMNESTI MULTISERVICES PRIVATE LIMITED | E59: BUY | F59: 10,700 | G59: 53.32 | H59: BSE
A60: 2023-11-28 | B60: 539124 | C60: SARVOTTAM | D60: AMNESTI MULTISERVICES PRIVATE LIMITED | E60: SELL | F60: 40,600 | G60: 53.45 | H60: BSE
A61: 2023-11-28 | B61: 543366 | C61: SBLI | D61: MINAXIBEN HIRALAL PARMAR | E61: BUY | F61: 9,600 | G61: 31.64 | H61: BSE
A62: 2023-11-28 | B62: 542753 | C62: SEACOAST | D62: MANSI SHARE & STOCK ADVISORS PRIVATE LIMITED | E62: SELL | F62: 5,000,000 | G62: 2.82 | H62: BSE
A63: 2023-11-28 | B63: 542753 | C63: SEACOAST | D63: MANSI SHARE & STOCK ADVISORS PRIVATE LIMITED | E63: BUY | F63: 1 | G63: 2.82 | H63: BSE
A64: 2023-11-28 | B64: 542753 | C64: SEACOAST | D64: MULTIPLIER SHARE & STOCK ADVISORS PRIVATE LIMITED | E64: SELL | F64: 8,297,816 | G64: 2.82 | H64: BSE
A65: 2023-11-28 | B65: 542753 | C65: SEACOAST | D65: MULTIPLIER SHARE & STOCK ADVISORS PRIVATE LIMITED | E65: BUY | F65: 3,285,351 | G65: 2.82 | H65: BSE
A66: 2023-11-28 | B66: 538212 | C66: SHARPINV | D66: KARVA AUTOMART LIMITED | E66: SELL | F66: 2,030,314 | G66: 0.53 | H66: BSE
A67: 2023-11-28 | B67: 538923 | C67: SOFCOM | D67: SAMKIT BHAWAR JAIN | E67: SELL | F67: 21,240 | G67: 55 | H67: BSE
A68: 2023-11-28 | B68: 538923 | C68: SOFCOM | D68: COMMENDAM INVESTMENTS PVT LTD | E68: BUY | F68: 35,100 | G68: 54.94 | H68: BSE
A69: 2023-11-28 | B69: 540492 | C69: STARLENT | D69: DHIRAJBHAI VAGHJIBHAI KORADIYA | E69: SELL | F69: 1,000,000 | G69: 112.23 | H69: BSE
A70: 2023-11-28 | B70: 540492 | C70: STARLENT | D70: JAIN FAMILY CAPITAL CO. | E70: BUY | F70: 705,692 | G70: 112.24 | H70: BSE
A71: 2023-11-28 | B71: 519367 | C71: TRANSFD | D71: RUCHIRA GOYAL | E71: SELL | F71: 864 | G71: 88.44 | H71: BSE
A72: 2023-11-28 | B72: 544002 | C72: VIVAA | D72: SHRENI SHARES PRIVATE LIMITED | E72: SELL | F72: 20,000 | G72: 37.21 | H72: BSE
A73: 2023-11-28 | B73: 5PAISA | C73: 5paisa Capital Limited | D73: GRAVITON RESEARCH CAPITAL LLP | E73: BUY | F73: 157,531 | G73: 519.59 | H73: NSE
A74: 2023-11-28 | B74: ANNAPURNA | C74: Annapurna Swadisht Ltd | D74: AJAY SHIV NARAYAN UPADHYAYA | E74: BUY | F74: 175,500 | G74: 305 | H74: NSE
A75: 2023-11-28 | B75: ANTGRAPHIC | C75: Antarctica Graphics Ltd | D75: MULTIPLIER SHARE & STOCK ADVISORS PRIVATE LIMITED | E75: BUY | F75: 625,000 | G75: 1.1 | H75: NSE
A76: 2023-11-28 | B76: ANTGRAPHIC | C76: Antarctica Graphics Ltd | D76: VIBRANT SECURITIES PVT. LTD | E76: BUY | F76: 2,011,405 | G76: 1.08 | H76: NSE
A77: 2023-11-28 | B77: BIOFILCHEM | C77: Biofil Chemicals & Pharm | D77: PIYUSH MAKHIJANI | E77: BUY | F77: 111,585 | G77: 54.37 | H77: NSE
A78: 2023-11-28 | B78: CLOUDPP | C78: Var Cld Ltd Rs.2.5 ppd up | D78: PRABHATKUMARPANJIAR | E78: BUY | F78: 20,400 | G78: 63.11 | H78: NSE
A79: 2023-11-28 | B79: ESSENTIA | C79: Integra Essentia Limited | D79: DREAM ACHIEVER CONSULTANCY SERVICES PRIVATE LIMITED | E79: BUY | F79: 22,304 | G79: 7.65 | H79: NSE
A80: 2023-11-28 | B80: GATECHDVR | C80: GACM Technologies Limited | D80: PAVANKUMAR DONEPUDI | E80: BUY | F80: 400,000 | G80: 10.73 | H80: NSE
A81: 2023-11-28 | B81: HEADSUP | C81: Heads UP Ventures Limited | D81: BRONZE SECURITIES PVT LTD | E81: BUY | F81: 155,204 | G81: 13.06 | H81: NSE
A82: 2023-11-28 | B82: HEADSUP | C82: Heads UP Ventures Limited | D82: QE SECURITIES LLP | E82: BUY | F82: 116,037 | G82: 13.18 | H82: NSE
A83: 2023-11-28 | B83: IPL | C83: India Pesticides Limited | D83: VT CAPITAL MARKET PVT LTD | E83: BUY | F83: 817,425 | G83: 300.46 | H83: NSE
A84: 2023-11-28 | B84: ISHAN | C84: Ishan International Ltd | D84: NIKHIL RAJESH SINGH | E84: BUY | F84: 107,200 | G84: 84.46 | H84: NSE
A85: 2023-11-28 | B85: JAIPURKURT | C85: Nandani Creation Limited | D85: COMPANY SHIVAAY TRADING | E85: BUY | F85: 85,000 | G85: 79.52 | H85: NSE
A86: 2023-11-28 | B86: JAIPURKURT | C86: Nandani Creation Limited | D86: SHARE INDIA SECURITIES LIMITED | E86: BUY | F86: 85,500 | G86: 79.34 | H86: NSE
A87: 2023-11-28 | B87: LIBAS | C87: Libas Consu Products Ltd | D87: JAI VINAYAK SECURITIES | E87: BUY | F87: 196,229 | G87: 16.62 | H87: NSE
A88: 2023-11-28 | B88: LIBAS | C88: Libas Consu Products Ltd | D88: GRAVITON RESEARCH CAPITAL LLP | E88: BUY | F88: 187,894 | G88: 16.63 | H88: NSE
A89: 2023-11-28 | B89: LIBAS | C89: Libas Consu Products Ltd | D89: QE SECURITIES LLP | E89: BUY | F89: 204,748 | G89: 16.67 | H89: NSE
A90: 2023-11-28 | B90: LIBAS | C90: Libas Consu Products Ltd | D90: HRTI PRIVATE LIMITED | E90: BUY | F90: 194,132 | G90: 16.62 | H90: NSE
A91: 2023-11-28 | B91: LOVABLE | C91: Lovable Lingerie Ltd | D91: GRAVITON RESEARCH CAPITAL LLP | E91: BUY | F91: 114,324 | G91: 161.84 | H91: NSE
A92: 2023-11-28 | B92: MCX | C92: Multi Commodity Exchange | D92: GRAVITON RESEARCH CAPITAL LLP | E92: BUY | F92: 466,500 | G92: 3089.28 | H92: NSE
A93: 2023-11-28 | B93: MEGASTAR | C93: Megastar Foods Limited | D93: GRAVITON RESEARCH CAPITAL LLP | E93: BUY | F93: 80,304 | G93: 391.4 | H93: NSE
A94: 2023-11-28 | B94: NAVKARCORP | C94: Navkar Corporation Ltd. | D94: QE SECURITIES LLP | E94: BUY | F94: 845,089 | G94: 79.71 | H94: NSE
A95: 2023-11-28 | B95: NAVKARCORP | C95: Navkar Corporation Ltd. | D95: GRAVITON RESEARCH CAPITAL LLP | E95: BUY | F95: 1,467,389 | G95: 78.98 | H95: NSE
A96: 2023-11-28 | B96: NDTV | C96: New Delhi Television Limi | D96: GRAVITON RESEARCH CAPITAL LLP | E96: BUY | F96: 964,428 | G96: 225.13 | H96: NSE
A97: 2023-11-28 | B97: ONELIFECAP | C97: Onelife Cap Advisors Ltd | D97: PATIL VAIBHAVI SUSHILKUMAR | E97: BUY | F97: 76,000 | G97: 22.82 | H97: NSE
A98: 2023-11-28 | B98: ONELIFECAP | C98: Onelife Cap Advisors Ltd | D98: MARWADI CHANDARANA INTERMEDIARIES BROKERS PRIVATE LIMITED | E98: BUY | F98: 19,990 | G98: 22.05 | H98: NSE
A99: 2023-11-28 | B99: ONELIFECAP | C99: Onelife Cap Advisors Ltd | D99: AMIT KUMAR JAIN HUF | E99: BUY | F99: 50,000 | G99: 21.3 | H99: NSE
A100: 2023-11-28 | B100: ORTINLAB | C100: Ortin Laboratories Ltd | D100: QE SECURITIES LLP | E100: BUY | F100: 59,393 | G100: 19.94 | H100: NSE
A101: 2023-11-28 | B101: ORTINLAB | C101: Ortin Laboratories Ltd | D101: BRONZE SECURITIES PVT LTD | E101: BUY | F101: 52,950 | G101: 19.84 | H101: NSE
A102: 2023-11-28 | B102: RITEZONE | C102: Rite Zone Chemcon Ind Ltd | D102: VEENA RAJESH SHAH | E102: BUY | F102: 51,200 | G102: 67.5 | H102: NSE
A103: 2023-11-28 | B103: RITEZONE | C103: Rite Zone Chemcon Ind Ltd | D103: MAYADEVI K KABRA | E103: BUY | F103: 99,200 | G103: 67.5 | H103: NSE
A104: 2023-11-28 | B104: RPSGVENT | C104: RPSG VENTURES LIMITED | D104: GRAVITON RESEARCH CAPITAL LLP | E104: BUY | F104: 151,201 | G104: 766.09 | H104: NSE
A105: 2023-11-28 | B105: SEPC | C105: SEPC Limited | D105: MANSI SHARE AND STOCK ADVISORS PVT LTD | E105: BUY | F105: 14,436,187 | G105: 19.41 | H105: NSE
A106: 2023-11-28 | B106: SHAREINDIA | C106: Share Ind. Securities Ltd | D106: ARIKA SECURITIES PRIVATE LIMITED | E106: BUY | F106: 400,000 | G106: 1712 | H106: NSE
A107: 2023-11-28 | B107: SHEMAROO | C107: Shemaroo Enter. Ltd. | D107: ANKITA VISHAL SHAH | E107: BUY | F107: 425,960 | G107: 173.2 | H107: NSE
A108: 2023-11-28 | B108: SRPL | C108: Shree Ram Proteins Ltd. | D108: NIKUNJ KAUSHIK SHAH | E108: BUY | F108: 2 | G108: 1.2 | H108: NSE
A109: 2023-11-28 | B109: WOMANCART | C109: Womancart Limited | D109: MULTIPLIER SHARE & STOCK ADVISORS PRIVATE LIMITED | E109: BUY | F109: 56,000 | G109: 151.5 | H109: NSE
A110: 2023-11-28 | B110: WOMANCART | C110: Womancart Limited | D110: PRATIBHA ABHAIKUMAR NAHAR | E110: BUY | F110: 22,400 | G110: 153.75 | H110: NSE
A111: 2023-11-28 | B111: 5PAISA | C111: 5paisa Capital Limited | D111: GRAVITON RESEARCH CAPITAL LLP | E111: SELL | F111: 157,531 | G111: 520 | H111: NSE
A112: 2023-11-28 | B112: ANNAPURNA | C112: Annapurna Swadisht Ltd | D112: RAVI SARDA | E112: SELL | F112: 100,000 | G112: 305.7 | H112: NSE
A113: 2023-11-28 | B113: ANNAPURNA | C113: Annapurna Swadisht Ltd | D113: JAISWAL PAWAN | E113: SELL | F113: 150,000 | G113: 305.89 | H113: NSE
A114: 2023-11-28 | B114: ANTGRAPHIC | C114: Antarctica Graphics Ltd | D114: VIBRANT SECURITIES PVT. LTD | E114: SELL | F114: 1,423,384 | G114: 1.07 | H114: NSE
A115: 2023-11-28 | B115: ANTGRAPHIC | C115: Antarctica Graphics Ltd | D115: MULTIPLIER SHARE & STOCK ADVISORS PRIVATE LIMITED | E115: SELL | F115: 1,500,000 | G115: 1.1 | H115: NSE
A116: 2023-11-28 | B116: BIOFILCHEM | C116: Biofil Chemicals & Pharm | D116: PIYUSH MAKHIJANI | E116: SELL | F116: 11,585 | G116: 55.58 | H116: NSE
A117: 2023-11-28 | B117: CLOUDPP | C117: Var Cld Ltd Rs.2.5 ppd up | D117: RATNAMANIKYAM CHITTURI | E117: SELL | F117: 20,400 | G117: 62.99 | H117: NSE
A118: 2023-11-28 | B118: DIL | C118: Debock Industries Limited | D118: JAYSHREE NIRMAN LTD. | E118: SELL | F118: 637,945 | G118: 8.28 | H118: NSE
A119: 2023-11-28 | B119: ESSENTIA | C119: Integra Essentia Limited | D119: WAYBROAD TRADING PRIVATE LIMITED | E119: SELL | F119: 7,894,482 | G119: 7.68 | H119: NSE
A120: 2023-11-28 | B120: ESSENTIA | C120: Integra Essentia Limited | D120: DREAM ACHIEVER CONSULTANCY SERVICES PRIVATE LIMITED | E120: SELL | F120: 8,884,277 | G120: 7.58 | H120: NSE
A121: 2023-11-28 | B121: GATECHDVR | C121: GACM Technologies Limited | D121: L7 HITECH PRIVATE LIMITED | E121: SELL | F121: 300,000 | G121: 10.9 | H121: NSE
A122: 2023-11-28 | B122: GICL | C122: Globe Intl Carriers Ltd | D122: BHAMINI KAMAL PAREKH | E122: SELL | F122: 147,000 | G122: 39.3 | H122: NSE
A123: 2023-11-28 | B123: GODHA | C123: Godha Cabcon Insulat Ltd | D123: SAHASTRAA ADVISORS PRIVATE LIMITED | E123: SELL | F123: 5,132,284 | G123: 0.55 | H123: NSE
A124: 2023-11-28 | B124: GOKUL | C124: Gokul Refoils and Solvent | D124: ANAND RATHI GLOBAL FINANCE LTD | E124: SELL | F124: 500,000 | G124: 42.2 | H124: NSE
A125: 2023-11-28 | B125: HEADSUP | C125: Heads UP Ventures Limited | D125: QE SECURITIES LLP | E125: SELL | F125: 115,994 | G125: 13.07 | H125: NSE
A126: 2023-11-28 | B126: HEADSUP | C126: Heads UP Ventures Limited | D126: BRONZE SECURITIES PVT LTD | E126: SELL | F126: 155,204 | G126: 13.13 | H126: NSE
A127: 2023-11-28 | B127: IPL | C127: India Pesticides Limited | D127: VT CAPITAL MARKET PVT LTD | E127: SELL | F127: 828,019 | G127: 300.12 | H127: NSE
A128: 2023-11-28 | B128: ISHAN | C128: Ishan International Ltd | D128: MULTIPLIER SHARE & STOCK ADVISORS PRIVATE LIMITED | E128: SELL | F128: 59,200 | G128: 84.75 | H128: NSE
A129: 2023-11-28 | B129: JAIPURKURT | C129: Nandani Creation Limited | D129: SHARE INDIA SECURITIES LIMITED | E129: SELL | F129: 85,500 | G129: 79.52 | H129: NSE
A130: 2023-11-28 | B130: JAIPURKURT | C130: Nandani Creation Limited | D130: COMPANY SHIVAAY TRADING | E130: SELL | F130: 135,000 | G130: 79.31 | H130: NSE
A131: 2023-11-28 | B131: LIBAS | C131: Libas Consu Products Ltd | D131: JAI VINAYAK SECURITIES | E131: SELL | F131: 196,229 | G131: 16.66 | H131: NSE
A132: 2023-11-28 | B132: LIBAS | C132: Libas Consu Products Ltd | D132: HRTI PRIVATE LIMITED | E132: SELL | F132: 194,132 | G132: 16.63 | H132: NSE
A133: 2023-11-28 | B133: LIBAS | C133: Libas Consu Products Ltd | D133: QE SECURITIES LLP | E133: SELL | F133: 204,748 | G133: 16.61 | H133: NSE
A134: 2023-11-28 | B134: LIBAS | C134: Libas Consu Products Ltd | D134: GRAVITON RESEARCH CAPITAL LLP | E134: SELL | F134: 187,894 | G134: 16.6 | H134: NSE
A135: 2023-11-28 | B135: LOTUSEYE | C135: Lotus Eye Hosp & Inst Ltd | D135: SUNDARAMOORTHY RAJKUMAR | E135: SELL | F135: 119,194 | G135: 85.69 | H135: NSE
A136: 2023-11-28 | B136: LOVABLE | C136: Lovable Lingerie Ltd | D136: GRAVITON RESEARCH CAPITAL LLP | E136: SELL | F136: 114,324 | G136: 162.01 | H136: NSE
A137: 2023-11-28 | B137: MCX | C137: Multi Commodity Exchange | D137: GRAVITON RESEARCH CAPITAL LLP | E137: SELL | F137: 466,500 | G137: 3091.5 | H137: NSE
A138: 2023-11-28 | B138: MEGASTAR | C138: Megastar Foods Limited | D138: GRAVITON RESEARCH CAPITAL LLP | E138: SELL | F138: 80,304 | G138: 390.78 | H138: NSE
A139: 2023-11-28 | B139: NAVKARCORP | C139: Navkar Corporation Ltd. | D139: GRAVITON RESEARCH CAPITAL LLP | E139: SELL | F139: 1,467,389 | G139: 79.1 | H139: NSE
A140: 2023-11-28 | B140: NAVKARCORP | C140: Navkar Corporation Ltd. | D140: QE SECURITIES LLP | E140: SELL | F140: 871,264 | G140: 79.95 | H140: NSE
A141: 2023-11-28 | B141: NDTV | C141: New Delhi Television Limi | D141: GRAVITON RESEARCH CAPITAL LLP | E141: SELL | F141: 964,428 | G141: 225.17 | H141: NSE
A142: 2023-11-28 | B142: ONELIFECAP | C142: Onelife Cap Advisors Ltd | D142: AMIT KUMAR JAIN HUF | E142: SELL | F142: 70,000 | G142: 22.51 | H142: NSE
A143: 2023-11-28 | B143: ONELIFECAP | C143: Onelife Cap Advisors Ltd | D143: MARWADI CHANDARANA INTERMEDIARIES BROKERS PRIVATE LIMITED | E143: SELL | F143: 110,990 | G143: 22.46 | H143: NSE
A144: 2023-11-28 | B144: ORTINLAB | C144: Ortin Laboratories Ltd | D144: BRONZE SECURITIES PVT LTD | E144: SELL | F144: 52,950 | G144: 19.93 | H144: NSE
A145: 2023-11-28 | B145: ORTINLAB | C145: Ortin Laboratories Ltd | D145: QE SECURITIES LLP | E145: SELL | F145: 59,393 | G145: 19.82 | H145: NSE
A146: 2023-11-28 | B146: RITEZONE | C146: Rite Zone Chemcon Ind Ltd | D146: SAACHIN SAVLA | E146: SELL | F146: 51,200 | G146: 67.5 | H146: NSE
A147: 2023-11-28 | B147: RITEZONE | C147: Rite Zone Chemcon Ind Ltd | D147: JAYESH CHANDRAKANT SAVLA | E147: SELL | F147: 49,600 | G147: 67.5 | H147: NSE
A148: 2023-11-28 | B148: RITEZONE | C148: Rite Zone Chemcon Ind Ltd | D148: VINESH LAXMICHAND SAVLA | E148: SELL | F148: 49,600 | G148: 67.5 | H148: NSE
A149: 2023-11-28 | B149: RPSGVENT | C149: RPSG VENTURES LIMITED | D149: GRAVITON RESEARCH CAPITAL LLP | E149: SELL | F149: 151,201 | G149: 765.26 | H149: NSE
A150: 2023-11-28 | B150: SEPC | C150: SEPC Limited | D150: MANSI SHARE AND STOCK ADVISORS PVT LTD | E150: SELL | F150: 4,594,148 | G150: 19.42 | H150: NSE
A151: 2023-11-28 | B151: SEPC | C151: SEPC Limited | D151: STATE BANK OF INDIA | E151: SELL | F151: 18,999,422 | G151: 19.48 | H151: NSE
A152: 2023-11-28 | B152: SHAREINDIA | C152: Share Ind. Securities Ltd | D152: PARVEEN GUPTA | E152: SELL | F152: 400,000 | G152: 1712 | H152: NSE
A153: 2023-11-28 | B153: SHEMAROO | C153: Shemaroo Enter. Ltd. | D153: ANKITA VISHAL SHAH | E153: SELL | F153: 352,960 | G153: 173.34 | H153: NSE
A154: 2023-11-28 | B154: SRPL | C154: Shree Ram Proteins Ltd. | D154: NIKUNJ KAUSHIK SHAH | E154: SELL | F154: 2,799,833 | G154: 1.2 | H154: NSE
A155: 2023-11-28 | B155: SUPREMEENG | C155: Supreme Engineering Ltd | D155: MULTIPLIER SHARE & STOCK ADVISORS PRIVATE LIMITED | E155: SELL | F155: 1,360,000 | G155: 1.1 | H155: NSE
A156: 2023-11-28 | B156: VETO | C156: Veto Switchgear Cable Ltd | D156: VETO ELECTROPOWERS (INDIA) PRIVATE LIMITED | E156: SELL | F156: 100,000 | G156: 128.01 | H156: NSE
A157: 2023-11-28 | B157: WOMANCART | C157: Womancart Limited | D157: MULTIPLIER SHARE & STOCK ADVISORS PRIVATE LIMITED | E157: SELL | F157: 51,200 | G157: 151.52 | H157: NSE
A158: 2023-11-28 | B158: WOMANCART | C158: Womancart Limited | D158: SATYA VIBHU MUPPANA | E158: SELL | F158: 97,600 | G158: 153.11 | H158: NSE

Sheet Call Tracker (Equity & F&O)
M5: Back To Main Page
A6: Retail Research Technical Calls & Fundamental Performance Report for the month of November-2023
M7: =Main!B10 -> 2023-11-29
B8: Positional Call
A9: Sr.no | B9: Date | D9: Company | E9: Rec | F9: Rec Price | G9: Stop Loss*** | H9: Call Closed At | I9: Target | J9: Remark | K9: Profit / Loss per Share | L9: All charges | M9: Net Gain / Loss % | N9: Status | O9: Closed Date | P9: Market Closing Price | Q9: Second Buying Date
A10: 1 | B10: 2023-09-12 | D10: ARE&M | E10: Accu <> | F10: 634.2 | G10: 603.2 | H10: 669 | I10: 690-720 | J10: Profit of Rs.34.8/- | K10: =H10-F10 -> 34.8 | L10: =(F10*-0.3)/100 -> -1.90 | M10: =(K10+L10)/F10 -> 5.19% | N10: Successful | O10: 2023-11-23 | Q10: 2023-10-20 | S10: H
A11: 2 | B11: 2023-09-20 | D11: RELIANCE | E11: Accu | F11: 2285-2385 | G11: 2235 | I11: 2550-2700 | J11: Open | P11: =VLOOKUP(D11,'MidCap Intra'!$B$11:$C$568,2,0) -> 2394.40 | Q11: 2023-10-04 | S11: H
A12: 3 | B12: 2023-09-21 | D12: VGUARD | E12: Accu | F12: 285-305 | G12: 276 | I12: 330-350 | J12: Open | P12: =VLOOKUP(D12,'MidCap Intra'!$B$11:$C$568,2,0) -> 300.55 | Q12: 2023-10-09 | S12: K
A13: 4 | B13: 2023-10-09 | D13: TATASTEEL | E13: Accu | F13: 122 | G13: 117 | H13: 117 | I13: 132-140 | J13: Loss of Rs.5/- | K13: =H13-F13 -> -5 | L13: =(F13*-0.3)/100 -> -0.37 | M13: =(K13+L13)/F13 -> -4.40% | N13: Unsuccessful | O13: 2023-11-01 | Q13: 2023-10-23 | S13: H
A14: 5 | B14: 2023-10-13 | D14: TCS | E14: Accu <> | F14: 3441-3541 | G14: 3321 | I14: 3800-4000 | J14: Open | P14: =VLOOKUP(D14,'MidCap Intra'!$B$11:$C$568,2,0) -> 3470.15 | Q14: 2023-10-19 | S14: H
A15: 6 | B15: 2023-10-19 | D15: TATAMTRDVR | E15: Accu | F15: 427 | G15: 408 | H15: 453 | I15: 465-495 | J15: Profit of Rs.26/- | K15: =H15-F15 -> 26 | L15: =(F15*-0.3)/100 -> -1.28 | M15: =(K15+L15)/F15 -> 5.79% | N15: Successful | O15: 2023-11-15 | Q15: 2023-10-25 | S15: H
A16: 7 | B16: 2023-10-20 | D16: TATAPOWER | E16: Accu | F16: 240.5 | G16: 227 | H16: 256 | I16: 265-285 | J16: Profit of Rs.15.5/- | K16: =H16-F16 -> 15.5 | L16: =(F16*-0.3)/100 -> -0.72 | M16: =(K16+L16)/F16 -> 6.14% | N16: Successful | O16: 2023-11-08 | Q16: 2023-10-25 | S16: H
A17: 8 | B17: 2023-10-25 | D17: ICICIBANK | E17: Accu | F17: 903-929 | G17: 870 | I17: 990-1050 | J17: Open | P17: =VLOOKUP(D17,'MidCap Intra'!$B$11:$C$568,2,0) -> 925.50 | Q17: 2023-10-26 | S17: H
A18: 9 | B18: 2023-11-01 | D18: CARBORUNIV | E18: Accu | F18: 1060 | G18: 990 | H18: 1117.5 | I18: 1120-1180 | J18: Profit of Rs.57.5/- | K18: =H18-F18 -> 57.5 | L18: =(F18*-0.3)/100 -> -3.18 | M18: =(K18+L18)/F18 -> 5.12% | N18: Successful | O18: 2023-11-17 | S18: H
A19: 10 | B19: 2023-11-01 | D19: EIHOTEL | E19: Accu | F19: 222 | G19: 204 | H19: 237.5 | I19: 245-265 | J19: Profit of Rs.15.5/- | K19: =H19-F19 -> 15.5 | L19: =(F19*-0.3)/100 -> -0.67 | M19: =(K19+L19)/F19 -> 6.68% | N19: Successful | O19: 2023-11-07 | S19: H
A20: 11 | B20: 2023-11-06 | D20: IDFCFIRSTB | E20: Accu | F20: 82.5 | G20: 77 | H20: 87.5 | I20: 88-94 | J20: Profit of Rs.5/- | K20: =H20-F20 -> 5 | L20: =(F20*-0.3)/100 -> -0.25 | M20: =(K20+L20)/F20 -> 5.76% | N20: Successful | O20: 2023-11-15 | S20: H
A21: 12 | B21: 2023-11-06 | D21: POONAWALLA | E21: Accu | F21: 348.5 | G21: 319 | H21: 375 | I21: 375-400 | J21: Profit of Rs.26.5/- | K21: =H21-F21 -> 26.5 | L21: =(F21*-0.3)/100 -> -1.05 | M21: =(K21+L21)/F21 -> 7.30% | N21: Successful | O21: 2023-11-08 | S21: H
A22: 13 | B22: 2023-11-06 | D22: HEIDELBERG | E22: Accu | F22: 181.5-189.5 | G22: 177 | I22: 204-214 | J22: Open | S22: H
A23: 14 | B23: 2023-11-08 | D23: JAMNAAUTO | E23: Accu<> | F23: 106.40-111.40 | G23: 102.9 | I23: 119-125 | J23: Open | P23: =VLOOKUP(D23,'MidCap Intra'!$B$11:$C$568,2,0) -> 112.95 | S23: H
A24: 15 | B24: 2023-11-17 | D24: ASHOKLEY | E24: Accu | F24: 169-174 | G24: 163 | H24: 179.5 | I24: 185-195 | J24: Open | P24: =VLOOKUP(D24,'MidCap Intra'!$B$11:$C$568,2,0) -> 178.95 | S24: K
A25: 16 | B25: 2023-11-17 | D25: AMBUJACEM | E25: Accu | F25: 402.5-422.5 | G25: 390 | I25: 450-470 | J25: Open | P25: =VLOOKUP(D25,'MidCap Intra'!$B$11:$C$568,2,0) -> 431.20 | S25: H
A26: 17 | B26: 2023-11-20 | D26: TRIDENT | E26: Accu | F26: 35.9-37 | G26: 34.35 | I26: 40-42 | J26: Open | P26: =VLOOKUP(D26,'MidCap Intra'!$B$11:$C$568,2,0) -> 36.60 | S26: H
A27: 18 | B27: 2023-11-20 | D27: RVNL | E27: Accu | F27: 159-164 | G27: 152 | I27: 174-185 | J27: Open | P27: =VLOOKUP(D27,'MidCap Intra'!$B$11:$C$568,2,0) -> 166.10 | S27: H
A28: 19 | B28: 2023-11-22 | D28: EIDPARRY | E28: Accu | F28: 485 | G28: 454 | H28: 518 | I28: 520-560 | J28: Profit of Rs.33/- | K28: =H28-F28 -> 33 | L28: =(F28*-0.3)/100 -> -1.46 | M28: =(K28+L28)/F28 -> 6.50% | N28: Successful | O28: 2023-11-23 | Q28: 2023-11-22 | S28: H
A29: 20 | B29: 2023-11-22 | D29: SCHAEFFLER | E29: Accu | F29: 2705-2805 | G29: 2540 | I29: 3100-3200 | J29: Open | P29: =VLOOKUP(D29,'MidCap Intra'!$B$11:$C$568,2,0) -> 2770.45 | S29: H
A30: 21 | B30: 2023-11-28 | D30: LTIM | E30: Accu | F30: 5195-5395 | G30: 4990 | I30: 5700-6000 | J30: Open
A35: CLBS = Closing Basis ***
A36: Dividend adjusted <> | F36: Reinitiated $
A37: Part book {} | D37: s | F37: Revised stoploss #
A41: Master Trade High Risk
A42: Sr.no | B42: Date | D42: Company | E42: Rec | F42: Rec Price | G42: Stop Loss | H42: Call Closed At | I42: Target | J42: Remark | K42: Profit / Loss per share | L42: All charges | M42: Gain / Loss per Lot | N42: Lot | O42: Status | P42: Closed Date
A43: 1 | B43: 2023-10-30 | D43: ABBOTINDIA NOV FUT | E43: Buy | F43: 22625 | G43: 22350 | H43: 22350 | I43: 22888-23150 | J43: Loss of Rs 275/- | K43: =H43-F43 -> -275 | L43: =(H43*N43)*0.03% -> 268.20 | M43: =(K43*N43)-L43 -> -11268.2 | N43: 40 | O43: Unsuccessful | P43: 2023-11-01 | S43: N
A44: 2 | B44: 2023-10-31 | D44: TATAMOTORS 640 CE 30-NOV | E44: Buy | F44: 17.5 | H44: 26.5 | J44: Profit of Rs.6.25/- | K44: =H44-F44 -> 9 | L44: =(H44*N44)*0.03% -> 11.33 | M44: 8890.0 | N44: 1425 | O44: Successful | P44: 2023-11-03 | S44: H
D45: TATAMOTORS 670 CE 30-NOV | E45: Sell | F45: 8.5 | H45: 11.25 | K45: =F45-H45 -> -2.75 | L45: =(H45*N45)*0.03% -> 0.00
A46: 3 | B46: 2023-11-02 | D46: ITC NOV FUT | E46: Buy | F46: 432 | G46: 426 | H46: 437.5 | I46: 439-445 | J46: Profit of Rs.5.5/- | K46: =H46-F46 -> 5.5 | L46: =(H46*N46)*0.03% -> 210.00 | M46: =(K46*N46)-L46 -> 8590.0 | N46: 1600 | O46: Successful | P46: 2023-11-06 | S46: H
A47: 4 | B47: 2023-11-02 | D47: BHARTIARTL NOV FUT | E47: Buy | F47: 920 | G47: 909 | H47: 929 | I47: 930-941 | J47: Profit of Rs.9/- | K47: =H47-F47 -> 9 | L47: =(H47*N47)*0.03% -> 264.77 | M47: =(K47*N47)-L47 -> 8285.2 | N47: 950 | O47: Successful | P47: 2023-11-03 | S47: K
A48: 5 | B48: 2023-11-03 | D48: OFSS NOV FUT | E48: Buy | F48: 3970 | G48: 3915 | H48: 4010 | I48: 4023-4075 | J48: Profit of Rs.40/- | K48: =H48-F48 -> 40 | L48: =(H48*N48)*0.03% -> 240.60 | M48: =(K48*N48)-L48 -> 7759.4 | N48: 200 | O48: Successful | P48: 2023-11-06 | S48: N
A49: 6 | B49: 2023-11-03 | D49: EXIDEIND NOV FUT | E49: Buy | F49: 257.25 | G49: 254 | H49: 260.5 | I49: 260-263 | J49: Profit of Rs.3.25/- | K49: =H49-F49 -> 3.25 | L49: =(H49*N49)*0.03% -> 281.34 | M49: =(K49*N49)-L49 -> 11418.7 | N49: 3600 | O49: Successful | P49: 2023-11-06 | S49: N
A50: 7 | B50: 2023-11-06 | D50: COALINDIA NOV FUT | E50: Buy | F50: 315 | G50: 310 | H50: 321 | I50: 320-325 | J50: Profit of Rs.6/- | K50: =H50-F50 -> 6 | L50: =(H50*N50)*0.03% -> 202.23 | M50: =(K50*N50)-L50 -> 12397.8 | N50: 2100 | O50: Successful | P50: 2023-11-09 | S50: N
A51: 8 | B51: 2023-11-06 | D51: COFORGE NOV FUT | E51: Buy | F51: 5120 | G51: 5050 | H51: 5050 | I51: 5190-5260 | J51: Loss of Rs.70/- | K51: =H51-F51 -> -70 | L51: =(H51*N51)*0.03% -> 227.25 | M51: =(K51*N51)-L51 -> -10727.3 | N51: 150 | O51: Unsuccessful | P51: 2023-11-13 | S51: K
A52: 9 | B52: 2023-11-07 | D52: BAJFINANCE NOV FUT | E52: Buy | F52: 7605 | G52: 7525 | H52: 7525 | I52: 7689-7773 | J52: Loss of Rs 80/- | K52: =H52-F52 -> -80 | L52: =(H52*N52)*0.03% -> 282.19 | M52: =(K52*N52)-L52 -> -10282.2 | N52: 125 | O52: Unsuccessful | P52: 2023-11-07 | S52: H
A53: 10 | B53: 2023-11-08 | D53: GRANULES NOV FUT | E53: Buy | F53: 360.5 | G53: 356 | H53: 361.5 | I53: 366-371 | J53: Profit of Rs.1/- | K53: 1 | L53: 216.90 | M53: 1783.1 | N53: 2000 | O53: Neutral | P53: 2023-11-09 | S53: N
A54: 11 | B54: 2023-11-09 | D54: CUMMINSIND NOV FUT | E54: Buy | F54: 1755 | G54: 1720 | H54: 1785 | I54: 1790-1825 | J54: Profit of Rs.30/- | K54: 30 | L54: 160.65 | M54: 8839.4 | N54: 300 | O54: Successful | P54: 2023-11-12 | S54: H
A55: 12 | B55: 2023-11-09 | D55: LUPIN NOV FUT | E55: Buy | F55: 1219 | G55: 1207 | H55: 1207 | I55: 1231-1244 | J55: Loss of Rs.12/- | K55: =H55-F55 -> -12 | L55: =(H55*N55)*0.03% -> 307.79 | M55: =(K55*N55)-L55 -> -10507.8 | N55: 850 | O55: Unsuccessful | P55: 2023-11-10 | S55: N
A56: 13 | B56: 2023-11-09 | D56: PETRONET NOV FUT | E56: Sell | F56: 201 | G56: 204 | H56: 193.5 | I56: 198-194 | J56: Profit of Rs.7.5/- | K56: =F56-H56 -> 7.5 | L56: =(H56*N56)*0.03% -> 174.15 | M56: =(K56*N56)-L56 -> 22325.9 | N56: 3000 | O56: Successful | P56: 2023-11-10 | S56: N
A57: 14 | B57: 2023-11-10 | D57: NIFTY NOV FUT | E57: Buy | F57: 19440 | G57: 19340 | H57: 19490 | I57: 19550-19650 | J57: Profit of Rs.50/- | K57: =H57-F57 -> 50 | L57: 292.35 | M57: =(K57*N57)-L57 -> 2207.7 | N57: 50 | O57: Successful | P57: 2023-11-10 | S57: H
A58: 15 | B58: 2023-11-13 | D58: HDFCLIFE NOV FUT | E58: Buy | F58: 622.5 | G58: 612.5 | H58: 632 | I58: 632-642 | J58: Profit of Rs.9.5/- | K58: 9.5 | L58: 208.56 | M58: =(K58*N58)-L58 -> 10241.4 | N58: 1100 | O58: Successful | P58: 2023-11-15 | S58: N
A59: 16 | B59: 2023-11-13 | D59: SIEMENS NOV FUT | E59: Buy | F59: 3412.5 | G59: 3374 | H59: 3455 | I59: 3451-3489 | J59: Profit of Rs.42.5/- | K59: 42.5 | L59: 285.04 | M59: =(K59*N59)-L59 -> 11402.5 | N59: 275 | O59: Successful | P59: 2023-11-15 | S59: N
A60: 17 | B60: 2023-11-15 | D60: OFSS NOV FUT | E60: Buy | F60: 4040 | G60: 3985 | H60: 4070 | I60: 4093-4145 | J60: Profit of Rs.30/- | K60: 30 | L60: 244.20 | M60: =(K60*N60)-L60 -> 5755.8 | N60: 200 | O60: Successful | P60: 2023-11-16 | S60: N
A61: 18 | B61: 2023-11-15 | D61: SIEMENS NOV FUT | E61: Buy | F61: 3440 | G61: 3404 | H61: 3530 | I61: 3435-3445 | J61: Profit of Rs.90/- | K61: 90 | L61: 291.23 | M61: =(K61*N61)-L61 -> 24458.8 | N61: 275 | O61: Successful | P61: 2023-11-15 | S61: N
A62: 19 | B62: 2023-11-15 | D62: ABB NOV FUT | E62: Buy | F62: 4265 | G62: 4180 | H62: 4327.5 | I62: 4349-4433 | J62: Profit of Rs.62.5/- | K62: 62.5 | L62: 162.28 | M62: =(K62*N62)-L62 -> 7650.2 | N62: 125 | O62: Successful | P62: 2023-11-20 | S62: N
A63: 20 | B63: 2023-11-16 | D63: NAUKRI NOV FUT | E63: Buy | F63: 4735 | G63: 4660 | H63: 4767.5 | I63: 4805-4875 | J63: Profit of Rs.32.5/- | K63: 32.5 | L63: 214.54 | M63: =(K63*N63)-L63 -> 4660.5 | N63: 150 | O63: Successful | P63: 2023-11-16 | S63: N
A64: 21 | B64: 2023-11-16 | D64: POWERGRID NOV FUT | E64: Buy | F64: 208 | G64: 204.5 | H64: 210.5 | I64: 211-214 | J64: Profit of Rs.2.5/- | K64: 2.5 | L64: 227.34 | M64: =(K64*N64)-L64 -> 8772.7 | N64: 3600 | O64: Successful | P64: 2023-11-17 | S64: N
A65: 22 | B65: 2023-11-17 | D65: DIXON NOV FUT | E65: Buy | F65: 5405 | G65: 5280 | H65: 5510 | I65: 5525-5630 | J65: Profit of Rs.74/- | K65: 105 | L65: 165.30 | M65: 7350.0 | N65: 100 | O65: Successful | P65: 2023-11-20 | S65: N
D66: DIXON 5600 CE 30-NOV | E66: Sell | F66: 50 | H66: 81 | K66: =F66-H66 -> -31 | L66: 50.00
A67: 23 | B67: 2023-11-17 | D67: METROPOLIS NOV FUT | E67: Buy | F67: 1637.5 | G67: 1610 | H67: 1660 | I67: 1664-1690 | J67: Profit of Rs.22.5/- | K67: =H67-F67 -> 22.5 | L67: 199.20 | M67: =(K67*N67)-L67 -> 8800.8 | N67: 400 | O67: Successful | P67: 2023-11-21 | S67: N
A68: 24 | B68: 2023-11-20 | D68: NAUKRI NOV FUT | E68: Buy | F68: 4830 | G68: 4760 | H68: 4760 | I68: 4900-4970 | J68: Loss of Rs.70/- | K68: =H68-F68 -> -70 | L68: 214.2 | M68: =(K68*N68)-L68 -> -10714.2 | N68: 150 | O68: Unsuccessful | P68: 2023-11-20 | S68: N
A69: 25 | B69: 2023-11-20 | D69: NTPC NOV FUT | E69: Buy | F69: 252.25 | G69: 248.75 | H69: 248.75 | I69: 256-259 | J69: Loss of Rs.3.5/- | K69: =H69-F69 -> -3.5 | L69: 223.875 | M69: =(K69*N69)-L69 -> -10723.9 | N69: 3000 | O69: Unsuccessful | P69: 2023-11-21 | S69: N
A70: 26 | B70: 2023-11-21 | D70: ABB NOV FUT | E70: Buy | F70: 4345 | G70: 4260 | H70: 4260 | I70: 4429-4513 | J70: Loss of Rs.85/- | K70: =H70-F70 -> -85 | L70: 159.75 | M70: =(K70*N70)-L70 -> -10784.8 | N70: 125 | O70: Unsuccessful | P70: 2023-11-22 | S70: N
A71: 27 | B71: 2023-11-21 | D71: POWERGRID NOV FUT | E71: Buy | F71: 209.25 | G71: 206 | H71: 211.25 | I71: 212-215 | J71: Profit of Rs.2/- | K71: =H71-F71 -> 2 | L71: 228.15 | M71: =(K71*N71)-L71 -> 6971.9 | N71: 3600 | O71: Successful | P71: 2023-11-22 | S71: N
A72: 28 | B72: 2023-11-22 | D72: BATAINDIA NOV FUT | E72: Buy | F72: 1607 | G72: 1580 | H72: 1614 | I72: 1636-1664 | J72: Profit of Rs.7/- | K72: =H72-F72 -> 7 | L72: =(H72*N72)*0.03% -> 181.58 | M72: =(K72*N72)-L72 -> 2443.4 | N72: 375 | O72: Neutral | P72: 2023-11-28
A73: 29 | B73: 2023-11-22 | D73: IPCALAB NOV FUT | E73: Buy | F73: 1086 | G73: 1070 | H73: 1070 | I73: 1102-1118 | J73: Loss of Rs.16/- | K73: =H73-F73 -> -16 | L73: =(H73*N73)*0.03% -> 208.65 | M73: =(K73*N73)-L73 -> -10608.7 | N73: 650 | O73: Unsuccessful | P73: 2023-11-23
A74: 30 | B74: 2023-11-23 | D74: TCS NOV FUT | E74: Buy | F74: 3530 | G74: 3473 | H74: 3508.5 | I74: 3590-3650 | J74: Loss of Rs.21.5/- | K74: =H74-F74 -> -21.5 | L74: =(H74*N74)*0.03% -> 184.20 | M74: =(K74*N74)-L74 -> -3946.7 | N74: 175 | O74: Unsuccessful | P74: 2023-11-23
A75: 31 | B75: 2023-11-28 | D75: RBLBANK DEC FUT | E75: Buy | F75: 237.5 | G75: 233.5 | H75: 237.75 | I75: 242-246 | J75: Profit of Rs.0.25/- | K75: =H75-F75 -> 0.25 | L75: =(H75*N75)*0.03% -> 178.31 | M75: =(K75*N75)-L75 -> 446.7 | N75: 2500 | O75: Neutral | P75: 2023-11-28
A76: 32 | B76: 2023-11-28 | D76: METROPOLIS DEC FUT | E76: Buy | F76: 1687-1690 | G76: 1660 | I76: 1716-1743 | J76: Open
A81: Master Trade Medium Risk
A82: Sr.no | B82: Date | D82: Company | E82: Rec | F82: Rec Price | G82: Stop Loss | H82: Call Closed At | I82: Target | J82: Remark | K82: Profit/ Loss per lot | L82: All charges | M82: Gain / Loss per Lot | N82: Lot | O82: Status | P82: Closed Date
A83: 1 | B83: 2023-10-27 | D83: NIFTY 18950 PE 02-NOV | E83: Buy | F83: 60 | H83: 43 | J83: Profit of Rs.9/- | K83: =H83-F83 -> -17 | L83: 50.00 | M83: 300.0 | N83: 50 | O83: Successful | P83: 2023-11-01 | S83: H
D84: NIFTY 18850 PE 02-NOV (2 Lots) | E84: Sell | F84: 37 | H84: 24 | K84: 26 | L84: 100.00 | N84: 50 | P84: 2023-10-31
A85: 2 | B85: 2023-10-30 | D85: TCS 3400 CE 30-NOV | E85: Buy | F85: 57 | H85: 98 | J85: Profit of Rs22./- | K85: =H85-F85 -> 41 | L85: 50.00 | M85: 3750.0 | N85: 175 | O85: Successful | P85: 2023-11-16 | S85: H
D86: TCS 3480 CE 30-NOV | E86: Sell | F86: 27 | H86: 46 | K86: =F86-H86 -> -19 | L86: 50.00 | N86: 175
A87: 3 | B87: 2023-11-01 | D87: BANKNIFTY 42500 PE 1-NOV | E87: Sell | F87: 57 | G87: 105 | H87: 16 | I87: 0.1 | J87: Profit of Rs.41/- | K87: =F87-H87 -> 41 | L87: 50.00 | M87: =(K87*N87)-L87 -> 565.0 | N87: 15 | O87: Successful | P87: 2023-11-01 | S87: H
A88: 4 | B88: 2023-11-01 | D88: TATACONSUM 925 CE 30-NOV | E88: Buy | F88: 13.25 | H88: 15.5 | J88: Profit of Rs.1.5/- | K88: =H88-F88 -> 2.25 | L88: 50.00 | M88: 1250.0 | N88: 900 | O88: Successful | P88: 2023-11-06 | S88: N
D89: TATACONSUM 940 CE 30-NOV | E89: Sell | F89: 8.25 | H89: 9 | K89: =F89-H89 -> -0.75 | L89: 50.00 | N89: 900
A90: 5 | B90: 2023-11-02 | D90: NIFTY 19150 CE 02-NOV | E90: Buy | F90: 11 | G90: 0 | H90: 0 | I90: 25-35 | J90: Loss of Rs.11/- | K90: =H90-F90 -> -11 | L90: 25.00 | M90: =(K90*N90)-L90 -> -575.0 | N90: 50 | O90: Unsuccessful | P90: 2023-11-02 | S90: N
A91: 5 | B91: 2023-11-03 | D91: FINNIFTY 19550 CE 07-NOV | E91: Sell | F91: 24 | H91: 29 | J91: Profit of Rs.16.5/- | K91: =F91-H91 -> -5 | L91: 50.00 | M91: 560.0 | N91: 40 | O91: Successful | P91: 2023-11-06 | S91: H
D92: FINNIFTY19200 PE 07-NOV | E92: Sell | F92: 27 | H92: 5.5 | K92: =F92-H92 -> 21.5 | L92: 50.00 | N92: 40
A93: 6 | B93: 2023-11-03 | D93: TATAMOTORS 650 CE 30-NOV | E93: Buy | F93: 16.5 | H93: 19.5 | J93: Profit of Rs.3/- | K93: =H93-F93 -> 3 | L93: 50.00 | M93: 4250.0 | N93: 1450 | O93: Successful | P93: 2023-11-15 | S93: H
D94: TATAMOTORS 680 CE 30-NOV | E94: Sell | F94: 6.5 | H94: 6.5 | K94: =F94-H94 -> 0 | L94: 50.00 | N94: 1450
A95: 7 | B95: 2023-11-06 | D95: FINNIFTY 19550 CE 07-NOV | E95: Sell | F95: 39.5 | H95: 11 | J95: Profit of Rs.38.5/- | K95: =F95-H95 -> 28.5 | L95: 50.00 | M95: 1440.0 | N95: 40 | O95: Successful | P95: 2023-11-07 | S95: N
D96: FINNIFTY 19500 PE 07-NOV | E96: Sell | F96: 41 | H96: 31 | K96: =F96-H96 -> 10 | L96: 50.00 | N96: 40
A97: 8 | B97: 2023-11-07 | D97: FINNIFTY 19500 CE 07-NOV | E97: Buy | F97: 21.5 | H97: 31.5 | I97: 45-65 | J97: Profit of Rs.10/- | K97: =H97-F97 -> 10 | L97: 50.00 | M97: =(K97*N97)-L97 -> 350.0 | N97: 40 | O97: Successful | P97: 2023-11-07 | S97: N
A98: 9 | B98: 2023-11-07 | D98: BANKNIFTY 43800 CE 15-NOV | E98: Buy | F98: 275 | H98: 265 | J98: Profit of Rs.65/- | K98: =H98-F98 -> -10 | L98: 50.00 | M98: 875.0 | N98: 15 | O98: Successful | P98: 2023-11-08 | S98: H
D99: BANKNIFTY 43800 CE 08-NOV | E99: Sell | F99: 85 | H99: 10 | K99: =F99-H99 -> 75 | L99: 50.00 | N99: 15
A100: 11 | B100: 2023-11-08 | D100: FINNIFTY 19550 CE 13-NOV | E100: Buy | F100: 90 | G100: 59 | H100: 40 | I100: 120-150 | J100: Loss of Rs.50/- | K100: =H100-F100 -> -50 | L100: 25.00 | M100: =(K100*N100)-L100 -> -2025.0 | N100: 40 | O100: Unsuccessful | P100: 2023-11-10 | S100: N
A101: 12 | B101: 2023-11-08 | D101: NIFTY 19550 CE 16-NOV | E101: Buy | F101: 72 | H101: 85 | J101: Profit of Rs.29/- | K101: =H101-F101 -> 13 | L101: 50.00 | M101: 1375.0 | N101: 50 | O101: Successful | P101: 2023-11-15 | S101: H
D102: NIFTY 19550 CE 09-NOV | E102: Sell | F102: 16 | H102: 0 | K102: =F102-H102 -> 16 | L102: 25.00 | N102: 50
A103: 13 | B103: 2023-11-13 | D103: FINNIFTY 19550 CE 13-NOV | E103: Buy | F103: 25 | G103: 0 | H103: 50 | I103: 50-70 | J103: Profit of Rs.25/- | K103: =H103-F103 -> 25 | L103: 50.00 | M103: =(K103*N103)-L103 -> 950.0 | N103: 40 | O103: Successful | P103: 2023-11-13 | S103: N
A104: 14 | B104: 2023-11-13 | D104: BANKNIFTY 43800 PE 15-NOV | E104: Sell | F104: 92.5 | H104: 9 | J104: Loss of Rs.11.5/- | K104: =F104-H104 -> 83.5 | L104: 50.00 | M104: -272.5 | N104: 15 | O104: Unsuccessful | P104: 2023-11-15 | S104: N
D105: BANKNIFTY 44100 CE 15-NOV | E105: Sell | F105: 70 | H105: 165 | K105: =F105-H105 -> -95 | L105: 50.00 | N105: 15
A106: 15 | B106: 2023-11-15 | D106: BANKNIFTY 44300 CE 15-NOV | E106: Buy | F106: 36 | G106: 0 | H106: 0 | I106: 72-120 | J106: Loss of Rs.36/- | K106: =H106-F106 -> -36 | L106: 50.00 | M106: =(K106*N106)-L106 -> -590.0 | N106: 15 | O106: Unsuccessful | P106: 2023-11-15 | S106: N
A107: 16 | B107: 2023-11-15 | D107: FINNIFTY 19750 CE 21-NOV | E107: Buy | F107: 109 | G107: 70 | H107: 70 | I107: 145-180 | J107: Loss of Rs.39/- | K107: =H107-F107 -> -39 | L107: 50.00 | M107: =(K107*N107)-L107 -> -1610.0 | N107: 40 | O107: Unsuccessful | P107: 2023-11-16 | S107: N
A108: 17 | B108: 2023-11-16 | D108: NIFTY 19700 PE 16-NOV | E108: Buy | F108: 22.5 | G108: 0 | H108: 0 | I108: 40-60 | J108: Loss of Rs.22.5/- | K108: =H108-F108 -> -22.5 | L108: 25.00 | M108: =(K108*N108)-L108 -> -1150.0 | N108: 50 | O108: Unsuccessful | P108: 2023-11-16 | S108: N
A109: 18 | B109: 2023-11-16 | D109: DIXON 5350 CE 30-NOV | E109: Buy | F109: 97 | H109: 166 | J109: Profit of Rs.24.5/- | K109: =H109-F109 -> 69 | L109: 50.00 | M109: 2350.0 | N109: 100 | O109: Successful | P109: 2023-11-16 | S109: N
D110: DIXON 5500 CE 30-NOV | E110: Sell | F110: 51.5 | H110: 96 | K110: =F110-H110 -> -44.5 | L110: 50.00 | N110: 100
A111: 19 | B111: 2023-11-17 | D111: TCS 3500 CE 30-NOV | E111: Buy | F111: 43 | H111: 27 | J111: Loss of Rs.4/- | K111: =H111-F111 -> -16 | L111: 50.00 | M111: 800.0 | N111: 175 | O111: Unsuccessful | P111: 2023-11-24 | S111: H
D112: TCS 3600 CE 30-NOV | E112: Sell | F112: 15 | H112: 3 | K112: =F112-H112 -> 12 | L112: 50.00 | N112: 175
A113: 20 | B113: 2023-11-20 | D113: DIXON 5500 CE 30-NOV | E113: Buy | F113: 105-109 | J113: Open | S113: N
D114: DIXON 5650 CE 30-NOV | E114: Sell | F114: 55-59
A115: 21 | B115: 2023-11-20 | D115: FINNIFTY 19600 CE 21-NOV | E115: Sell | F115: 29 | H115: 32.5 | J115: Profit of Rs.14.5/- | K115: =F115-H115 -> -3.5 | L115: 50.00 | M115: 480.0 | N115: 40 | O115: Successful | P115: 2023-11-21 | S115: N
D116: FINNIFTY 19450 PE 21-NOV | E116: Sell | F116: 22 | H116: 4 | K116: =F116-H116 -> 18 | L116: 50.00 | N116: 40
A117: 22 | B117: 2023-11-21 | D117: FINNIFTY 19600 PE 21-NOV | E117: Buy | F117: 12.5 | G117: 0 | H117: 0 | I117: 30-40 | J117: Loss of Rs.12.5/- | K117: =H117-F117 -> -12.5 | L117: 25.00 | M117: =(K117*N117)-L117 -> -525.0 | N117: 40 | O117: Unsuccessful | P117: 2023-11-21 | S117: N
A118: 23 | B118: 2023-11-22 | D118: BANKNIFTY 43400 CE 22-NOV | E118: Buy | F118: 55 | G118: 0 | H118: 52.5 | I118: 110-150 | J118: Loss of Rs.2.5/- | K118: =H118-F118 -> -2.5 | L118: 50.00 | M118: =(K118*N118)-L118 -> -87.5 | N118: 15 | O118: Neutral | P118: 2023-11-22 | S118: N
A119: 24 | B119: 2023-11-24 | D119: NIFTY 19800 PE 30-NOV | E119: Buy | F119: 57-59 | J119: Open
D120: NIFTY 19700 PE 30-NOV | E120: Sell | F120: 29-31
A124: Techno -Funda (positional)
A125: Sr.no | B125: Date | D125: Company | E125: Rec | F125: Rec Price | G125: Stop Loss*** | H125: Call Closed At | I125: Target | J125: Remark | K125: Profit / Loss per Share/Lot | L125: All charges | M125: Net Gain / Loss % | N125: Status | O125: Closed Date | P125: Market Closing Price | Q125: Second Buying Date
A126: 1 | B126: 2023-08-31 | D126: LATENTVIEW | E126: Accu | F126: 422.5 | G126: 350 | H126: 487.5 | I126: 500-550 | J126: Profit of Rs.65/- | K126: =H126-F126 -> 65 | L126: =(F126*-0.3)/100 -> -1.27 | M126: =(K126+L126)/F126 -> 15.08% | N126: Successful | O126: 2023-11-21 | S126: H
A127: 2 | B127: 2023-09-04 | D127: LTIM | E127: Accu <> | F127: 5125 | G127: 4770 | H127: 5625 | I127: 5700-6000 | J127: Profit of Rs.500/- | K127: =H127-F127 -> 500 | L127: =(F127*-0.3)/100 -> -15.38 | M127: =(K127+L127)/F127 -> 9.46% | N127: Successful | O127: 2023-11-20 | Q127: 2023-10-18 | S127: H
A128: 3 | B128: 2023-11-22 | D128: CAMS | E128: Accu | F128: 2665-2765 | G128: 2480 | I128: 3100-3300 | J128: Open | S128: H
A132: CLBS = Closing Basis *** | F132: Reinitiated $
A133: Dividend adjusted <> | F133: Revised stoploss # | H133: .................
B142: Investment Idea
A143: Sr.no | B143: Date | D143: Company | E143: Rec | F143: Rec Price | G143: Point of Review | H143: Close Rate | I143: Target | J143: Remark | K143: Profit / Loss per Share | L143: Gain / Loss % | M143: Status | N143: Closed Date
A144: 1 | B144: 2013-11-01 | D144: L&T Finance Holding | E144: Accu | F144: 82.00 | G144: - | H144: 100 | I144: 100.00 | J144: Target Achieved | K144: =H144-F144 -> 18.00 | L144: =K144/F144 -> 21.95% | M144: Successful | N144: 2016-10-14
A145: 2 | B145: 2014-06-04 | D145: Finolex Inds | E145: Buy | F145: 257.00 | G145: - | H145: 300 | I145: 300.00 | J145: Target Achieved | K145: 43.00 | L145: 16.73% | M145: Successful | N145: 2014-07-02
A146: 3 | B146: 2014-07-08 | D146: JK Cement | E146: Buy | F146: 393.00 | G146: - | H146: 468 | I146: 468.00 | J146: Target Achieved | K146: 75.00 | L146: 19.08% | M146: Successful | N146: 2014-08-12
A147: 4 | B147: 2014-08-06 | D147: Finolex Cables | E147: Buy | F147: 205.00 | G147: - | H147: 275 | I147: 250.00 | J147: Target Achieved | K147: 70.00 | L147: 34.15% | M147: Successful | N147: 2014-11-19
A148: 5 | B148: 2014-09-04 | D148: Exide Inds | E148: Buy | F148: 162.00 | G148: - | H148: 190 | I148: 190.00 | J148: Target Achieved | K148: 28.00 | L148: 17.28% | M148: Successful | N148: 2015-01-02
A149: 6 | B149: 2014-09-04 | D149: Deepak Nitrite | E149: Buy | F149: 75.00 | G149: - | H149: 91.5 | I149: 95-100 | J149: Profit of Rs.16.50/- | K149: 16.50 | L149: 22.00% | M149: Successful | N149: 2014-11-11
A150: 7 | B150: 2014-10-01 | D150: Mercks | E150: Buy | F150: 850.00 | G150: - | H150: 982.5 | I150: 1050.00 | J150: Profit of Rs.132.50/- | K150: 132.50 | L150: 15.59% | M150: Successful | N150: 2015-02-04
A151: 8 | B151: 2014-10-01 | D151: Grindwell Norton | E151: Buy | F151: 475.00 | G151: - | H151: 515 | I151: 600.00 | J151: Profit of Rs.40/- | K151: 40.00 | L151: 8.42% | M151: Successful | N151: 2014-10-27
A152: 9 | B152: 2014-10-01 | D152: Snowman Logistics | E152: Buy | F152: 86.00 | G152: - | H152: 99 | I152: 140.00 | J152: Profit of Rs.13.00/- | K152: 13.00 | L152: 15.12% | M152: Successful | N152: 2014-10-27
A153: 10 | B153: 2014-10-14 | D153: Birla Corp | E153: Buy | F153: 496.60 | G153: - | H153: 621 | I153: 580.00 | J153: Target Achieved | K153: 124.40 | L153: 25.05% | M153: Successful | N153: 2016-08-23
A154: 11 | B154: 2014-10-14 | D154: Ultratech Cem | E154: Buy | F154: 2481.90 | G154: - | H154: 2840 | I154: 2870.00 | J154: Profit of Rs.358.10/- | K154: 358.10 | L154: 14.43% | M154: Successful | N154: 2015-01-13
A155: 12 | B155: 2014-10-16 | D155: Sintex Inds | E155: Buy | F155: 84.50 | G155: - | H155: 93 | I155: 110.00 | J155: Profit of Rs.8.50/- | K155: 8.50 | L155: 10.06% | M155: Successful | N155: 2014-10-27
A156: 13 | B156: 2014-10-16 | D156: HSIL | E156: Buy | F156: 401.00 | G156: - | H156: 428 | I156: 450.00 | J156: Profit of Rs.27.00/- | K156: 27.00 | L156: 6.73% | M156: Successful | N156: 2015-01-16
A157: 14 | B157: 2014-10-16 | D157: Eveready Inds | E157: Buy | F157: 101.00 | G157: - | H157: 112 | I157: 120.00 | J157: Profit of Rs.11.00/- | K157: 11.00 | L157: 10.89% | M157: Successful | N157: 2014-10-27
A158: 15 | B158: 2014-11-11 | D158: Pennar Inds | E158: Buy | F158: 59.00 | G158: - | H158: 76 | I158: 76.00 | J158: Target Achieved | K158: 17.00 | L158: 28.81% | M158: Successful | N158: 2017-10-24
A159: 16 | B159: 2014-11-11 | D159: Snowman Logistics | E159: Buy | F159: 99.00 | G159: - | H159: 120 | I159: 120.00 | J159: Profit of Rs.21/- | K159: 21.00 | L159: 21.21% | M159: Successful | N159: 2014-11-17
A160: 17 | B160: 2014-11-13 | D160: Dharamsi Morarji Chem | E160: Buy | F160: 22.00 | G160: - | H160: 33.55 | I160: 32.00 | J160: Profit of Rs 11.55/- | K160: 11.55 | L160: 52.50% | M160: Successful | N160: 2015-07-03
A161: 18 | B161: 2014-12-03 | D161: Tatachem | E161: Buy | F161: 440.00 | G161: - | H161: 520 | I161: 520.00 | J161: Profit of Rs 80.00/- | K161: 80.00 | L161: 18.18% | M161: Successful | N161: 2015-07-23
A162: 19 | B162: 2014-12-03 | D162: Advanta | E162: Buy | F162: 360.00 | G162: - | H162: 427 | I162: 425.00 | J162: Profit of Rs.67.00/- | K162: 67.00 | L162: 18.61% | M162: Successful | N162: 2015-02-23
A163: 20 | B163: 2015-01-08 | D163: GDL | E163: Buy | F163: 360.00 | G163: - | H163: 455 | I163: 420.00 | J163: Profit of Rs.95.00/- | K163: 95.00 | L163: 26.39% | M163: Successful | N163: 2015-01-20
A164: 21 | B164: 2015-01-08 | D164: NRB Bearing | E164: Buy | F164: 130.00 | H164: 175.5 | I164: 165.00 | J164: Profit of Rs 45.50/- | K164: 45.50 | L164: 35.00% | M164: Successful | N164: 2017-12-19
A165: 22 | B165: 2015-02-05 | D165: GSFC | E165: Accu | F165: 98.00 | H165: 120 | I165: 120.00 | J165: Target Achieved | K165: 22.00 | L165: 22.45% | M165: Successful | N165: 2017-01-18
A166: 23 | B166: 2015-02-05 | D166: Sundrmfast | E166: Accu | F166: 196.00 | H166: 262 | I166: 255.00 | J166: Target Achieved | K166: 66.00 | L166: 33.67% | M166: Successful | N166: 2016-08-17
A167: 24 | B167: 2015-03-04 | D167: GPPL | E167: Accu | F167: 235 | H167: 77.00 | I167: 280-285 | J167: Loss of Rs.158/- | K167: -158.00 | L167: -67.23% | M167: Unsuccessful | N167: 2019-02-26
A168: 25 | B168: 2015-03-04 | D168: ORIENTCEM | E168: Accu | F168: 185.00 | H168: 224 | I168: 220-225 | J168: Target Achieved | K168: 39.00 | L168: 21.08% | M168: Successful | N168: 2016-10-04
A169: 26 | B169: 2015-03-27 | D169: PFS | E169: Accu | F169: 49.5 | H169: 15.85 | I169: 67.00 | J169: Loss of Rs.33.65/- | K169: -33.65 | L169: -68% | M169: Unsuccessful | N169: 2019-06-11
A170: 27 | B170: 2015-03-30 | D170: Walchandnagar Ind Ltd | E170: Accu | F170: 183.50 | H170: 219 | I170: 218.00 | J170: Profit of Rs.35.50/- | K170: 35.50 | L170: 19.35% | M170: Successful | N170: 2015-04-09
A171: 28 | B171: 2015-04-20 | D171: Kalpataru Power Transmission Ltd | E171: Accu | F171: =(227+237)/2 -> 232.00 | H171: 298 | I171: 298.00 | J171: Target Achieved | K171: 66.00 | L171: 28.45% | M171: Successful | N171: 2017-03-29
A172: 29 | B172: 2015-05-04 | D172: Mastek Ltd | E172: Buy | F172: 385.00 | H172: =212.5+331 -> 543.5 | I172: 510.00 | J172: Profit of Rs 158.50/- | K172: 158.50 | L172: 41.17% | M172: Successful | N172: 2015-08-19
A173: 30 | B173: 2015-05-04 | D173: Suprajit Eng | E173: Buy | F173: 115.50 | H173: 146 | I173: 142.00 | J173: Profit of Rs 30.50/- | K173: 30.50 | L173: 26.41% | M173: Successful | N173: 2015-07-17
A174: 31 | B174: 2015-05-27 | D174: TCI | E174: Buy | F174: 237.50 | H174: 279.5 | I174: 278.00 | J174: Target Achieved | K174: 42.00 | L174: 17.68% | M174: Successful | N174: 2015-08-06
A175: 32 | B175: 2015-06-19 | D175: HSIL | E175: Accu | F175: 340.00 | H175: 448 | I175: 448.00 | J175: Target Achieved | K175: 108.00 | L175: 31.76% | M175: Successful | N175: 2017-10-10
A176: 33 | B176: 2015-07-06 | D176: Capital First | E176: Accu | F176: 390.00 | H176: 460 | I176: 460.00 | J176: Target Achieved | K176: 70.00 | L176: 17.95% | M176: Successful | N176: 2016-04-18
A177: 34 | B177: 2015-07-10 | D177: Dolphin OffShore | E177: Accu | F177: 122.5 | H177: 61.00 | I177: 172.00 | J177: Loss of Rs.61.50/- | K177: -61.50 | L177: -50.20% | M177: Unsuccessful | N177: 2018-08-21
A178: 35 | B178: 2015-08-03 | D178: Allcargo logistics | E178: Accu | F178: 297.50 | H178: 350 | I178: 360.00 | J178: Profit of Rs 52.50/- | K178: 52.50 | L178: 17.65% | M178: Successful | N178: 2015-08-16
A179: 36 | B179: 2015-08-03 | D179: Camline Fine | E179: Accu | F179: 115.50 | H179: 149 | I179: 140.00 | J179: Profit of Rs 33.50/- | K179: 33.50 | L179: 29.00% | M179: Successful | N179: 2017-01-05
A180: 37 | B180: 2015-09-04 | D180: TCI | E180: Accu | F180: 226.00 | H180: 292 | I180: 292.00 | J180: Target Achieved | K180: 66.00 | L180: 29.20% | M180: Successful | N180: 2015-10-09
A181: 38 | B181: 2015-09-07 | D181: Kalpataru Power Transmission Ltd | E181: Accu | F181: 232.50 | H181: 312.5 | I181: 310.00 | J181: Target Achieved | K181: 80.00 | L181: 34.41% | M181: Successful | N181: 2017-03-29
A182: 39 | B182: 2015-09-21 | D182: LLOYD ELECTRIC & ENG LTD | E182: Accu | F182: 196.50 | H182: 238 | I182: 238.00 | J182: Target Achieved | K182: 41.50 | L182: 21.12% | M182: Successful | N182: 2015-10-14
A183: 40 | B183: 2015-09-24 | D183: L&T Finance Holding | E183: Accu | F183: 65.00 | H183: 82 | I183: 82.00 | J183: Target Achieved | K183: 17.00 | L183: 26.15% | M183: Successful | N183: 2016-07-27
A184: 41 | B184: 2015-10-14 | D184: KEC International ltd | E184: Accu | F184: 144.00 | H184: 182.5 | I184: 181.00 | J184: Target Achieved | K184: 38.50 | L184: 26.74% | M184: Successful | N184: 2017-03-23
A185: 42 | B185: 2015-10-14 | D185: Gruh Finance | E185: Accu | F185: 264.00 | H185: 311 | I185: 311.00 | J185: Target Achieved | K185: 47.00 | L185: 17.80% | M185: Successful | N185: 2016-08-22
A186: 43 | B186: 2015-11-10 | D186: Pidilitind | E186: Buy | F186: 549.50 | H186: 630 | I186: 630.00 | J186: Target Achieved | K186: 80.50 | L186: 14.65% | M186: Successful | N186: 2016-02-19
A187: 44 | B187: 2015-12-04 | D187: Zensar Technology | E187: Accu | F187: 1027.50 | H187: 1315 | I187: 1250.00 | J187: Target Achieved | K187: 287.50 | L187: 27.98% | M187: Successful | N187: 2018-05-24
A188: 45 | B188: 2015-12-29 | D188: Vinati Organics Ltd | E188: Accu | F188: 465.00 | H188: 540 | I188: 540.00 | J188: Target Achieved | K188: 75.00 | L188: 16.13% | M188: Successful | N188: 2016-06-09
A189: 46 | B189: 2016-01-11 | D189: GSFC | E189: Buy | F189: 81.00 | H189: 110 | I189: 110.00 | J189: Target Achieved | K189: 29.00 | L189: 35.80% | M189: Successful | N189: 2017-01-10
A190: 47 | B190: 2016-01-13 | D190: SSWL | E190: Buy | F190: 417.50 | H190: 547 | I190: 535.00 | J190: Target Achieved | K190: 129.50 | L190: 31.02% | M190: Successful | N190: 2016-07-27
A191: 48 | B191: 2016-02-08 | D191: Persistent System Ltd | E191: Accu | F191: 650.00 | H191: 800 | I191: 800.00 | J191: Target Achieved | K191: 150.00 | L191: 23.08% | M191: Successful | N191: 2018-02-23
A192: 49 | B192: 2016-03-04 | D192: UPL | E192: Accu | F192: 437.50 | H192: 504.5 | I192: 522.00 | J192: Profit of Rs.67/- | K192: 67.00 | L192: 15.31% | M192: Successful | N192: 2016-04-20
A193: 50 | B193: 2016-03-09 | D193: Ashoka Buildcon Ltd | E193: Accu | F193: 189.50 | H193: 218 | I193: 218.00 | J193: Target Achieved | K193: 28.50 | L193: 15.04% | M193: Successful | N193: 2017-10-26
A194: 51 | B194: 2016-04-11 | D194: PTC INDIA FIN SERV LTD | E194: Accu | F194: 36.5 | H194: 15.85 | I194: 60.00 | J194: Loss of Rs.20.65/- | K194: -20.65 | L194: -56.58% | M194: Unsuccessful | N194: 2019-06-11
A195: 52 | B195: 2016-04-12 | D195: CAMLINFINE $ | E195: Accu | F195: 93.00 | H195: 149 | I195: 140.00 | J195: Profit of Rs 56/- | K195: 56.00 | L195: 60.22% | M195: Successful | N195: 2017-01-05
A196: 53 | B196: 2016-04-12 | D196: Greaves Cotton Ltd. | E196: Accu | F196: 130.00 | H196: 150 | I196: 150-155 | J196: Target Achieved | K196: 20.00 | L196: 15.38% | M196: Successful | N196: 2016-07-13
A197: 54 | B197: 2016-04-13 | D197: DHFL | E197: Accu | F197: 196.00 | H197: 299 | I197: 299.00 | J197: Target Achieved | K197: 103.00 | L197: 52.55% | M197: Successful | N197: 2016-09-07
A198: 55 | B198: 2016-04-13 | D198: Magma | E198: Accu | F198: 88.00 | H198: 103 | I198: 103.00 | J198: Target Achieved | K198: 15.00 | L198: 17.05% | M198: Successful | N198: 2016-06-09
A199: 56 | B199: 2016-05-02 | D199: KEC International ltd $ | E199: Accu | F199: 127.50 | H199: 148 | I199: 148-150 | J199: Target Achieved | K199: =H199-F199 -> 20.50 | L199: =K199/F199 -> 16.08% | M199: Successful | N199: 2016-07-13
A200: 57 | B200: 2016-05-03 | D200: Mindtree | E200: Accu | F200: 675.00 | H200: 815 | I200: 790-800 | J200: Target Achieved | K200: 140.00 | L200: 20.74% | M200: Successful | N200: 2018-02-23
A201: 58 | B201: 2016-06-01 | D201: Atulauto | E201: Accu | F201: 500 | H201: 232.50 | I201: 565-570 | J201: Loss of Rs.267.50 /- | K201: -267.50 | L201: -53.50% | M201: Unsuccessful | N201: 2019-09-27
A202: 59 | B202: 2016-06-06 | D202: TRITURBINE | E202: Accu | F202: 110.00 | H202: 126.5 | I202: 125.00 | J202: Profit of Rs.16.50/- | K202: 16.50 | L202: 15.00% | M202: Successful | N202: 2016-07-01
A203: 60 | B203: 2016-06-17 | D203: Pennar Industries Ltd | E203: Accu | F203: 44.00 | H203: 69.5 | I203: 69.50 | J203: Profit of Rs.25.50/- | K203: 25.50 | L203: 57.95% | M203: Successful | N203: 2017-08-30
A204: 61 | B204: 2016-06-28 | D204: EVEREADY | E204: Accu | F204: 262.50 | H204: 340 | I204: 333.00 | J204: Profit of Rs.77.50/- | K204: 77.50 | L204: 29.52% | M204: Successful | N204: 2017-10-09
A205: 62 | B205: 2016-06-28 | D205: FIEMIND | E205: Accu | F205: 840.00 | H205: 1230 | I205: 1230.00 | J205: Target Achieved | K205: 390.00 | L205: 46.43% | M205: Successful | N205: 2016-10-06
A206: 63 | B206: 2016-07-05 | D206: Bajaj Corp Ltd | E206: Accu | F206: 395 | H206: =(468.5+342.5)/2 -> 405.50 | I206: 510.00 | J206: Profit of Rs.10.50/- | K206: =H206-F206 -> 10.50 | L206: =K206/F206 -> 3% | M206: Neutral | N206: 2019-05-21
A207: 64 | B207: 2016-08-02 | D207: GPPL $ | E207: Buy | F207: =169.5-12.8 -> 156.7 | H207: 77.00 | I207: 198-200 | J207: Loss of Rs.79.7/- | K207: -79.70 | L207: -50.86% | M207: Unsuccessful | N207: 2019-02-26
A208: 65 | B208: 2016-08-04 | D208: WONDERLA HOLIDAYS LTD | E208: Accu | F208: 400 | H208: 305.00 | I208: 475.00 | J208: Loss of Rs.95/- | K208: -95.00 | L208: -23.75% | M208: Unsuccessful | N208: 2019-05-21
A209: 66 | B209: 2016-08-11 | D209: CAMLINFINE | E209: Accu | F209: 86.50 | H209: 130 | I209: 130.00 | J209: Profit of Rs.43.50/- | K209: 43.50 | L209: 50.29% | M209: Successful | N209: 2017-12-22
A210: 67 | B210: 2016-08-18 | D210: GRANULES | E210: Accu | F210: 133.5 | H210: 126.50 | I210: 178.00 | J210: Exit | K210: -7.00 | L210: -5.24% | M210: Unsuccessful | N210: 2016-09-02
A211: 68 | B211: 2016-08-31 | D211: VA TECH WABAG | E211: Accu | F211: 560.00 | H211: 725 | I211: 725.00 | J211: Target Achieved | K211: 165.00 | L211: 29.46% | M211: Successful | N211: 2016-03-27
A212: 69 | B212: 2016-09-01 | D212: SKIPPER LIMITED | E212: Accu | F212: 160.50 | H212: 210 | I212: 210.00 | J212: Target Achieved | K212: 49.50 | L212: 30.84% | M212: Successful | N212: 2017-05-16
A213: 70 | B213: 2016-10-03 | D213: IFBIND | E213: Accu | F213: 430.00 | H213: 596 | I213: 575.00 | J213: Profit of Rs.166/- | K213: 166.00 | L213: 38.60% | M213: Successful | N213: 2017-02-03
A214: 71 | B214: 2016-10-14 | D214: ASIANTILES | E214: Accu | F214: 280.00 | H214: 345 | I214: 345.00 | J214: Target Achieved | K214: =H214-F214 -> 65.00 | L214: =K214/F214 -> 23.21% | M214: Successful | N214: 2017-03-20
A215: 72 | B215: 2016-10-14 | D215: DEEPIND | E215: Accu | F215: 245.00 | H215: 325.5 | I215: 330.00 | J215: Profit of Rs.80.5/- | K215: 80.50 | L215: 32.86% | M215: Successful | N215: 2017-02-03
A216: 73 | B216: 2016-10-17 | D216: DCBBANK | E216: Accu | F216: 125.00 | H216: 160 | I216: 160.00 | J216: Target Achieved | K216: 35.00 | L216: 28.00% | M216: Successful | N216: 2017-03-09
A217: 74 | B217: 2016-10-17 | D217: ORIENTREF | E217: Accu | F217: 114.00 | H217: 145 | I217: 145.00 | J217: Target Achieved | K217: 31.00 | L217: =K217/F217 -> 27.19% | M217: Successful | N217: 2017-05-04
A218: 75 | B218: 2016-10-17 | D218: GANECOS | E218: Accu | F218: 212.00 | H218: 280 | I218: 276.00 | J218: Profit of Rs.68/- | K218: 68.00 | L218: 32.08% | M218: Successful | N218: 2017-05-03
A219: 76 | B219: 2016-11-04 | D219: NBCC | E219: Accu | F219: 155.00 | H219: 210 | I219: 210.00 | J219: Profit of Rs.55/- | K219: 55.00 | L219: 35.48% | M219: Successful | N219: 2017-07-28
A220: 77 | B220: 2016-12-06 | D220: PRECAM | E220: Accu | F220: 150.5 | H220: 72.50 | I220: 174.00 | J220: Loss of Rs.78/- | K220: -78.00 | L220: -51.83% | M220: Unsuccessful | N220: 2018-08-21
A221: 78 | B221: 2016-12-08 | D221: INFRATEL | E221: Accu | F221: 380.00 | H221: 478 | I221: 468.00 | J221: Target Achieved | K221: =H221-F221 -> 98.00 | L221: =K221/F221 -> 25.79% | M221: Successful | N221: 2017-10-17
A222: 79 | B222: 2016-12-30 | D222: GODREJPROP | E222: Accu | F222: 305.00 | H222: 375 | I222: 375.00 | J222: Target Achieved | K222: 70.00 | L222: 22.95% | M222: Successful | N222: 2017-02-02
A223: 80 | B223: 2017-01-04 | D223: DEEPAKNTR | E223: Accu | F223: 99.50 | H223: 158 | I223: 158.00 | J223: Target Achieved | K223: 58.50 | L223: 58.79% | M223: Successful | N223: 2017-06-12
A224: 81 | B224: 2017-01-04 | D224: DEEPAKNTR | E224: Accu | F224: 99.50 | H224: 158 | I224: 158.00 | J224: Target Achieved | K224: 58.50 | L224: 58.79% | M224: Successful | N224: 2017-06-12
A225: 82 | B225: 2017-02-20 | D225: RECLTD | E225: Accu | F225: 140.50 | H225: 220 | I225: 220.00 | J225: Target Achieved | K225: =H225-F225 -> 79.50 | L225: =K225/F225 -> 56.58% | M225: Successful | N225: 2017-05-09
A226: 83 | B226: 2017-02-20 | D226: SUBROS | E226: Accu | F226: 202.50 | H226: 234 | I226: 234.00 | J226: Target Achieved | K226: 31.50 | L226: 15.56% | M226: Successful | N226: 2017-04-11
A227: 84 | B227: 2017-03-24 | D227: VRLLOG | E227: Accu | F227: 300.50 | H227: 417.5 | I227: 420.00 | J227: Profit of Rs.117/- | K227: =H227-F227 -> 117.00 | L227: =K227/F227 -> 38.94% | M227: Successful | N227: 2017-12-01
A228: 85 | B228: 2017-03-24 | D228: FIEMIND | E228: Accu | F228: 850.00 | H228: 1042.5 | I228: 1023.00 | J228: Profit of Rs 192.50/- | K228: 192.50 | L228: 22.65% | M228: Successful | N228: 2017-04-05
A229: 86 | B229: 2017-04-05 | D229: RATNAMANI | E229: Accu | F229: 785.00 | H229: 930 | I229: 920.00 | J229: Profit of Rs.145/- | K229: =H229-F229 -> 145.00 | L229: =K229/F229 -> 18.47% | M229: Successful | N229: 2017-08-29
... 115 more rows
